Workbook

Sheet 解析センター
A1: 実験日 | B1: 2031年6月31日
A2: 実験者 | B2: 面堂玖菜 | C2: 困田文太
A3: 課題 | B3: 生体関連物質の光吸収
C5: D2輝線波長
C6: 656.8 | D6: ←ここに光源の656 nm付近の輝線の測定値を入力する | J6: 新規シートを作成しマクロ「データ読み込み」を利用して、元のデータの波長較正、波長の規格化、光強度の平準化を行う
B8: ほうれん草からの抽出物の吸収スペクトル
B9: 770 nmの吸光度が0となるように補正
B11: 全分画のスペクトルを重ね書き
B34: 分画ごとの各波長の吸光度の変化
C35: 各波長の吸光度を抽出
F36: 波長/nm
C37: 350 | D37: 424 | E37: 455 | F37: 477 | G37: 579 | H37: 616 | I37: 645 | J37: 662
B38: 分画 | C38: =C37&" nm" -> 350 nm | D38: =D37&" nm" -> 424 nm | E38: =E37&" nm" -> 455 nm | F38: 477 nm | G38: 579 nm | H38: 616 nm | I38: 645 nm | J38: 662 nm
B39: 1 | C39: =VLOOKUP(C$37,ほうれん草,$B39+1,FALSE) -> 0.064 | D39: 0.394 | E39: 0.531 | F39: 0.495 | G39: 0.034 | H39: 0.02 | I39: 0.005 | J39: 0.003
B40: 2 | C40: 0.005 | D40: 0.057 | E40: 0.077 | F40: 0.07 | G40: 0.001 | H40: 0.003 | I40: 0.004 | J40: 0.007
B41: 3 | C41: 0.07 | D41: 0.127 | E41: 0.015 | F41: 0.015 | G41: 0.005 | H41: 0.02 | I41: 0.023 | J41: 0.116
B42: 4 | C42: 0.269 | D42: 0.844 | E42: 0.034 | F42: 0.015 | G42: 0.082 | H42: 0.151 | I42: 0.171 | J42: 0.831
B43: 5 | C43: 0.326 | D43: 1.018 | E43: 0.139 | F43: 0.025 | G43: 0.101 | H43: 0.183 | I43: 0.243 | J43: 0.99
B44: 6 | C44: 0.155 | D44: 0.39 | E44: 0.497 | F44: 0.081 | G44: 0.045 | H44: 0.071 | I44: 0.226 | J44: 0.269
B45: 7 | C45: 0.103 | D45: 0.252 | E45: 0.575 | F45: 0.138 | G45: 0.028 | H45: 0.038 | I45: 0.2 | J45: 0.08
B46: 8 | C46: 0.077 | D46: 0.268 | E46: 0.439 | F46: 0.254 | G46: 0.02 | H46: 0.021 | I46: 0.088 | J46: 0.032
B47: 9 | C47: 0.026 | D47: 0.226 | E47: 0.308 | F47: 0.259 | G47: 0.006 | H47: 0.007 | I47: 0.028 | J47: 0.012
B48: 10 | C48: 0.005 | D48: 0.114 | E48: 0.149 | F48: 0.134 | G48: 0.001 | H48: 0.004 | I48: 0.011 | J48: 0.008
B49: 11 | C49: -0.009 | D49: 0.033 | E49: 0.045 | F49: 0.039 | G49: -0.002 | H49: 0.001 | I49: 0.007 | J49: 0.007
B50: 12 | C50: -0.012 | D50: 0.011 | E50: 0.017 | F50: 0.015 | G50: -0.005 | H50: -0.001 | I50: 0.003 | J50: 0.004
B51: 13 | C51: -0.014 | D51: 0.012 | E51: 0.017 | F51: 0.017 | G51: -0.006 | H51: -0.002 | I51: 0.002 | J51: 0.003
B52: 14 | C52: -0.008 | D52: 0.033 | E52: 0.035 | F52: 0.039 | G52: -0.003 | H52: 0 | I52: 0.003 | J52: 0.003
B53: 15 | C53: 0.005 | D53: 0.062 | E53: 0.062 | F53: 0.068 | G53: 0.002 | H53: 0.002 | I53: 0.003 | J53: 0.003
B60: トマトからの抽出物の吸収スペクトル
B61: 770 nmの吸光度が0となるように補正
B62: 溶離液はヘキサン？
B63: 全分画のスペクトルを重ね書き
B87: 分画ごとの各波長の吸光度の変化
C88: 各波長の吸光度を抽出
F89: 波長/nm
C90: 359 | D90: 445 | E90: 469 | F90: 488 | G90: 499
B91: 分画 | C91: =C90&" nm" -> 359 nm | D91: =D90&" nm" -> 445 nm | E91: 469 nm | F91: 488 nm | G91: 499 nm
B92: 1 | C92: =VLOOKUP(C$90,トマト,$B92+1,FALSE) -> 0.041 | D92: 0.169 | E92: 0.182 | F92: 0.123 | G92: 0.102
B93: 2 | C93: 0.167 | D93: 0.735 | E93: 0.993 | F93: 0.631 | G93: 0.822
B94: 3 | C94: 0.086 | D94: 0.384 | E94: 0.56 | F94: 0.338 | G94: 0.488
B95: 4 | C95: 0.021 | D95: 0.056 | E95: 0.075 | F95: 0.046 | G95: 0.063
B96: 5 | C96: 0.021 | D96: 0.023 | E96: 0.022 | F96: 0.016 | G96: 0.017
B97: 6 | C97: 0.016 | D97: 0.031 | E97: 0.027 | F97: 0.017 | G97: 0.013
B98: 7 | C98: -0.008 | D98: 0.01 | E98: 0.018 | F98: 0.006 | G98: 0.013
B99: 8 | C99: 0.014 | D99: 0.03 | E99: 0.024 | F99: 0.013 | G99: 0.009

Sheet 補正ほうれん草
A2: 770 nm吸光度 | B2: =元ほうれん草!B474 -> 0.289 | C2: =元ほうれん草!C474 -> -0.003 | D2: =元ほうれん草!D474 -> 0.001 | E2: =元ほうれん草!E474 -> 0.002 | F2: =元ほうれん草!F474 -> 0.004 | G2: =元ほうれん草!G474 -> 0.007 | H2: =元ほうれん草!H474 -> 0.006 | I2: =元ほうれん草!I474 -> 0.01 | J2: =元ほうれん草!J474 -> -0.006 | K2: =元ほうれん草!K474 -> -0.005 | L2: =元ほうれん草!L474 -> 0.002 | M2: =元ほうれん草!M474 -> 0 | N2: =元ほうれん草!N474 -> -0.001 | O2: =元ほうれん草!O474 -> 0.006 | P2: =元ほうれん草!P474 -> 0.007
A3: 波長/nm | B3: =元ほうれん草!B3 -> E:\生化学実験\sample1.txt | C3: =元ほうれん草!C3 -> E:\生化学実験\sample2.txt | D3: =元ほうれん草!D3 -> E:\生化学実験\sample3.txt | E3: =元ほうれん草!E3 -> E:\生化学実験\sample4.txt | F3: =元ほうれん草!F3 -> E:\生化学実験\sample5.txt | G3: =元ほうれん草!G3 -> E:\生化学実験\sample6.txt | H3: =元ほうれん草!H3 -> E:\生化学実験\sample7.txt | I3: =元ほうれん草!I3 -> E:\生化学実験\sample8.txt | J3: =元ほうれん草!J3 -> E:\生化学実験\sample9.txt | K3: =元ほうれん草!K3 -> E:\生化学実験\sample10.txt | L3: =元ほうれん草!L3 -> E:\生化学実験\sample11.txt | M3: =元ほうれん草!M3 -> E:\生化学実験\sample12.txt | N3: =元ほうれん草!N3 -> E:\生化学実験\sample13.txt | O3: =元ほうれん草!O3 -> E:\生化学実験\sample14.txt | P3: =元ほうれん草!P3 -> E:\生化学実験\sample15.txt
A4: 300 | B4: =元ほうれん草!B4-B$2 -> -0.083 | C4: =元ほうれん草!C4-C$2 -> -0.009 | D4: =元ほうれん草!D4-D$2 -> 0.021 | E4: =元ほうれん草!E4-E$2 -> 0.1 | F4: =元ほうれん草!F4-F$2 -> 0.113 | G4: =元ほうれん草!G4-G$2 -> 0.071 | H4: =元ほうれん草!H4-H$2 -> 0.055 | I4: =元ほうれん草!I4-I$2 -> 0.053 | J4: =元ほうれん草!J4-J$2 -> 0.023 | K4: =元ほうれん草!K4-K$2 -> 0.005 | L4: =元ほうれん草!L4-L$2 -> -0.013 | M4: =元ほうれん草!M4-M$2 -> -0.01 | N4: =元ほうれん草!N4-N$2 -> -0.014 | O4: =元ほうれん草!O4-O$2 -> -0.013 | P4: =元ほうれん草!P4-P$2 -> 0.001
A5: 301 | B5: =元ほうれん草!B5-B$2 -> -0.136 | C5: =元ほうれん草!C5-C$2 -> -0.015 | D5: =元ほうれん草!D5-D$2 -> 0.003 | E5: =元ほうれん草!E5-E$2 -> 0.098 | F5: =元ほうれん草!F5-F$2 -> 0.116 | G5: =元ほうれん草!G5-G$2 -> 0.057 | H5: =元ほうれん草!H5-H$2 -> 0.054 | I5: =元ほうれん草!I5-I$2 -> 0.017 | J5: =元ほうれん草!J5-J$2 -> 0.015 | K5: =元ほうれん草!K5-K$2 -> -0.009 | L5: =元ほうれん草!L5-L$2 -> -0.024 | M5: =元ほうれん草!M5-M$2 -> -0.013 | N5: =元ほうれん草!N5-N$2 -> -0.013 | O5: =元ほうれん草!O5-O$2 -> -0.015 | P5: =元ほうれん草!P5-P$2 -> -0.013
A6: 302 | B6: =元ほうれん草!B6-B$2 -> -0.107 | C6: =元ほうれん草!C6-C$2 -> -0.003 | D6: =元ほうれん草!D6-D$2 -> 0 | E6: =元ほうれん草!E6-E$2 -> 0.129 | F6: =元ほうれん草!F6-F$2 -> 0.131 | G6: =元ほうれん草!G6-G$2 -> 0.067 | H6: =元ほうれん草!H6-H$2 -> 0.059 | I6: =元ほうれん草!I6-I$2 -> 0.032 | J6: =元ほうれん草!J6-J$2 -> 0.029 | K6: =元ほうれん草!K6-K$2 -> -0.007 | L6: =元ほうれん草!L6-L$2 -> -0.014 | M6: =元ほうれん草!M6-M$2 -> -0.021 | N6: =元ほうれん草!N6-N$2 -> 0.001 | O6: =元ほうれん草!O6-O$2 -> -0.007 | P6: =元ほうれん草!P6-P$2 -> -0.012
A7: 303 | B7: =元ほうれん草!B7-B$2 -> -0.056 | C7: =元ほうれん草!C7-C$2 -> -0.004 | D7: =元ほうれん草!D7-D$2 -> 0.021 | E7: =元ほうれん草!E7-E$2 -> 0.133 | F7: =元ほうれん草!F7-F$2 -> 0.126 | G7: =元ほうれん草!G7-G$2 -> 0.074 | H7: =元ほうれん草!H7-H$2 -> 0.052 | I7: =元ほうれん草!I7-I$2 -> 0.048 | J7: =元ほうれん草!J7-J$2 -> 0.027 | K7: =元ほうれん草!K7-K$2 -> 0.019 | L7: =元ほうれん草!L7-L$2 -> -0.01 | M7: =元ほうれん草!M7-M$2 -> -0.019 | N7: =元ほうれん草!N7-N$2 -> -0.005 | O7: =元ほうれん草!O7-O$2 -> -0.014 | P7: =元ほうれん草!P7-P$2 -> -0.013
A8: 304 | B8: =元ほうれん草!B8-B$2 -> -0.028 | C8: =元ほうれん草!C8-C$2 -> -0.006 | D8: =元ほうれん草!D8-D$2 -> 0.03 | E8: =元ほうれん草!E8-E$2 -> 0.109 | F8: =元ほうれん草!F8-F$2 -> 0.114 | G8: =元ほうれん草!G8-G$2 -> 0.07 | H8: =元ほうれん草!H8-H$2 -> 0.045 | I8: =元ほうれん草!I8-I$2 -> 0.053 | J8: =元ほうれん草!J8-J$2 -> 0.031 | K8: =元ほうれん草!K8-K$2 -> 0.037 | L8: =元ほうれん草!L8-L$2 -> 0.006 | M8: =元ほうれん草!M8-M$2 -> -0.011 | N8: =元ほうれん草!N8-N$2 -> 0.012 | O8: =元ほうれん草!O8-O$2 -> -0.022 | P8: =元ほうれん草!P8-P$2 -> -0.006
A9: 305 | B9: =元ほうれん草!B9-B$2 -> -0.056 | C9: =元ほうれん草!C9-C$2 -> -0.014 | D9: =元ほうれん草!D9-D$2 -> 0.034 | E9: =元ほうれん草!E9-E$2 -> 0.108 | F9: =元ほうれん草!F9-F$2 -> 0.106 | G9: =元ほうれん草!G9-G$2 -> 0.068 | H9: =元ほうれん草!H9-H$2 -> 0.032 | I9: =元ほうれん草!I9-I$2 -> 0.057 | J9: =元ほうれん草!J9-J$2 -> 0.046 | K9: =元ほうれん草!K9-K$2 -> 0.037 | L9: =元ほうれん草!L9-L$2 -> 0.018 | M9: =元ほうれん草!M9-M$2 -> -0.006 | N9: =元ほうれん草!N9-N$2 -> 0.014 | O9: =元ほうれん草!O9-O$2 -> -0.02 | P9: =元ほうれん草!P9-P$2 -> 0.006
A10: 306 | B10: =元ほうれん草!B10-B$2 -> -0.056 | C10: =元ほうれん草!C10-C$2 -> -0.032 | D10: =元ほうれん草!D10-D$2 -> 0.017 | E10: =元ほうれん草!E10-E$2 -> 0.123 | F10: =元ほうれん草!F10-F$2 -> 0.104 | G10: =元ほうれん草!G10-G$2 -> 0.063 | H10: =元ほうれん草!H10-H$2 -> 0.014 | I10: =元ほうれん草!I10-I$2 -> 0.042 | J10: =元ほうれん草!J10-J$2 -> 0.03 | K10: =元ほうれん草!K10-K$2 -> 0.019 | L10: =元ほうれん草!L10-L$2 -> 0.003 | M10: =元ほうれん草!M10-M$2 -> -0.018 | N10: =元ほうれん草!N10-N$2 -> -0.001 | O10: =元ほうれん草!O10-O$2 -> -0.018 | P10: =元ほうれん草!P10-P$2 -> -0.012
A11: 307 | B11: =元ほうれん草!B11-B$2 -> -0.067 | C11: =元ほうれん草!C11-C$2 -> -0.045 | D11: =元ほうれん草!D11-D$2 -> -0.009 | E11: =元ほうれん草!E11-E$2 -> 0.121 | F11: =元ほうれん草!F11-F$2 -> 0.091 | G11: =元ほうれん草!G11-G$2 -> 0.05 | H11: =元ほうれん草!H11-H$2 -> 0.005 | I11: =元ほうれん草!I11-I$2 -> 0.011 | J11: =元ほうれん草!J11-J$2 -> -0.003 | K11: =元ほうれん草!K11-K$2 -> -0.009 | L11: =元ほうれん草!L11-L$2 -> -0.04 | M11: =元ほうれん草!M11-M$2 -> -0.028 | N11: =元ほうれん草!N11-N$2 -> -0.023 | O11: =元ほうれん草!O11-O$2 -> -0.036 | P11: =元ほうれん草!P11-P$2 -> -0.028
A12: 308 | B12: =元ほうれん草!B12-B$2 -> -0.091 | C12: =元ほうれん草!C12-C$2 -> -0.051 | D12: =元ほうれん草!D12-D$2 -> -0.02 | E12: =元ほうれん草!E12-E$2 -> 0.089 | F12: =元ほうれん草!F12-F$2 -> 0.079 | G12: =元ほうれん草!G12-G$2 -> 0.052 | H12: =元ほうれん草!H12-H$2 -> 0.009 | I12: =元ほうれん草!I12-I$2 -> 0.001 | J12: =元ほうれん草!J12-J$2 -> -0.021 | K12: =元ほうれん草!K12-K$2 -> -0.032 | L12: =元ほうれん草!L12-L$2 -> -0.064 | M12: =元ほうれん草!M12-M$2 -> -0.035 | N12: =元ほうれん草!N12-N$2 -> -0.035 | O12: =元ほうれん草!O12-O$2 -> -0.036 | P12: =元ほうれん草!P12-P$2 -> -0.03
A13: 309 | B13: =元ほうれん草!B13-B$2 -> -0.094 | C13: =元ほうれん草!C13-C$2 -> -0.036 | D13: =元ほうれん草!D13-D$2 -> -0.003 | E13: =元ほうれん草!E13-E$2 -> 0.083 | F13: =元ほうれん草!F13-F$2 -> 0.098 | G13: =元ほうれん草!G13-G$2 -> 0.059 | H13: =元ほうれん草!H13-H$2 -> 0.022 | I13: =元ほうれん草!I13-I$2 -> 0.011 | J13: =元ほうれん草!J13-J$2 -> -0.018 | K13: =元ほうれん草!K13-K$2 -> -0.023 | L13: =元ほうれん草!L13-L$2 -> -0.052 | M13: =元ほうれん草!M13-M$2 -> -0.024 | N13: =元ほうれん草!N13-N$2 -> -0.026 | O13: =元ほうれん草!O13-O$2 -> -0.017 | P13: =元ほうれん草!P13-P$2 -> -0.015
A14: 310 | B14: =元ほうれん草!B14-B$2 -> -0.065 | C14: =元ほうれん草!C14-C$2 -> -0.029 | D14: =元ほうれん草!D14-D$2 -> 0.004 | E14: =元ほうれん草!E14-E$2 -> 0.094 | F14: =元ほうれん草!F14-F$2 -> 0.119 | G14: =元ほうれん草!G14-G$2 -> 0.062 | H14: =元ほうれん草!H14-H$2 -> 0.035 | I14: =元ほうれん草!I14-I$2 -> 0.011 | J14: =元ほうれん草!J14-J$2 -> 0.01 | K14: =元ほうれん草!K14-K$2 -> -0.002 | L14: =元ほうれん草!L14-L$2 -> -0.021 | M14: =元ほうれん草!M14-M$2 -> -0.015 | N14: =元ほうれん草!N14-N$2 -> -0.018 | O14: =元ほうれん草!O14-O$2 -> -0.015 | P14: =元ほうれん草!P14-P$2 -> -0.004
A15: 311 | B15: =元ほうれん草!B15-B$2 -> -0.065 | C15: =元ほうれん草!C15-C$2 -> -0.03 | D15: =元ほうれん草!D15-D$2 -> 0.006 | E15: =元ほうれん草!E15-E$2 -> 0.091 | F15: =元ほうれん草!F15-F$2 -> 0.115 | G15: =元ほうれん草!G15-G$2 -> 0.075 | H15: =元ほうれん草!H15-H$2 -> 0.036 | I15: =元ほうれん草!I15-I$2 -> 0.02 | J15: =元ほうれん草!J15-J$2 -> 0.012 | K15: =元ほうれん草!K15-K$2 -> -0.007 | L15: =元ほうれん草!L15-L$2 -> -0.016 | M15: =元ほうれん草!M15-M$2 -> -0.019 | N15: =元ほうれん草!N15-N$2 -> -0.026 | O15: =元ほうれん草!O15-O$2 -> -0.018 | P15: =元ほうれん草!P15-P$2 -> -0.006
A16: 312 | B16: =元ほうれん草!B16-B$2 -> -0.056 | C16: =元ほうれん草!C16-C$2 -> -0.019 | D16: =元ほうれん草!D16-D$2 -> 0.023 | E16: =元ほうれん草!E16-E$2 -> 0.108 | F16: =元ほうれん草!F16-F$2 -> 0.136 | G16: =元ほうれん草!G16-G$2 -> 0.087 | H16: =元ほうれん草!H16-H$2 -> 0.05 | I16: =元ほうれん草!I16-I$2 -> 0.051 | J16: =元ほうれん草!J16-J$2 -> 0.017 | K16: =元ほうれん草!K16-K$2 -> -0.013 | L16: =元ほうれん草!L16-L$2 -> -0.012 | M16: =元ほうれん草!M16-M$2 -> -0.017 | N16: =元ほうれん草!N16-N$2 -> -0.023 | O16: =元ほうれん草!O16-O$2 -> -0.005 | P16: =元ほうれん草!P16-P$2 -> -0.007
A17: 313 | B17: =元ほうれん草!B17-B$2 -> -0.029 | C17: =元ほうれん草!C17-C$2 -> -0.019 | D17: =元ほうれん草!D17-D$2 -> 0.023 | E17: =元ほうれん草!E17-E$2 -> 0.119 | F17: =元ほうれん草!F17-F$2 -> 0.127 | G17: =元ほうれん草!G17-G$2 -> 0.083 | H17: =元ほうれん草!H17-H$2 -> 0.046 | I17: =元ほうれん草!I17-I$2 -> 0.053 | J17: =元ほうれん草!J17-J$2 -> 0.006 | K17: =元ほうれん草!K17-K$2 -> -0.019 | L17: =元ほうれん草!L17-L$2 -> -0.016 | M17: =元ほうれん草!M17-M$2 -> -0.024 | N17: =元ほうれん草!N17-N$2 -> -0.026 | O17: =元ほうれん草!O17-O$2 -> -0.012 | P17: =元ほうれん草!P17-P$2 -> -0.016
A18: 314 | B18: =元ほうれん草!B18-B$2 -> -0.034 | C18: =元ほうれん草!C18-C$2 -> -0.016 | D18: =元ほうれん草!D18-D$2 -> 0.009 | E18: =元ほうれん草!E18-E$2 -> 0.122 | F18: =元ほうれん草!F18-F$2 -> 0.141 | G18: =元ほうれん草!G18-G$2 -> 0.079 | H18: =元ほうれん草!H18-H$2 -> 0.039 | I18: =元ほうれん草!I18-I$2 -> 0.056 | J18: =元ほうれん草!J18-J$2 -> 0.008 | K18: =元ほうれん草!K18-K$2 -> -0.007 | L18: =元ほうれん草!L18-L$2 -> -0.016 | M18: =元ほうれん草!M18-M$2 -> -0.02 | N18: =元ほうれん草!N18-N$2 -> -0.023 | O18: =元ほうれん草!O18-O$2 -> -0.023 | P18: =元ほうれん草!P18-P$2 -> -0.013
A19: 315 | B19: =元ほうれん草!B19-B$2 -> -0.051 | C19: =元ほうれん草!C19-C$2 -> -0.003 | D19: =元ほうれん草!D19-D$2 -> 0.019 | E19: =元ほうれん草!E19-E$2 -> 0.128 | F19: =元ほうれん草!F19-F$2 -> 0.154 | G19: =元ほうれん草!G19-G$2 -> 0.087 | H19: =元ほうれん草!H19-H$2 -> 0.044 | I19: =元ほうれん草!I19-I$2 -> 0.064 | J19: =元ほうれん草!J19-J$2 -> 0.02 | K19: =元ほうれん草!K19-K$2 -> 0.016 | L19: =元ほうれん草!L19-L$2 -> 0.001 | M19: =元ほうれん草!M19-M$2 -> -0.007 | N19: =元ほうれん草!N19-N$2 -> -0.01 | O19: =元ほうれん草!O19-O$2 -> -0.011 | P19: =元ほうれん草!P19-P$2 -> -0.004
A20: 316 | B20: =元ほうれん草!B20-B$2 -> -0.058 | C20: =元ほうれん草!C20-C$2 -> -0.006 | D20: =元ほうれん草!D20-D$2 -> 0.029 | E20: =元ほうれん草!E20-E$2 -> 0.137 | F20: =元ほうれん草!F20-F$2 -> 0.174 | G20: =元ほうれん草!G20-G$2 -> 0.094 | H20: =元ほうれん草!H20-H$2 -> 0.061 | I20: =元ほうれん草!I20-I$2 -> 0.06 | J20: =元ほうれん草!J20-J$2 -> 0.031 | K20: =元ほうれん草!K20-K$2 -> 0.017 | L20: =元ほうれん草!L20-L$2 -> 0.001 | M20: =元ほうれん草!M20-M$2 -> -0.004 | N20: =元ほうれん草!N20-N$2 -> -0.009 | O20: =元ほうれん草!O20-O$2 -> 0.002 | P20: =元ほうれん草!P20-P$2 -> -0.007
A21: 317 | B21: =元ほうれん草!B21-B$2 -> -0.046 | C21: =元ほうれん草!C21-C$2 -> -0.036 | D21: =元ほうれん草!D21-D$2 -> 0.019 | E21: =元ほうれん草!E21-E$2 -> 0.132 | F21: =元ほうれん草!F21-F$2 -> 0.172 | G21: =元ほうれん草!G21-G$2 -> 0.085 | H21: =元ほうれん草!H21-H$2 -> 0.06 | I21: =元ほうれん草!I21-I$2 -> 0.052 | J21: =元ほうれん草!J21-J$2 -> 0.021 | K21: =元ほうれん草!K21-K$2 -> -0.004 | L21: =元ほうれん草!L21-L$2 -> -0.021 | M21: =元ほうれん草!M21-M$2 -> -0.015 | N21: =元ほうれん草!N21-N$2 -> -0.025 | O21: =元ほうれん草!O21-O$2 -> -0.013 | P21: =元ほうれん草!P21-P$2 -> -0.011
A22: 318 | B22: =元ほうれん草!B22-B$2 -> -0.018 | C22: =元ほうれん草!C22-C$2 -> -0.048 | D22: =元ほうれん草!D22-D$2 -> 0.01 | E22: =元ほうれん草!E22-E$2 -> 0.132 | F22: =元ほうれん草!F22-F$2 -> 0.169 | G22: =元ほうれん草!G22-G$2 -> 0.082 | H22: =元ほうれん草!H22-H$2 -> 0.056 | I22: =元ほうれん草!I22-I$2 -> 0.051 | J22: =元ほうれん草!J22-J$2 -> 0.01 | K22: =元ほうれん草!K22-K$2 -> -0.008 | L22: =元ほうれん草!L22-L$2 -> -0.017 | M22: =元ほうれん草!M22-M$2 -> -0.012 | N22: =元ほうれん草!N22-N$2 -> -0.024 | O22: =元ほうれん草!O22-O$2 -> -0.025 | P22: =元ほうれん草!P22-P$2 -> -0.007
A23: 319 | B23: =元ほうれん草!B23-B$2 -> 0.001 | C23: =元ほうれん草!C23-C$2 -> -0.051 | D23: =元ほうれん草!D23-D$2 -> -0.008 | E23: =元ほうれん草!E23-E$2 -> 0.15 | F23: =元ほうれん草!F23-F$2 -> 0.165 | G23: =元ほうれん草!G23-G$2 -> 0.093 | H23: =元ほうれん草!H23-H$2 -> 0.068 | I23: =元ほうれん草!I23-I$2 -> 0.042 | J23: =元ほうれん草!J23-J$2 -> 0.014 | K23: =元ほうれん草!K23-K$2 -> 0.001 | L23: =元ほうれん草!L23-L$2 -> -0.002 | M23: =元ほうれん草!M23-M$2 -> -0.004 | N23: =元ほうれん草!N23-N$2 -> -0.015 | O23: =元ほうれん草!O23-O$2 -> -0.015 | P23: =元ほうれん草!P23-P$2 -> 0.001
A24: 320 | B24: =元ほうれん草!B24-B$2 -> -0.005 | C24: =元ほうれん草!C24-C$2 -> -0.085 | D24: =元ほうれん草!D24-D$2 -> -0.049 | E24: =元ほうれん草!E24-E$2 -> 0.157 | F24: =元ほうれん草!F24-F$2 -> 0.179 | G24: =元ほうれん草!G24-G$2 -> 0.09 | H24: =元ほうれん草!H24-H$2 -> 0.066 | I24: =元ほうれん草!I24-I$2 -> 0.035 | J24: =元ほうれん草!J24-J$2 -> 0.013 | K24: =元ほうれん草!K24-K$2 -> 0.004 | L24: =元ほうれん草!L24-L$2 -> -0.007 | M24: =元ほうれん草!M24-M$2 -> -0.005 | N24: =元ほうれん草!N24-N$2 -> -0.02 | O24: =元ほうれん草!O24-O$2 -> -0.012 | P24: =元ほうれん草!P24-P$2 -> -0.002
A25: 321 | B25: =元ほうれん草!B25-B$2 -> -0.014 | C25: =元ほうれん草!C25-C$2 -> -0.133 | D25: =元ほうれん草!D25-D$2 -> -0.079 | E25: =元ほうれん草!E25-E$2 -> 0.148 | F25: =元ほうれん草!F25-F$2 -> 0.192 | G25: =元ほうれん草!G25-G$2 -> 0.092 | H25: =元ほうれん草!H25-H$2 -> 0.064 | I25: =元ほうれん草!I25-I$2 -> 0.035 | J25: =元ほうれん草!J25-J$2 -> 0.003 | K25: =元ほうれん草!K25-K$2 -> -0.006 | L25: =元ほうれん草!L25-L$2 -> -0.019 | M25: =元ほうれん草!M25-M$2 -> -0.011 | N25: =元ほうれん草!N25-N$2 -> -0.021 | O25: =元ほうれん草!O25-O$2 -> -0.013 | P25: =元ほうれん草!P25-P$2 -> -0.009
A26: 322 | B26: =元ほうれん草!B26-B$2 -> -0.015 | C26: =元ほうれん草!C26-C$2 -> -0.162 | D26: =元ほうれん草!D26-D$2 -> -0.097 | E26: =元ほうれん草!E26-E$2 -> 0.157 | F26: =元ほうれん草!F26-F$2 -> 0.226 | G26: =元ほうれん草!G26-G$2 -> 0.099 | H26: =元ほうれん草!H26-H$2 -> 0.071 | I26: =元ほうれん草!I26-I$2 -> 0.036 | J26: =元ほうれん草!J26-J$2 -> 0.002 | K26: =元ほうれん草!K26-K$2 -> -0.012 | L26: =元ほうれん草!L26-L$2 -> -0.022 | M26: =元ほうれん草!M26-M$2 -> -0.019 | N26: =元ほうれん草!N26-N$2 -> -0.017 | O26: =元ほうれん草!O26-O$2 -> -0.017 | P26: =元ほうれん草!P26-P$2 -> -0.005
A27: 323 | B27: =元ほうれん草!B27-B$2 -> 0.002 | C27: =元ほうれん草!C27-C$2 -> -0.16 | D27: =元ほうれん草!D27-D$2 -> -0.094 | E27: =元ほうれん草!E27-E$2 -> 0.179 | F27: =元ほうれん草!F27-F$2 -> 0.26 | G27: =元ほうれん草!G27-G$2 -> 0.113 | H27: =元ほうれん草!H27-H$2 -> 0.078 | I27: =元ほうれん草!I27-I$2 -> 0.041 | J27: =元ほうれん草!J27-J$2 -> 0.007 | K27: =元ほうれん草!K27-K$2 -> -0.009 | L27: =元ほうれん草!L27-L$2 -> -0.023 | M27: =元ほうれん草!M27-M$2 -> -0.02 | N27: =元ほうれん草!N27-N$2 -> -0.015 | O27: =元ほうれん草!O27-O$2 -> -0.018 | P27: =元ほうれん草!P27-P$2 -> 0.002
A28: 324 | B28: =元ほうれん草!B28-B$2 -> 0.016 | C28: =元ほうれん草!C28-C$2 -> -0.144 | D28: =元ほうれん草!D28-D$2 -> -0.081 | E28: =元ほうれん草!E28-E$2 -> 0.2 | F28: =元ほうれん草!F28-F$2 -> 0.278 | G28: =元ほうれん草!G28-G$2 -> 0.124 | H28: =元ほうれん草!H28-H$2 -> 0.086 | I28: =元ほうれん草!I28-I$2 -> 0.051 | J28: =元ほうれん草!J28-J$2 -> 0.011 | K28: =元ほうれん草!K28-K$2 -> -0.004 | L28: =元ほうれん草!L28-L$2 -> -0.02 | M28: =元ほうれん草!M28-M$2 -> -0.019 | N28: =元ほうれん草!N28-N$2 -> -0.016 | O28: =元ほうれん草!O28-O$2 -> -0.015 | P28: =元ほうれん草!P28-P$2 -> 0.008
A29: 325 | B29: =元ほうれん草!B29-B$2 -> 0.025 | C29: =元ほうれん草!C29-C$2 -> -0.121 | D29: =元ほうれん草!D29-D$2 -> -0.062 | E29: =元ほうれん草!E29-E$2 -> 0.215 | F29: =元ほうれん草!F29-F$2 -> 0.293 | G29: =元ほうれん草!G29-G$2 -> 0.133 | H29: =元ほうれん草!H29-H$2 -> 0.095 | I29: =元ほうれん草!I29-I$2 -> 0.061 | J29: =元ほうれん草!J29-J$2 -> 0.015 | K29: =元ほうれん草!K29-K$2 -> -0.001 | L29: =元ほうれん草!L29-L$2 -> -0.017 | M29: =元ほうれん草!M29-M$2 -> -0.016 | N29: =元ほうれん草!N29-N$2 -> -0.012 | O29: =元ほうれん草!O29-O$2 -> -0.012 | P29: =元ほうれん草!P29-P$2 -> 0.012
A30: 326 | B30: =元ほうれん草!B30-B$2 -> 0.032 | C30: =元ほうれん草!C30-C$2 -> -0.098 | D30: =元ほうれん草!D30-D$2 -> -0.04 | E30: =元ほうれん草!E30-E$2 -> 0.228 | F30: =元ほうれん草!F30-F$2 -> 0.304 | G30: =元ほうれん草!G30-G$2 -> 0.14 | H30: =元ほうれん草!H30-H$2 -> 0.102 | I30: =元ほうれん草!I30-I$2 -> 0.067 | J30: =元ほうれん草!J30-J$2 -> 0.019 | K30: =元ほうれん草!K30-K$2 -> 0.001 | L30: =元ほうれん草!L30-L$2 -> -0.015 | M30: =元ほうれん草!M30-M$2 -> -0.014 | N30: =元ほうれん草!N30-N$2 -> -0.011 | O30: =元ほうれん草!O30-O$2 -> -0.009 | P30: =元ほうれん草!P30-P$2 -> 0.012
A31: 327 | B31: =元ほうれん草!B31-B$2 -> 0.037 | C31: =元ほうれん草!C31-C$2 -> -0.079 | D31: =元ほうれん草!D31-D$2 -> -0.025 | E31: =元ほうれん草!E31-E$2 -> 0.236 | F31: =元ほうれん草!F31-F$2 -> 0.311 | G31: =元ほうれん草!G31-G$2 -> 0.146 | H31: =元ほうれん草!H31-H$2 -> 0.105 | I31: =元ほうれん草!I31-I$2 -> 0.071 | J31: =元ほうれん草!J31-J$2 -> 0.022 | K31: =元ほうれん草!K31-K$2 -> 0.003 | L31: =元ほうれん草!L31-L$2 -> -0.014 | M31: =元ほうれん草!M31-M$2 -> -0.012 | N31: =元ほうれん草!N31-N$2 -> -0.011 | O31: =元ほうれん草!O31-O$2 -> -0.008 | P31: =元ほうれん草!P31-P$2 -> 0.013
A32: 328 | B32: =元ほうれん草!B32-B$2 -> 0.044 | C32: =元ほうれん草!C32-C$2 -> -0.063 | D32: =元ほうれん草!D32-D$2 -> -0.011 | E32: =元ほうれん草!E32-E$2 -> 0.245 | F32: =元ほうれん草!F32-F$2 -> 0.318 | G32: =元ほうれん草!G32-G$2 -> 0.152 | H32: =元ほうれん草!H32-H$2 -> 0.108 | I32: =元ほうれん草!I32-I$2 -> 0.075 | J32: =元ほうれん草!J32-J$2 -> 0.026 | K32: =元ほうれん草!K32-K$2 -> 0.005 | L32: =元ほうれん草!L32-L$2 -> -0.012 | M32: =元ほうれん草!M32-M$2 -> -0.009 | N32: =元ほうれん草!N32-N$2 -> -0.011 | O32: =元ほうれん草!O32-O$2 -> -0.006 | P32: =元ほうれん草!P32-P$2 -> 0.014
A33: 329 | B33: =元ほうれん草!B33-B$2 -> 0.048 | C33: =元ほうれん草!C33-C$2 -> -0.049 | D33: =元ほうれん草!D33-D$2 -> 0.002 | E33: =元ほうれん草!E33-E$2 -> 0.251 | F33: =元ほうれん草!F33-F$2 -> 0.323 | G33: =元ほうれん草!G33-G$2 -> 0.156 | H33: =元ほうれん草!H33-H$2 -> 0.113 | I33: =元ほうれん草!I33-I$2 -> 0.079 | J33: =元ほうれん草!J33-J$2 -> 0.027 | K33: =元ほうれん草!K33-K$2 -> 0.006 | L33: =元ほうれん草!L33-L$2 -> -0.011 | M33: =元ほうれん草!M33-M$2 -> -0.008 | N33: =元ほうれん草!N33-N$2 -> -0.012 | O33: =元ほうれん草!O33-O$2 -> -0.005 | P33: =元ほうれん草!P33-P$2 -> 0.013
A34: 330 | B34: =元ほうれん草!B34-B$2 -> 0.051 | C34: =元ほうれん草!C34-C$2 -> -0.039 | D34: =元ほうれん草!D34-D$2 -> 0.01 | E34: =元ほうれん草!E34-E$2 -> 0.255 | F34: =元ほうれん草!F34-F$2 -> 0.324 | G34: =元ほうれん草!G34-G$2 -> 0.16 | H34: =元ほうれん草!H34-H$2 -> 0.114 | I34: =元ほうれん草!I34-I$2 -> 0.081 | J34: =元ほうれん草!J34-J$2 -> 0.029 | K34: =元ほうれん草!K34-K$2 -> 0.007 | L34: =元ほうれん草!L34-L$2 -> -0.011 | M34: =元ほうれん草!M34-M$2 -> -0.007 | N34: =元ほうれん草!N34-N$2 -> -0.012 | O34: =元ほうれん草!O34-O$2 -> -0.004 | P34: =元ほうれん草!P34-P$2 -> 0.012
A35: 331 | B35: =元ほうれん草!B35-B$2 -> 0.054 | C35: =元ほうれん草!C35-C$2 -> -0.029 | D35: =元ほうれん草!D35-D$2 -> 0.018 | E35: =元ほうれん草!E35-E$2 -> 0.258 | F35: =元ほうれん草!F35-F$2 -> 0.324 | G35: =元ほうれん草!G35-G$2 -> 0.163 | H35: =元ほうれん草!H35-H$2 -> 0.117 | I35: =元ほうれん草!I35-I$2 -> 0.082 | J35: =元ほうれん草!J35-J$2 -> 0.03 | K35: =元ほうれん草!K35-K$2 -> 0.007 | L35: =元ほうれん草!L35-L$2 -> -0.01 | M35: =元ほうれん草!M35-M$2 -> -0.007 | N35: =元ほうれん草!N35-N$2 -> -0.012 | O35: =元ほうれん草!O35-O$2 -> -0.004 | P35: =元ほうれん草!P35-P$2 -> 0.012
A36: 332 | B36: =元ほうれん草!B36-B$2 -> 0.056 | C36: =元ほうれん草!C36-C$2 -> -0.021 | D36: =元ほうれん草!D36-D$2 -> 0.025 | E36: =元ほうれん草!E36-E$2 -> 0.259 | F36: =元ほうれん草!F36-F$2 -> 0.325 | G36: =元ほうれん草!G36-G$2 -> 0.165 | H36: =元ほうれん草!H36-H$2 -> 0.119 | I36: =元ほうれん草!I36-I$2 -> 0.085 | J36: =元ほうれん草!J36-J$2 -> 0.03 | K36: =元ほうれん草!K36-K$2 -> 0.008 | L36: =元ほうれん草!L36-L$2 -> -0.01 | M36: =元ほうれん草!M36-M$2 -> -0.005 | N36: =元ほうれん草!N36-N$2 -> -0.012 | O36: =元ほうれん草!O36-O$2 -> -0.004 | P36: =元ほうれん草!P36-P$2 -> 0.011
A37: 333 | B37: =元ほうれん草!B37-B$2 -> 0.055 | C37: =元ほうれん草!C37-C$2 -> -0.015 | D37: =元ほうれん草!D37-D$2 -> 0.031 | E37: =元ほうれん草!E37-E$2 -> 0.258 | F37: =元ほうれん草!F37-F$2 -> 0.324 | G37: =元ほうれん草!G37-G$2 -> 0.166 | H37: =元ほうれん草!H37-H$2 -> 0.119 | I37: =元ほうれん草!I37-I$2 -> 0.087 | J37: =元ほうれん草!J37-J$2 -> 0.031 | K37: =元ほうれん草!K37-K$2 -> 0.008 | L37: =元ほうれん草!L37-L$2 -> -0.01 | M37: =元ほうれん草!M37-M$2 -> -0.005 | N37: =元ほうれん草!N37-N$2 -> -0.012 | O37: =元ほうれん草!O37-O$2 -> -0.004 | P37: =元ほうれん草!P37-P$2 -> 0.009
A38: 334 | B38: =元ほうれん草!B38-B$2 -> 0.055 | C38: =元ほうれん草!C38-C$2 -> -0.011 | D38: =元ほうれん草!D38-D$2 -> 0.035 | E38: =元ほうれん草!E38-E$2 -> 0.257 | F38: =元ほうれん草!F38-F$2 -> 0.321 | G38: =元ほうれん草!G38-G$2 -> 0.166 | H38: =元ほうれん草!H38-H$2 -> 0.119 | I38: =元ほうれん草!I38-I$2 -> 0.087 | J38: =元ほうれん草!J38-J$2 -> 0.032 | K38: =元ほうれん草!K38-K$2 -> 0.007 | L38: =元ほうれん草!L38-L$2 -> -0.01 | M38: =元ほうれん草!M38-M$2 -> -0.006 | N38: =元ほうれん草!N38-N$2 -> -0.014 | O38: =元ほうれん草!O38-O$2 -> -0.004 | P38: =元ほうれん草!P38-P$2 -> 0.008
A39: 335 | B39: =元ほうれん草!B39-B$2 -> 0.058 | C39: =元ほうれん草!C39-C$2 -> -0.008 | D39: =元ほうれん草!D39-D$2 -> 0.039 | E39: =元ほうれん草!E39-E$2 -> 0.256 | F39: =元ほうれん草!F39-F$2 -> 0.319 | G39: =元ほうれん草!G39-G$2 -> 0.166 | H39: =元ほうれん草!H39-H$2 -> 0.119 | I39: =元ほうれん草!I39-I$2 -> 0.086 | J39: =元ほうれん草!J39-J$2 -> 0.032 | K39: =元ほうれん草!K39-K$2 -> 0.009 | L39: =元ほうれん草!L39-L$2 -> -0.009 | M39: =元ほうれん草!M39-M$2 -> -0.007 | N39: =元ほうれん草!N39-N$2 -> -0.014 | O39: =元ほうれん草!O39-O$2 -> -0.004 | P39: =元ほうれん草!P39-P$2 -> 0.008
A40: 336 | B40: =元ほうれん草!B40-B$2 -> 0.062 | C40: =元ほうれん草!C40-C$2 -> -0.004 | D40: =元ほうれん草!D40-D$2 -> 0.042 | E40: =元ほうれん草!E40-E$2 -> 0.255 | F40: =元ほうれん草!F40-F$2 -> 0.316 | G40: =元ほうれん草!G40-G$2 -> 0.166 | H40: =元ほうれん草!H40-H$2 -> 0.12 | I40: =元ほうれん草!I40-I$2 -> 0.087 | J40: =元ほうれん草!J40-J$2 -> 0.033 | K40: =元ほうれん草!K40-K$2 -> 0.009 | L40: =元ほうれん草!L40-L$2 -> -0.008 | M40: =元ほうれん草!M40-M$2 -> -0.007 | N40: =元ほうれん草!N40-N$2 -> -0.013 | O40: =元ほうれん草!O40-O$2 -> -0.004 | P40: =元ほうれん草!P40-P$2 -> 0.008
A41: 337 | B41: =元ほうれん草!B41-B$2 -> 0.061 | C41: =元ほうれん草!C41-C$2 -> -0.003 | D41: =元ほうれん草!D41-D$2 -> 0.044 | E41: =元ほうれん草!E41-E$2 -> 0.253 | F41: =元ほうれん草!F41-F$2 -> 0.314 | G41: =元ほうれん草!G41-G$2 -> 0.165 | H41: =元ほうれん草!H41-H$2 -> 0.121 | I41: =元ほうれん草!I41-I$2 -> 0.088 | J41: =元ほうれん草!J41-J$2 -> 0.032 | K41: =元ほうれん草!K41-K$2 -> 0.008 | L41: =元ほうれん草!L41-L$2 -> -0.008 | M41: =元ほうれん草!M41-M$2 -> -0.008 | N41: =元ほうれん草!N41-N$2 -> -0.014 | O41: =元ほうれん草!O41-O$2 -> -0.005 | P41: =元ほうれん草!P41-P$2 -> 0.006
A42: 338 | B42: =元ほうれん草!B42-B$2 -> 0.061 | C42: =元ほうれん草!C42-C$2 -> -0.001 | D42: =元ほうれん草!D42-D$2 -> 0.046 | E42: =元ほうれん草!E42-E$2 -> 0.25 | F42: =元ほうれん草!F42-F$2 -> 0.311 | G42: =元ほうれん草!G42-G$2 -> 0.164 | H42: =元ほうれん草!H42-H$2 -> 0.119 | I42: =元ほうれん草!I42-I$2 -> 0.086 | J42: =元ほうれん草!J42-J$2 -> 0.03 | K42: =元ほうれん草!K42-K$2 -> 0.006 | L42: =元ほうれん草!L42-L$2 -> -0.01 | M42: =元ほうれん草!M42-M$2 -> -0.009 | N42: =元ほうれん草!N42-N$2 -> -0.014 | O42: =元ほうれん草!O42-O$2 -> -0.006 | P42: =元ほうれん草!P42-P$2 -> 0.005
A43: 339 | B43: =元ほうれん草!B43-B$2 -> 0.063 | C43: =元ほうれん草!C43-C$2 -> 0.001 | D43: =元ほうれん草!D43-D$2 -> 0.049 | E43: =元ほうれん草!E43-E$2 -> 0.249 | F43: =元ほうれん草!F43-F$2 -> 0.308 | G43: =元ほうれん草!G43-G$2 -> 0.165 | H43: =元ほうれん草!H43-H$2 -> 0.119 | I43: =元ほうれん草!I43-I$2 -> 0.086 | J43: =元ほうれん草!J43-J$2 -> 0.03 | K43: =元ほうれん草!K43-K$2 -> 0.007 | L43: =元ほうれん草!L43-L$2 -> -0.009 | M43: =元ほうれん草!M43-M$2 -> -0.009 | N43: =元ほうれん草!N43-N$2 -> -0.014 | O43: =元ほうれん草!O43-O$2 -> -0.005 | P43: =元ほうれん草!P43-P$2 -> 0.005
A44: 340 | B44: =元ほうれん草!B44-B$2 -> 0.065 | C44: =元ほうれん草!C44-C$2 -> 0.003 | D44: =元ほうれん草!D44-D$2 -> 0.051 | E44: =元ほうれん草!E44-E$2 -> 0.249 | F44: =元ほうれん草!F44-F$2 -> 0.305 | G44: =元ほうれん草!G44-G$2 -> 0.164 | H44: =元ほうれん草!H44-H$2 -> 0.119 | I44: =元ほうれん草!I44-I$2 -> 0.086 | J44: =元ほうれん草!J44-J$2 -> 0.031 | K44: =元ほうれん草!K44-K$2 -> 0.008 | L44: =元ほうれん草!L44-L$2 -> -0.009 | M44: =元ほうれん草!M44-M$2 -> -0.009 | N44: =元ほうれん草!N44-N$2 -> -0.014 | O44: =元ほうれん草!O44-O$2 -> -0.005 | P44: =元ほうれん草!P44-P$2 -> 0.005
A45: 341 | B45: =元ほうれん草!B45-B$2 -> 0.065 | C45: =元ほうれん草!C45-C$2 -> 0.003 | D45: =元ほうれん草!D45-D$2 -> 0.052 | E45: =元ほうれん草!E45-E$2 -> 0.248 | F45: =元ほうれん草!F45-F$2 -> 0.303 | G45: =元ほうれん草!G45-G$2 -> 0.163 | H45: =元ほうれん草!H45-H$2 -> 0.117 | I45: =元ほうれん草!I45-I$2 -> 0.086 | J45: =元ほうれん草!J45-J$2 -> 0.031 | K45: =元ほうれん草!K45-K$2 -> 0.008 | L45: =元ほうれん草!L45-L$2 -> -0.009 | M45: =元ほうれん草!M45-M$2 -> -0.01 | N45: =元ほうれん草!N45-N$2 -> -0.014 | O45: =元ほうれん草!O45-O$2 -> -0.005 | P45: =元ほうれん草!P45-P$2 -> 0.005
A46: 342 | B46: =元ほうれん草!B46-B$2 -> 0.064 | C46: =元ほうれん草!C46-C$2 -> 0.003 | D46: =元ほうれん草!D46-D$2 -> 0.054 | E46: =元ほうれん草!E46-E$2 -> 0.246 | F46: =元ほうれん草!F46-F$2 -> 0.303 | G46: =元ほうれん草!G46-G$2 -> 0.161 | H46: =元ほうれん草!H46-H$2 -> 0.116 | I46: =元ほうれん草!I46-I$2 -> 0.085 | J46: =元ほうれん草!J46-J$2 -> 0.029 | K46: =元ほうれん草!K46-K$2 -> 0.007 | L46: =元ほうれん草!L46-L$2 -> -0.009 | M46: =元ほうれん草!M46-M$2 -> -0.01 | N46: =元ほうれん草!N46-N$2 -> -0.015 | O46: =元ほうれん草!O46-O$2 -> -0.006 | P46: =元ほうれん草!P46-P$2 -> 0.004
A47: 343 | B47: =元ほうれん草!B47-B$2 -> 0.064 | C47: =元ほうれん草!C47-C$2 -> 0.004 | D47: =元ほうれん草!D47-D$2 -> 0.055 | E47: =元ほうれん草!E47-E$2 -> 0.247 | F47: =元ほうれん草!F47-F$2 -> 0.304 | G47: =元ほうれん草!G47-G$2 -> 0.16 | H47: =元ほうれん草!H47-H$2 -> 0.114 | I47: =元ほうれん草!I47-I$2 -> 0.083 | J47: =元ほうれん草!J47-J$2 -> 0.029 | K47: =元ほうれん草!K47-K$2 -> 0.006 | L47: =元ほうれん草!L47-L$2 -> -0.009 | M47: =元ほうれん草!M47-M$2 -> -0.011 | N47: =元ほうれん草!N47-N$2 -> -0.015 | O47: =元ほうれん草!O47-O$2 -> -0.007 | P47: =元ほうれん草!P47-P$2 -> 0.004
A48: 344 | B48: =元ほうれん草!B48-B$2 -> 0.065 | C48: =元ほうれん草!C48-C$2 -> 0.005 | D48: =元ほうれん草!D48-D$2 -> 0.057 | E48: =元ほうれん草!E48-E$2 -> 0.247 | F48: =元ほうれん草!F48-F$2 -> 0.304 | G48: =元ほうれん草!G48-G$2 -> 0.159 | H48: =元ほうれん草!H48-H$2 -> 0.112 | I48: =元ほうれん草!I48-I$2 -> 0.082 | J48: =元ほうれん草!J48-J$2 -> 0.028 | K48: =元ほうれん草!K48-K$2 -> 0.006 | L48: =元ほうれん草!L48-L$2 -> -0.009 | M48: =元ほうれん草!M48-M$2 -> -0.012 | N48: =元ほうれん草!N48-N$2 -> -0.015 | O48: =元ほうれん草!O48-O$2 -> -0.007 | P48: =元ほうれん草!P48-P$2 -> 0.004
A49: 345 | B49: =元ほうれん草!B49-B$2 -> 0.065 | C49: =元ほうれん草!C49-C$2 -> 0.004 | D49: =元ほうれん草!D49-D$2 -> 0.058 | E49: =元ほうれん草!E49-E$2 -> 0.248 | F49: =元ほうれん草!F49-F$2 -> 0.305 | G49: =元ほうれん草!G49-G$2 -> 0.157 | H49: =元ほうれん草!H49-H$2 -> 0.11 | I49: =元ほうれん草!I49-I$2 -> 0.081 | J49: =元ほうれん草!J49-J$2 -> 0.027 | K49: =元ほうれん草!K49-K$2 -> 0.005 | L49: =元ほうれん草!L49-L$2 -> -0.009 | M49: =元ほうれん草!M49-M$2 -> -0.012 | N49: =元ほうれん草!N49-N$2 -> -0.015 | O49: =元ほうれん草!O49-O$2 -> -0.008 | P49: =元ほうれん草!P49-P$2 -> 0.004
A50: 346 | B50: =元ほうれん草!B50-B$2 -> 0.065 | C50: =元ほうれん草!C50-C$2 -> 0.004 | D50: =元ほうれん草!D50-D$2 -> 0.06 | E50: =元ほうれん草!E50-E$2 -> 0.251 | F50: =元ほうれん草!F50-F$2 -> 0.308 | G50: =元ほうれん草!G50-G$2 -> 0.155 | H50: =元ほうれん草!H50-H$2 -> 0.108 | I50: =元ほうれん草!I50-I$2 -> 0.08 | J50: =元ほうれん草!J50-J$2 -> 0.027 | K50: =元ほうれん草!K50-K$2 -> 0.005 | L50: =元ほうれん草!L50-L$2 -> -0.009 | M50: =元ほうれん草!M50-M$2 -> -0.012 | N50: =元ほうれん草!N50-N$2 -> -0.015 | O50: =元ほうれん草!O50-O$2 -> -0.008 | P50: =元ほうれん草!P50-P$2 -> 0.004
A51: 347 | B51: =元ほうれん草!B51-B$2 -> 0.064 | C51: =元ほうれん草!C51-C$2 -> 0.005 | D51: =元ほうれん草!D51-D$2 -> 0.063 | E51: =元ほうれん草!E51-E$2 -> 0.254 | F51: =元ほうれん草!F51-F$2 -> 0.311 | G51: =元ほうれん草!G51-G$2 -> 0.155 | H51: =元ほうれん草!H51-H$2 -> 0.107 | I51: =元ほうれん草!I51-I$2 -> 0.079 | J51: =元ほうれん草!J51-J$2 -> 0.027 | K51: =元ほうれん草!K51-K$2 -> 0.005 | L51: =元ほうれん草!L51-L$2 -> -0.009 | M51: =元ほうれん草!M51-M$2 -> -0.013 | N51: =元ほうれん草!N51-N$2 -> -0.015 | O51: =元ほうれん草!O51-O$2 -> -0.007 | P51: =元ほうれん草!P51-P$2 -> 0.005
A52: 348 | B52: =元ほうれん草!B52-B$2 -> 0.064 | C52: =元ほうれん草!C52-C$2 -> 0.005 | D52: =元ほうれん草!D52-D$2 -> 0.065 | E52: =元ほうれん草!E52-E$2 -> 0.259 | F52: =元ほうれん草!F52-F$2 -> 0.314 | G52: =元ほうれん草!G52-G$2 -> 0.154 | H52: =元ほうれん草!H52-H$2 -> 0.105 | I52: =元ほうれん草!I52-I$2 -> 0.078 | J52: =元ほうれん草!J52-J$2 -> 0.027 | K52: =元ほうれん草!K52-K$2 -> 0.005 | L52: =元ほうれん草!L52-L$2 -> -0.009 | M52: =元ほうれん草!M52-M$2 -> -0.013 | N52: =元ほうれん草!N52-N$2 -> -0.015 | O52: =元ほうれん草!O52-O$2 -> -0.008 | P52: =元ほうれん草!P52-P$2 -> 0.005
A53: 349 | B53: =元ほうれん草!B53-B$2 -> 0.064 | C53: =元ほうれん草!C53-C$2 -> 0.005 | D53: =元ほうれん草!D53-D$2 -> 0.067 | E53: =元ほうれん草!E53-E$2 -> 0.263 | F53: =元ほうれん草!F53-F$2 -> 0.319 | G53: =元ほうれん草!G53-G$2 -> 0.154 | H53: =元ほうれん草!H53-H$2 -> 0.104 | I53: =元ほうれん草!I53-I$2 -> 0.077 | J53: =元ほうれん草!J53-J$2 -> 0.027 | K53: =元ほうれん草!K53-K$2 -> 0.005 | L53: =元ほうれん草!L53-L$2 -> -0.009 | M53: =元ほうれん草!M53-M$2 -> -0.013 | N53: =元ほうれん草!N53-N$2 -> -0.015 | O53: =元ほうれん草!O53-O$2 -> -0.008 | P53: =元ほうれん草!P53-P$2 -> 0.005
A54: 350 | B54: =元ほうれん草!B54-B$2 -> 0.064 | C54: =元ほうれん草!C54-C$2 -> 0.005 | D54: =元ほうれん草!D54-D$2 -> 0.07 | E54: =元ほうれん草!E54-E$2 -> 0.269 | F54: =元ほうれん草!F54-F$2 -> 0.326 | G54: =元ほうれん草!G54-G$2 -> 0.155 | H54: =元ほうれん草!H54-H$2 -> 0.103 | I54: =元ほうれん草!I54-I$2 -> 0.077 | J54: =元ほうれん草!J54-J$2 -> 0.026 | K54: =元ほうれん草!K54-K$2 -> 0.005 | L54: =元ほうれん草!L54-L$2 -> -0.009 | M54: =元ほうれん草!M54-M$2 -> -0.012 | N54: =元ほうれん草!N54-N$2 -> -0.014 | O54: =元ほうれん草!O54-O$2 -> -0.008 | P54: =元ほうれん草!P54-P$2 -> 0.005
A55: 351 | B55: =元ほうれん草!B55-B$2 -> 0.065 | C55: =元ほうれん草!C55-C$2 -> 0.006 | D55: =元ほうれん草!D55-D$2 -> 0.072 | E55: =元ほうれん草!E55-E$2 -> 0.276 | F55: =元ほうれん草!F55-F$2 -> 0.335 | G55: =元ほうれん草!G55-G$2 -> 0.156 | H55: =元ほうれん草!H55-H$2 -> 0.102 | I55: =元ほうれん草!I55-I$2 -> 0.076 | J55: =元ほうれん草!J55-J$2 -> 0.026 | K55: =元ほうれん草!K55-K$2 -> 0.005 | L55: =元ほうれん草!L55-L$2 -> -0.008 | M55: =元ほうれん草!M55-M$2 -> -0.013 | N55: =元ほうれん草!N55-N$2 -> -0.013 | O55: =元ほうれん草!O55-O$2 -> -0.007 | P55: =元ほうれん草!P55-P$2 -> 0.006
A56: 352 | B56: =元ほうれん草!B56-B$2 -> 0.065 | C56: =元ほうれん草!C56-C$2 -> 0.005 | D56: =元ほうれん草!D56-D$2 -> 0.073 | E56: =元ほうれん草!E56-E$2 -> 0.281 | F56: =元ほうれん草!F56-F$2 -> 0.342 | G56: =元ほうれん草!G56-G$2 -> 0.156 | H56: =元ほうれん草!H56-H$2 -> 0.102 | I56: =元ほうれん草!I56-I$2 -> 0.076 | J56: =元ほうれん草!J56-J$2 -> 0.025 | K56: =元ほうれん草!K56-K$2 -> 0.005 | L56: =元ほうれん草!L56-L$2 -> -0.009 | M56: =元ほうれん草!M56-M$2 -> -0.014 | N56: =元ほうれん草!N56-N$2 -> -0.014 | O56: =元ほうれん草!O56-O$2 -> -0.007 | P56: =元ほうれん草!P56-P$2 -> 0.006
A57: 353 | B57: =元ほうれん草!B57-B$2 -> 0.065 | C57: =元ほうれん草!C57-C$2 -> 0.005 | D57: =元ほうれん草!D57-D$2 -> 0.075 | E57: =元ほうれん草!E57-E$2 -> 0.288 | F57: =元ほうれん草!F57-F$2 -> 0.349 | G57: =元ほうれん草!G57-G$2 -> 0.157 | H57: =元ほうれん草!H57-H$2 -> 0.101 | I57: =元ほうれん草!I57-I$2 -> 0.076 | J57: =元ほうれん草!J57-J$2 -> 0.025 | K57: =元ほうれん草!K57-K$2 -> 0.005 | L57: =元ほうれん草!L57-L$2 -> -0.009 | M57: =元ほうれん草!M57-M$2 -> -0.014 | N57: =元ほうれん草!N57-N$2 -> -0.015 | O57: =元ほうれん草!O57-O$2 -> -0.007 | P57: =元ほうれん草!P57-P$2 -> 0.006
A58: 354 | B58: =元ほうれん草!B58-B$2 -> 0.065 | C58: =元ほうれん草!C58-C$2 -> 0.005 | D58: =元ほうれん草!D58-D$2 -> 0.079 | E58: =元ほうれん草!E58-E$2 -> 0.296 | F58: =元ほうれん草!F58-F$2 -> 0.359 | G58: =元ほうれん草!G58-G$2 -> 0.159 | H58: =元ほうれん草!H58-H$2 -> 0.101 | I58: =元ほうれん草!I58-I$2 -> 0.076 | J58: =元ほうれん草!J58-J$2 -> 0.026 | K58: =元ほうれん草!K58-K$2 -> 0.005 | L58: =元ほうれん草!L58-L$2 -> -0.009 | M58: =元ほうれん草!M58-M$2 -> -0.014 | N58: =元ほうれん草!N58-N$2 -> -0.014 | O58: =元ほうれん草!O58-O$2 -> -0.007 | P58: =元ほうれん草!P58-P$2 -> 0.006
A59: 355 | B59: =元ほうれん草!B59-B$2 -> 0.065 | C59: =元ほうれん草!C59-C$2 -> 0.005 | D59: =元ほうれん草!D59-D$2 -> 0.081 | E59: =元ほうれん草!E59-E$2 -> 0.303 | F59: =元ほうれん草!F59-F$2 -> 0.367 | G59: =元ほうれん草!G59-G$2 -> 0.161 | H59: =元ほうれん草!H59-H$2 -> 0.102 | I59: =元ほうれん草!I59-I$2 -> 0.077 | J59: =元ほうれん草!J59-J$2 -> 0.027 | K59: =元ほうれん草!K59-K$2 -> 0.006 | L59: =元ほうれん草!L59-L$2 -> -0.008 | M59: =元ほうれん草!M59-M$2 -> -0.013 | N59: =元ほうれん草!N59-N$2 -> -0.014 | O59: =元ほうれん草!O59-O$2 -> -0.007 | P59: =元ほうれん草!P59-P$2 -> 0.007
A60: 356 | B60: =元ほうれん草!B60-B$2 -> 0.065 | C60: =元ほうれん草!C60-C$2 -> 0.006 | D60: =元ほうれん草!D60-D$2 -> 0.084 | E60: =元ほうれん草!E60-E$2 -> 0.309 | F60: =元ほうれん草!F60-F$2 -> 0.375 | G60: =元ほうれん草!G60-G$2 -> 0.163 | H60: =元ほうれん草!H60-H$2 -> 0.102 | I60: =元ほうれん草!I60-I$2 -> 0.077 | J60: =元ほうれん草!J60-J$2 -> 0.027 | K60: =元ほうれん草!K60-K$2 -> 0.006 | L60: =元ほうれん草!L60-L$2 -> -0.008 | M60: =元ほうれん草!M60-M$2 -> -0.013 | N60: =元ほうれん草!N60-N$2 -> -0.014 | O60: =元ほうれん草!O60-O$2 -> -0.007 | P60: =元ほうれん草!P60-P$2 -> 0.006
A61: 357 | B61: =元ほうれん草!B61-B$2 -> 0.066 | C61: =元ほうれん草!C61-C$2 -> 0.006 | D61: =元ほうれん草!D61-D$2 -> 0.086 | E61: =元ほうれん草!E61-E$2 -> 0.317 | F61: =元ほうれん草!F61-F$2 -> 0.383 | G61: =元ほうれん草!G61-G$2 -> 0.166 | H61: =元ほうれん草!H61-H$2 -> 0.102 | I61: =元ほうれん草!I61-I$2 -> 0.078 | J61: =元ほうれん草!J61-J$2 -> 0.028 | K61: =元ほうれん草!K61-K$2 -> 0.007 | L61: =元ほうれん草!L61-L$2 -> -0.008 | M61: =元ほうれん草!M61-M$2 -> -0.014 | N61: =元ほうれん草!N61-N$2 -> -0.014 | O61: =元ほうれん草!O61-O$2 -> -0.006 | P61: =元ほうれん草!P61-P$2 -> 0.007
A62: 358 | B62: =元ほうれん草!B62-B$2 -> 0.067 | C62: =元ほうれん草!C62-C$2 -> 0.007 | D62: =元ほうれん草!D62-D$2 -> 0.089 | E62: =元ほうれん草!E62-E$2 -> 0.325 | F62: =元ほうれん草!F62-F$2 -> 0.391 | G62: =元ほうれん草!G62-G$2 -> 0.167 | H62: =元ほうれん草!H62-H$2 -> 0.103 | I62: =元ほうれん草!I62-I$2 -> 0.078 | J62: =元ほうれん草!J62-J$2 -> 0.028 | K62: =元ほうれん草!K62-K$2 -> 0.007 | L62: =元ほうれん草!L62-L$2 -> -0.008 | M62: =元ほうれん草!M62-M$2 -> -0.014 | N62: =元ほうれん草!N62-N$2 -> -0.014 | O62: =元ほうれん草!O62-O$2 -> -0.006 | P62: =元ほうれん草!P62-P$2 -> 0.007
A63: 359 | B63: =元ほうれん草!B63-B$2 -> 0.068 | C63: =元ほうれん草!C63-C$2 -> 0.007 | D63: =元ほうれん草!D63-D$2 -> 0.092 | E63: =元ほうれん草!E63-E$2 -> 0.332 | F63: =元ほうれん草!F63-F$2 -> 0.4 | G63: =元ほうれん草!G63-G$2 -> 0.169 | H63: =元ほうれん草!H63-H$2 -> 0.103 | I63: =元ほうれん草!I63-I$2 -> 0.079 | J63: =元ほうれん草!J63-J$2 -> 0.029 | K63: =元ほうれん草!K63-K$2 -> 0.008 | L63: =元ほうれん草!L63-L$2 -> -0.007 | M63: =元ほうれん草!M63-M$2 -> -0.013 | N63: =元ほうれん草!N63-N$2 -> -0.013 | O63: =元ほうれん草!O63-O$2 -> -0.005 | P63: =元ほうれん草!P63-P$2 -> 0.007
A64: 360 | B64: =元ほうれん草!B64-B$2 -> 0.069 | C64: =元ほうれん草!C64-C$2 -> 0.007 | D64: =元ほうれん草!D64-D$2 -> 0.095 | E64: =元ほうれん草!E64-E$2 -> 0.339 | F64: =元ほうれん草!F64-F$2 -> 0.408 | G64: =元ほうれん草!G64-G$2 -> 0.17 | H64: =元ほうれん草!H64-H$2 -> 0.103 | I64: =元ほうれん草!I64-I$2 -> 0.079 | J64: =元ほうれん草!J64-J$2 -> 0.03 | K64: =元ほうれん草!K64-K$2 -> 0.008 | L64: =元ほうれん草!L64-L$2 -> -0.007 | M64: =元ほうれん草!M64-M$2 -> -0.013 | N64: =元ほうれん草!N64-N$2 -> -0.013 | O64: =元ほうれん草!O64-O$2 -> -0.005 | P64: =元ほうれん草!P64-P$2 -> 0.007
A65: 361 | B65: =元ほうれん草!B65-B$2 -> 0.071 | C65: =元ほうれん草!C65-C$2 -> 0.007 | D65: =元ほうれん草!D65-D$2 -> 0.099 | E65: =元ほうれん草!E65-E$2 -> 0.346 | F65: =元ほうれん草!F65-F$2 -> 0.416 | G65: =元ほうれん草!G65-G$2 -> 0.172 | H65: =元ほうれん草!H65-H$2 -> 0.103 | I65: =元ほうれん草!I65-I$2 -> 0.079 | J65: =元ほうれん草!J65-J$2 -> 0.032 | K65: =元ほうれん草!K65-K$2 -> 0.009 | L65: =元ほうれん草!L65-L$2 -> -0.007 | M65: =元ほうれん草!M65-M$2 -> -0.013 | N65: =元ほうれん草!N65-N$2 -> -0.013 | O65: =元ほうれん草!O65-O$2 -> -0.005 | P65: =元ほうれん草!P65-P$2 -> 0.009
A66: 362 | B66: =元ほうれん草!B66-B$2 -> 0.072 | C66: =元ほうれん草!C66-C$2 -> 0.008 | D66: =元ほうれん草!D66-D$2 -> 0.102 | E66: =元ほうれん草!E66-E$2 -> 0.354 | F66: =元ほうれん草!F66-F$2 -> 0.426 | G66: =元ほうれん草!G66-G$2 -> 0.174 | H66: =元ほうれん草!H66-H$2 -> 0.103 | I66: =元ほうれん草!I66-I$2 -> 0.08 | J66: =元ほうれん草!J66-J$2 -> 0.033 | K66: =元ほうれん草!K66-K$2 -> 0.009 | L66: =元ほうれん草!L66-L$2 -> -0.007 | M66: =元ほうれん草!M66-M$2 -> -0.013 | N66: =元ほうれん草!N66-N$2 -> -0.013 | O66: =元ほうれん草!O66-O$2 -> -0.004 | P66: =元ほうれん草!P66-P$2 -> 0.009
A67: 363 | B67: =元ほうれん草!B67-B$2 -> 0.072 | C67: =元ほうれん草!C67-C$2 -> 0.008 | D67: =元ほうれん草!D67-D$2 -> 0.105 | E67: =元ほうれん草!E67-E$2 -> 0.362 | F67: =元ほうれん草!F67-F$2 -> 0.434 | G67: =元ほうれん草!G67-G$2 -> 0.174 | H67: =元ほうれん草!H67-H$2 -> 0.103 | I67: =元ほうれん草!I67-I$2 -> 0.081 | J67: =元ほうれん草!J67-J$2 -> 0.034 | K67: =元ほうれん草!K67-K$2 -> 0.01 | L67: =元ほうれん草!L67-L$2 -> -0.006 | M67: =元ほうれん草!M67-M$2 -> -0.013 | N67: =元ほうれん草!N67-N$2 -> -0.013 | O67: =元ほうれん草!O67-O$2 -> -0.004 | P67: =元ほうれん草!P67-P$2 -> 0.01
A68: 364 | B68: =元ほうれん草!B68-B$2 -> 0.075 | C68: =元ほうれん草!C68-C$2 -> 0.008 | D68: =元ほうれん草!D68-D$2 -> 0.108 | E68: =元ほうれん草!E68-E$2 -> 0.37 | F68: =元ほうれん草!F68-F$2 -> 0.443 | G68: =元ほうれん草!G68-G$2 -> 0.176 | H68: =元ほうれん草!H68-H$2 -> 0.103 | I68: =元ほうれん草!I68-I$2 -> 0.082 | J68: =元ほうれん草!J68-J$2 -> 0.035 | K68: =元ほうれん草!K68-K$2 -> 0.011 | L68: =元ほうれん草!L68-L$2 -> -0.006 | M68: =元ほうれん草!M68-M$2 -> -0.012 | N68: =元ほうれん草!N68-N$2 -> -0.012 | O68: =元ほうれん草!O68-O$2 -> -0.004 | P68: =元ほうれん草!P68-P$2 -> 0.011
A69: 365 | B69: =元ほうれん草!B69-B$2 -> 0.077 | C69: =元ほうれん草!C69-C$2 -> 0.008 | D69: =元ほうれん草!D69-D$2 -> 0.111 | E69: =元ほうれん草!E69-E$2 -> 0.378 | F69: =元ほうれん草!F69-F$2 -> 0.452 | G69: =元ほうれん草!G69-G$2 -> 0.177 | H69: =元ほうれん草!H69-H$2 -> 0.102 | I69: =元ほうれん草!I69-I$2 -> 0.083 | J69: =元ほうれん草!J69-J$2 -> 0.036 | K69: =元ほうれん草!K69-K$2 -> 0.012 | L69: =元ほうれん草!L69-L$2 -> -0.006 | M69: =元ほうれん草!M69-M$2 -> -0.012 | N69: =元ほうれん草!N69-N$2 -> -0.011 | O69: =元ほうれん草!O69-O$2 -> -0.003 | P69: =元ほうれん草!P69-P$2 -> 0.011
A70: 366 | B70: =元ほうれん草!B70-B$2 -> 0.079 | C70: =元ほうれん草!C70-C$2 -> 0.009 | D70: =元ほうれん草!D70-D$2 -> 0.115 | E70: =元ほうれん草!E70-E$2 -> 0.387 | F70: =元ほうれん草!F70-F$2 -> 0.463 | G70: =元ほうれん草!G70-G$2 -> 0.179 | H70: =元ほうれん草!H70-H$2 -> 0.102 | I70: =元ほうれん草!I70-I$2 -> 0.083 | J70: =元ほうれん草!J70-J$2 -> 0.038 | K70: =元ほうれん草!K70-K$2 -> 0.013 | L70: =元ほうれん草!L70-L$2 -> -0.005 | M70: =元ほうれん草!M70-M$2 -> -0.012 | N70: =元ほうれん草!N70-N$2 -> -0.011 | O70: =元ほうれん草!O70-O$2 -> -0.003 | P70: =元ほうれん草!P70-P$2 -> 0.012
A71: 367 | B71: =元ほうれん草!B71-B$2 -> 0.08 | C71: =元ほうれん草!C71-C$2 -> 0.009 | D71: =元ほうれん草!D71-D$2 -> 0.117 | E71: =元ほうれん草!E71-E$2 -> 0.396 | F71: =元ほうれん草!F71-F$2 -> 0.473 | G71: =元ほうれん草!G71-G$2 -> 0.18 | H71: =元ほうれん草!H71-H$2 -> 0.101 | I71: =元ほうれん草!I71-I$2 -> 0.084 | J71: =元ほうれん草!J71-J$2 -> 0.039 | K71: =元ほうれん草!K71-K$2 -> 0.013 | L71: =元ほうれん草!L71-L$2 -> -0.006 | M71: =元ほうれん草!M71-M$2 -> -0.012 | N71: =元ほうれん草!N71-N$2 -> -0.012 | O71: =元ほうれん草!O71-O$2 -> -0.003 | P71: =元ほうれん草!P71-P$2 -> 0.012
A72: 368 | B72: =元ほうれん草!B72-B$2 -> 0.081 | C72: =元ほうれん草!C72-C$2 -> 0.01 | D72: =元ほうれん草!D72-D$2 -> 0.119 | E72: =元ほうれん草!E72-E$2 -> 0.405 | F72: =元ほうれん草!F72-F$2 -> 0.481 | G72: =元ほうれん草!G72-G$2 -> 0.181 | H72: =元ほうれん草!H72-H$2 -> 0.1 | I72: =元ほうれん草!I72-I$2 -> 0.085 | J72: =元ほうれん草!J72-J$2 -> 0.04 | K72: =元ほうれん草!K72-K$2 -> 0.014 | L72: =元ほうれん草!L72-L$2 -> -0.006 | M72: =元ほうれん草!M72-M$2 -> -0.012 | N72: =元ほうれん草!N72-N$2 -> -0.012 | O72: =元ほうれん草!O72-O$2 -> -0.003 | P72: =元ほうれん草!P72-P$2 -> 0.012
A73: 369 | B73: =元ほうれん草!B73-B$2 -> 0.083 | C73: =元ほうれん草!C73-C$2 -> 0.01 | D73: =元ほうれん草!D73-D$2 -> 0.122 | E73: =元ほうれん草!E73-E$2 -> 0.414 | F73: =元ほうれん草!F73-F$2 -> 0.49 | G73: =元ほうれん草!G73-G$2 -> 0.182 | H73: =元ほうれん草!H73-H$2 -> 0.1 | I73: =元ほうれん草!I73-I$2 -> 0.085 | J73: =元ほうれん草!J73-J$2 -> 0.041 | K73: =元ほうれん草!K73-K$2 -> 0.015 | L73: =元ほうれん草!L73-L$2 -> -0.005 | M73: =元ほうれん草!M73-M$2 -> -0.012 | N73: =元ほうれん草!N73-N$2 -> -0.011 | O73: =元ほうれん草!O73-O$2 -> -0.002 | P73: =元ほうれん草!P73-P$2 -> 0.012
A74: 370 | B74: =元ほうれん草!B74-B$2 -> 0.086 | C74: =元ほうれん草!C74-C$2 -> 0.01 | D74: =元ほうれん草!D74-D$2 -> 0.125 | E74: =元ほうれん草!E74-E$2 -> 0.423 | F74: =元ほうれん草!F74-F$2 -> 0.501 | G74: =元ほうれん草!G74-G$2 -> 0.183 | H74: =元ほうれん草!H74-H$2 -> 0.1 | I74: =元ほうれん草!I74-I$2 -> 0.086 | J74: =元ほうれん草!J74-J$2 -> 0.044 | K74: =元ほうれん草!K74-K$2 -> 0.016 | L74: =元ほうれん草!L74-L$2 -> -0.004 | M74: =元ほうれん草!M74-M$2 -> -0.011 | N74: =元ほうれん草!N74-N$2 -> -0.01 | O74: =元ほうれん草!O74-O$2 -> -0.002 | P74: =元ほうれん草!P74-P$2 -> 0.014
A75: 371 | B75: =元ほうれん草!B75-B$2 -> 0.089 | C75: =元ほうれん草!C75-C$2 -> 0.01 | D75: =元ほうれん草!D75-D$2 -> 0.127 | E75: =元ほうれん草!E75-E$2 -> 0.432 | F75: =元ほうれん草!F75-F$2 -> 0.513 | G75: =元ほうれん草!G75-G$2 -> 0.185 | H75: =元ほうれん草!H75-H$2 -> 0.1 | I75: =元ほうれん草!I75-I$2 -> 0.088 | J75: =元ほうれん草!J75-J$2 -> 0.045 | K75: =元ほうれん草!K75-K$2 -> 0.017 | L75: =元ほうれん草!L75-L$2 -> -0.004 | M75: =元ほうれん草!M75-M$2 -> -0.011 | N75: =元ほうれん草!N75-N$2 -> -0.01 | O75: =元ほうれん草!O75-O$2 -> -0.002 | P75: =元ほうれん草!P75-P$2 -> 0.014
A76: 372 | B76: =元ほうれん草!B76-B$2 -> 0.091 | C76: =元ほうれん草!C76-C$2 -> 0.011 | D76: =元ほうれん草!D76-D$2 -> 0.129 | E76: =元ほうれん草!E76-E$2 -> 0.441 | F76: =元ほうれん草!F76-F$2 -> 0.523 | G76: =元ほうれん草!G76-G$2 -> 0.187 | H76: =元ほうれん草!H76-H$2 -> 0.101 | I76: =元ほうれん草!I76-I$2 -> 0.089 | J76: =元ほうれん草!J76-J$2 -> 0.047 | K76: =元ほうれん草!K76-K$2 -> 0.017 | L76: =元ほうれん草!L76-L$2 -> -0.003 | M76: =元ほうれん草!M76-M$2 -> -0.011 | N76: =元ほうれん草!N76-N$2 -> -0.01 | O76: =元ほうれん草!O76-O$2 -> -0.001 | P76: =元ほうれん草!P76-P$2 -> 0.014
A77: 373 | B77: =元ほうれん草!B77-B$2 -> 0.095 | C77: =元ほうれん草!C77-C$2 -> 0.013 | D77: =元ほうれん草!D77-D$2 -> 0.132 | E77: =元ほうれん草!E77-E$2 -> 0.449 | F77: =元ほうれん草!F77-F$2 -> 0.532 | G77: =元ほうれん草!G77-G$2 -> 0.189 | H77: =元ほうれん草!H77-H$2 -> 0.101 | I77: =元ほうれん草!I77-I$2 -> 0.09 | J77: =元ほうれん草!J77-J$2 -> 0.049 | K77: =元ほうれん草!K77-K$2 -> 0.019 | L77: =元ほうれん草!L77-L$2 -> -0.002 | M77: =元ほうれん草!M77-M$2 -> -0.01 | N77: =元ほうれん草!N77-N$2 -> -0.009 | O77: =元ほうれん草!O77-O$2 -> -0.001 | P77: =元ほうれん草!P77-P$2 -> 0.015
A78: 374 | B78: =元ほうれん草!B78-B$2 -> 0.098 | C78: =元ほうれん草!C78-C$2 -> 0.013 | D78: =元ほうれん草!D78-D$2 -> 0.134 | E78: =元ほうれん草!E78-E$2 -> 0.456 | F78: =元ほうれん草!F78-F$2 -> 0.54 | G78: =元ほうれん草!G78-G$2 -> 0.192 | H78: =元ほうれん草!H78-H$2 -> 0.101 | I78: =元ほうれん草!I78-I$2 -> 0.092 | J78: =元ほうれん草!J78-J$2 -> 0.051 | K78: =元ほうれん草!K78-K$2 -> 0.02 | L78: =元ほうれん草!L78-L$2 -> -0.002 | M78: =元ほうれん草!M78-M$2 -> -0.01 | N78: =元ほうれん草!N78-N$2 -> -0.009 | O78: =元ほうれん草!O78-O$2 -> 0 | P78: =元ほうれん草!P78-P$2 -> 0.015
A79: 375 | B79: =元ほうれん草!B79-B$2 -> 0.101 | C79: =元ほうれん草!C79-C$2 -> 0.014 | D79: =元ほうれん草!D79-D$2 -> 0.136 | E79: =元ほうれん草!E79-E$2 -> 0.462 | F79: =元ほうれん草!F79-F$2 -> 0.547 | G79: =元ほうれん草!G79-G$2 -> 0.194 | H79: =元ほうれん草!H79-H$2 -> 0.102 | I79: =元ほうれん草!I79-I$2 -> 0.093 | J79: =元ほうれん草!J79-J$2 -> 0.053 | K79: =元ほうれん草!K79-K$2 -> 0.021 | L79: =元ほうれん草!L79-L$2 -> -0.002 | M79: =元ほうれん草!M79-M$2 -> -0.01 | N79: =元ほうれん草!N79-N$2 -> -0.009 | O79: =元ほうれん草!O79-O$2 -> 0 | P79: =元ほうれん草!P79-P$2 -> 0.016
A80: 376 | B80: =元ほうれん草!B80-B$2 -> 0.103 | C80: =元ほうれん草!C80-C$2 -> 0.014 | D80: =元ほうれん草!D80-D$2 -> 0.137 | E80: =元ほうれん草!E80-E$2 -> 0.466 | F80: =元ほうれん草!F80-F$2 -> 0.552 | G80: =元ほうれん草!G80-G$2 -> 0.194 | H80: =元ほうれん草!H80-H$2 -> 0.102 | I80: =元ほうれん草!I80-I$2 -> 0.093 | J80: =元ほうれん草!J80-J$2 -> 0.053 | K80: =元ほうれん草!K80-K$2 -> 0.022 | L80: =元ほうれん草!L80-L$2 -> -0.002 | M80: =元ほうれん草!M80-M$2 -> -0.01 | N80: =元ほうれん草!N80-N$2 -> -0.009 | O80: =元ほうれん草!O80-O$2 -> 0 | P80: =元ほうれん草!P80-P$2 -> 0.016
A81: 377 | B81: =元ほうれん草!B81-B$2 -> 0.107 | C81: =元ほうれん草!C81-C$2 -> 0.014 | D81: =元ほうれん草!D81-D$2 -> 0.138 | E81: =元ほうれん草!E81-E$2 -> 0.468 | F81: =元ほうれん草!F81-F$2 -> 0.555 | G81: =元ほうれん草!G81-G$2 -> 0.194 | H81: =元ほうれん草!H81-H$2 -> 0.102 | I81: =元ほうれん草!I81-I$2 -> 0.095 | J81: =元ほうれん草!J81-J$2 -> 0.055 | K81: =元ほうれん草!K81-K$2 -> 0.022 | L81: =元ほうれん草!L81-L$2 -> -0.001 | M81: =元ほうれん草!M81-M$2 -> -0.009 | N81: =元ほうれん草!N81-N$2 -> -0.009 | O81: =元ほうれん草!O81-O$2 -> 0 | P81: =元ほうれん草!P81-P$2 -> 0.017
A82: 378 | B82: =元ほうれん草!B82-B$2 -> 0.111 | C82: =元ほうれん草!C82-C$2 -> 0.015 | D82: =元ほうれん草!D82-D$2 -> 0.14 | E82: =元ほうれん草!E82-E$2 -> 0.47 | F82: =元ほうれん草!F82-F$2 -> 0.56 | G82: =元ほうれん草!G82-G$2 -> 0.194 | H82: =元ほうれん草!H82-H$2 -> 0.103 | I82: =元ほうれん草!I82-I$2 -> 0.096 | J82: =元ほうれん草!J82-J$2 -> 0.057 | K82: =元ほうれん草!K82-K$2 -> 0.024 | L82: =元ほうれん草!L82-L$2 -> -0.001 | M82: =元ほうれん草!M82-M$2 -> -0.009 | N82: =元ほうれん草!N82-N$2 -> -0.008 | O82: =元ほうれん草!O82-O$2 -> 0.001 | P82: =元ほうれん草!P82-P$2 -> 0.018
A83: 379 | B83: =元ほうれん草!B83-B$2 -> 0.115 | C83: =元ほうれん草!C83-C$2 -> 0.017 | D83: =元ほうれん草!D83-D$2 -> 0.143 | E83: =元ほうれん草!E83-E$2 -> 0.473 | F83: =元ほうれん草!F83-F$2 -> 0.563 | G83: =元ほうれん草!G83-G$2 -> 0.194 | H83: =元ほうれん草!H83-H$2 -> 0.102 | I83: =元ほうれん草!I83-I$2 -> 0.098 | J83: =元ほうれん草!J83-J$2 -> 0.06 | K83: =元ほうれん草!K83-K$2 -> 0.025 | L83: =元ほうれん草!L83-L$2 -> 0 | M83: =元ほうれん草!M83-M$2 -> -0.008 | N83: =元ほうれん草!N83-N$2 -> -0.007 | O83: =元ほうれん草!O83-O$2 -> 0.003 | P83: =元ほうれん草!P83-P$2 -> 0.019
A84: 380 | B84: =元ほうれん草!B84-B$2 -> 0.118 | C84: =元ほうれん草!C84-C$2 -> 0.017 | D84: =元ほうれん草!D84-D$2 -> 0.145 | E84: =元ほうれん草!E84-E$2 -> 0.474 | F84: =元ほうれん草!F84-F$2 -> 0.563 | G84: =元ほうれん草!G84-G$2 -> 0.194 | H84: =元ほうれん草!H84-H$2 -> 0.101 | I84: =元ほうれん草!I84-I$2 -> 0.099 | J84: =元ほうれん草!J84-J$2 -> 0.061 | K84: =元ほうれん草!K84-K$2 -> 0.025 | L84: =元ほうれん草!L84-L$2 -> 0 | M84: =元ほうれん草!M84-M$2 -> -0.009 | N84: =元ほうれん草!N84-N$2 -> -0.007 | O84: =元ほうれん草!O84-O$2 -> 0.003 | P84: =元ほうれん草!P84-P$2 -> 0.019
A85: 381 | B85: =元ほうれん草!B85-B$2 -> 0.121 | C85: =元ほうれん草!C85-C$2 -> 0.016 | D85: =元ほうれん草!D85-D$2 -> 0.146 | E85: =元ほうれん草!E85-E$2 -> 0.474 | F85: =元ほうれん草!F85-F$2 -> 0.562 | G85: =元ほうれん草!G85-G$2 -> 0.192 | H85: =元ほうれん草!H85-H$2 -> 0.1 | I85: =元ほうれん草!I85-I$2 -> 0.099 | J85: =元ほうれん草!J85-J$2 -> 0.062 | K85: =元ほうれん草!K85-K$2 -> 0.026 | L85: =元ほうれん草!L85-L$2 -> 0 | M85: =元ほうれん草!M85-M$2 -> -0.009 | N85: =元ほうれん草!N85-N$2 -> -0.007 | O85: =元ほうれん草!O85-O$2 -> 0.003 | P85: =元ほうれん草!P85-P$2 -> 0.019
A86: 382 | B86: =元ほうれん草!B86-B$2 -> 0.125 | C86: =元ほうれん草!C86-C$2 -> 0.017 | D86: =元ほうれん草!D86-D$2 -> 0.148 | E86: =元ほうれん草!E86-E$2 -> 0.476 | F86: =元ほうれん草!F86-F$2 -> 0.561 | G86: =元ほうれん草!G86-G$2 -> 0.19 | H86: =元ほうれん草!H86-H$2 -> 0.099 | I86: =元ほうれん草!I86-I$2 -> 0.1 | J86: =元ほうれん草!J86-J$2 -> 0.064 | K86: =元ほうれん草!K86-K$2 -> 0.027 | L86: =元ほうれん草!L86-L$2 -> 0 | M86: =元ほうれん草!M86-M$2 -> -0.009 | N86: =元ほうれん草!N86-N$2 -> -0.007 | O86: =元ほうれん草!O86-O$2 -> 0.004 | P86: =元ほうれん草!P86-P$2 -> 0.02
A87: 383 | B87: =元ほうれん草!B87-B$2 -> 0.13 | C87: =元ほうれん草!C87-C$2 -> 0.019 | D87: =元ほうれん草!D87-D$2 -> 0.152 | E87: =元ほうれん草!E87-E$2 -> 0.478 | F87: =元ほうれん草!F87-F$2 -> 0.562 | G87: =元ほうれん草!G87-G$2 -> 0.189 | H87: =元ほうれん草!H87-H$2 -> 0.098 | I87: =元ほうれん草!I87-I$2 -> 0.102 | J87: =元ほうれん草!J87-J$2 -> 0.067 | K87: =元ほうれん草!K87-K$2 -> 0.029 | L87: =元ほうれん草!L87-L$2 -> 0.001 | M87: =元ほうれん草!M87-M$2 -> -0.007 | N87: =元ほうれん草!N87-N$2 -> -0.006 | O87: =元ほうれん草!O87-O$2 -> 0.005 | P87: =元ほうれん草!P87-P$2 -> 0.022
A88: 384 | B88: =元ほうれん草!B88-B$2 -> 0.135 | C88: =元ほうれん草!C88-C$2 -> 0.02 | D88: =元ほうれん草!D88-D$2 -> 0.155 | E88: =元ほうれん草!E88-E$2 -> 0.478 | F88: =元ほうれん草!F88-F$2 -> 0.561 | G88: =元ほうれん草!G88-G$2 -> 0.186 | H88: =元ほうれん草!H88-H$2 -> 0.096 | I88: =元ほうれん草!I88-I$2 -> 0.104 | J88: =元ほうれん草!J88-J$2 -> 0.07 | K88: =元ほうれん草!K88-K$2 -> 0.032 | L88: =元ほうれん草!L88-L$2 -> 0.002 | M88: =元ほうれん草!M88-M$2 -> -0.006 | N88: =元ほうれん草!N88-N$2 -> -0.005 | O88: =元ほうれん草!O88-O$2 -> 0.006 | P88: =元ほうれん草!P88-P$2 -> 0.024
A89: 385 | B89: =元ほうれん草!B89-B$2 -> 0.14 | C89: =元ほうれん草!C89-C$2 -> 0.021 | D89: =元ほうれん草!D89-D$2 -> 0.159 | E89: =元ほうれん草!E89-E$2 -> 0.477 | F89: =元ほうれん草!F89-F$2 -> 0.559 | G89: =元ほうれん草!G89-G$2 -> 0.183 | H89: =元ほうれん草!H89-H$2 -> 0.093 | I89: =元ほうれん草!I89-I$2 -> 0.106 | J89: =元ほうれん草!J89-J$2 -> 0.074 | K89: =元ほうれん草!K89-K$2 -> 0.034 | L89: =元ほうれん草!L89-L$2 -> 0.003 | M89: =元ほうれん草!M89-M$2 -> -0.005 | N89: =元ほうれん草!N89-N$2 -> -0.004 | O89: =元ほうれん草!O89-O$2 -> 0.007 | P89: =元ほうれん草!P89-P$2 -> 0.026
A90: 386 | B90: =元ほうれん草!B90-B$2 -> 0.145 | C90: =元ほうれん草!C90-C$2 -> 0.021 | D90: =元ほうれん草!D90-D$2 -> 0.162 | E90: =元ほうれん草!E90-E$2 -> 0.475 | F90: =元ほうれん草!F90-F$2 -> 0.557 | G90: =元ほうれん草!G90-G$2 -> 0.18 | H90: =元ほうれん草!H90-H$2 -> 0.091 | I90: =元ほうれん草!I90-I$2 -> 0.107 | J90: =元ほうれん草!J90-J$2 -> 0.076 | K90: =元ほうれん草!K90-K$2 -> 0.035 | L90: =元ほうれん草!L90-L$2 -> 0.004 | M90: =元ほうれん草!M90-M$2 -> -0.006 | N90: =元ほうれん草!N90-N$2 -> -0.004 | O90: =元ほうれん草!O90-O$2 -> 0.008 | P90: =元ほうれん草!P90-P$2 -> 0.027
A91: 387 | B91: =元ほうれん草!B91-B$2 -> 0.149 | C91: =元ほうれん草!C91-C$2 -> 0.022 | D91: =元ほうれん草!D91-D$2 -> 0.166 | E91: =元ほうれん草!E91-E$2 -> 0.473 | F91: =元ほうれん草!F91-F$2 -> 0.554 | G91: =元ほうれん草!G91-G$2 -> 0.176 | H91: =元ほうれん草!H91-H$2 -> 0.089 | I91: =元ほうれん草!I91-I$2 -> 0.108 | J91: =元ほうれん草!J91-J$2 -> 0.079 | K91: =元ほうれん草!K91-K$2 -> 0.036 | L91: =元ほうれん草!L91-L$2 -> 0.004 | M91: =元ほうれん草!M91-M$2 -> -0.006 | N91: =元ほうれん草!N91-N$2 -> -0.004 | O91: =元ほうれん草!O91-O$2 -> 0.009 | P91: =元ほうれん草!P91-P$2 -> 0.028
A92: 388 | B92: =元ほうれん草!B92-B$2 -> 0.153 | C92: =元ほうれん草!C92-C$2 -> 0.023 | D92: =元ほうれん草!D92-D$2 -> 0.169 | E92: =元ほうれん草!E92-E$2 -> 0.471 | F92: =元ほうれん草!F92-F$2 -> 0.55 | G92: =元ほうれん草!G92-G$2 -> 0.173 | H92: =元ほうれん草!H92-H$2 -> 0.087 | I92: =元ほうれん草!I92-I$2 -> 0.11 | J92: =元ほうれん草!J92-J$2 -> 0.081 | K92: =元ほうれん草!K92-K$2 -> 0.038 | L92: =元ほうれん草!L92-L$2 -> 0.005 | M92: =元ほうれん草!M92-M$2 -> -0.006 | N92: =元ほうれん草!N92-N$2 -> -0.004 | O92: =元ほうれん草!O92-O$2 -> 0.009 | P92: =元ほうれん草!P92-P$2 -> 0.03
A93: 389 | B93: =元ほうれん草!B93-B$2 -> 0.158 | C93: =元ほうれん草!C93-C$2 -> 0.024 | D93: =元ほうれん草!D93-D$2 -> 0.173 | E93: =元ほうれん草!E93-E$2 -> 0.47 | F93: =元ほうれん草!F93-F$2 -> 0.549 | G93: =元ほうれん草!G93-G$2 -> 0.171 | H93: =元ほうれん草!H93-H$2 -> 0.085 | I93: =元ほうれん草!I93-I$2 -> 0.111 | J93: =元ほうれん草!J93-J$2 -> 0.085 | K93: =元ほうれん草!K93-K$2 -> 0.04 | L93: =元ほうれん草!L93-L$2 -> 0.005 | M93: =元ほうれん草!M93-M$2 -> -0.005 | N93: =元ほうれん草!N93-N$2 -> -0.004 | O93: =元ほうれん草!O93-O$2 -> 0.01 | P93: =元ほうれん草!P93-P$2 -> 0.031
A94: 390 | B94: =元ほうれん草!B94-B$2 -> 0.164 | C94: =元ほうれん草!C94-C$2 -> 0.024 | D94: =元ほうれん草!D94-D$2 -> 0.177 | E94: =元ほうれん草!E94-E$2 -> 0.47 | F94: =元ほうれん草!F94-F$2 -> 0.548 | G94: =元ほうれん草!G94-G$2 -> 0.168 | H94: =元ほうれん草!H94-H$2 -> 0.084 | I94: =元ほうれん草!I94-I$2 -> 0.113 | J94: =元ほうれん草!J94-J$2 -> 0.089 | K94: =元ほうれん草!K94-K$2 -> 0.042 | L94: =元ほうれん草!L94-L$2 -> 0.006 | M94: =元ほうれん草!M94-M$2 -> -0.005 | N94: =元ほうれん草!N94-N$2 -> -0.003 | O94: =元ほうれん草!O94-O$2 -> 0.011 | P94: =元ほうれん草!P94-P$2 -> 0.032
A95: 391 | B95: =元ほうれん草!B95-B$2 -> 0.171 | C95: =元ほうれん草!C95-C$2 -> 0.026 | D95: =元ほうれん草!D95-D$2 -> 0.181 | E95: =元ほうれん草!E95-E$2 -> 0.471 | F95: =元ほうれん草!F95-F$2 -> 0.55 | G95: =元ほうれん草!G95-G$2 -> 0.168 | H95: =元ほうれん草!H95-H$2 -> 0.084 | I95: =元ほうれん草!I95-I$2 -> 0.116 | J95: =元ほうれん草!J95-J$2 -> 0.092 | K95: =元ほうれん草!K95-K$2 -> 0.044 | L95: =元ほうれん草!L95-L$2 -> 0.007 | M95: =元ほうれん草!M95-M$2 -> -0.004 | N95: =元ほうれん草!N95-N$2 -> -0.002 | O95: =元ほうれん草!O95-O$2 -> 0.012 | P95: =元ほうれん草!P95-P$2 -> 0.033
A96: 392 | B96: =元ほうれん草!B96-B$2 -> 0.176 | C96: =元ほうれん草!C96-C$2 -> 0.027 | D96: =元ほうれん草!D96-D$2 -> 0.185 | E96: =元ほうれん草!E96-E$2 -> 0.474 | F96: =元ほうれん草!F96-F$2 -> 0.553 | G96: =元ほうれん草!G96-G$2 -> 0.168 | H96: =元ほうれん草!H96-H$2 -> 0.083 | I96: =元ほうれん草!I96-I$2 -> 0.118 | J96: =元ほうれん草!J96-J$2 -> 0.095 | K96: =元ほうれん草!K96-K$2 -> 0.046 | L96: =元ほうれん草!L96-L$2 -> 0.007 | M96: =元ほうれん草!M96-M$2 -> -0.004 | N96: =元ほうれん草!N96-N$2 -> -0.001 | O96: =元ほうれん草!O96-O$2 -> 0.013 | P96: =元ほうれん草!P96-P$2 -> 0.034
A97: 393 | B97: =元ほうれん草!B97-B$2 -> 0.181 | C97: =元ほうれん草!C97-C$2 -> 0.027 | D97: =元ほうれん草!D97-D$2 -> 0.189 | E97: =元ほうれん草!E97-E$2 -> 0.479 | F97: =元ほうれん草!F97-F$2 -> 0.556 | G97: =元ほうれん草!G97-G$2 -> 0.168 | H97: =元ほうれん草!H97-H$2 -> 0.083 | I97: =元ほうれん草!I97-I$2 -> 0.12 | J97: =元ほうれん草!J97-J$2 -> 0.097 | K97: =元ほうれん草!K97-K$2 -> 0.047 | L97: =元ほうれん草!L97-L$2 -> 0.007 | M97: =元ほうれん草!M97-M$2 -> -0.004 | N97: =元ほうれん草!N97-N$2 -> -0.002 | O97: =元ほうれん草!O97-O$2 -> 0.013 | P97: =元ほうれん草!P97-P$2 -> 0.033
A98: 394 | B98: =元ほうれん草!B98-B$2 -> 0.186 | C98: =元ほうれん草!C98-C$2 -> 0.028 | D98: =元ほうれん草!D98-D$2 -> 0.192 | E98: =元ほうれん草!E98-E$2 -> 0.486 | F98: =元ほうれん草!F98-F$2 -> 0.563 | G98: =元ほうれん草!G98-G$2 -> 0.169 | H98: =元ほうれん草!H98-H$2 -> 0.084 | I98: =元ほうれん草!I98-I$2 -> 0.122 | J98: =元ほうれん草!J98-J$2 -> 0.1 | K98: =元ほうれん草!K98-K$2 -> 0.049 | L98: =元ほうれん草!L98-L$2 -> 0.008 | M98: =元ほうれん草!M98-M$2 -> -0.003 | N98: =元ほうれん草!N98-N$2 -> -0.002 | O98: =元ほうれん草!O98-O$2 -> 0.013 | P98: =元ほうれん草!P98-P$2 -> 0.034
A99: 395 | B99: =元ほうれん草!B99-B$2 -> 0.191 | C99: =元ほうれん草!C99-C$2 -> 0.03 | D99: =元ほうれん草!D99-D$2 -> 0.194 | E99: =元ほうれん草!E99-E$2 -> 0.495 | F99: =元ほうれん草!F99-F$2 -> 0.575 | G99: =元ほうれん草!G99-G$2 -> 0.173 | H99: =元ほうれん草!H99-H$2 -> 0.086 | I99: =元ほうれん草!I99-I$2 -> 0.124 | J99: =元ほうれん草!J99-J$2 -> 0.103 | K99: =元ほうれん草!K99-K$2 -> 0.051 | L99: =元ほうれん草!L99-L$2 -> 0.009 | M99: =元ほうれん草!M99-M$2 -> -0.003 | N99: =元ほうれん草!N99-N$2 -> 0 | O99: =元ほうれん草!O99-O$2 -> 0.014 | P99: =元ほうれん草!P99-P$2 -> 0.035
A100: 396 | B100: =元ほうれん草!B100-B$2 -> 0.199 | C100: =元ほうれん草!C100-C$2 -> 0.031 | D100: =元ほうれん草!D100-D$2 -> 0.196 | E100: =元ほうれん草!E100-E$2 -> 0.509 | F100: =元ほうれん草!F100-F$2 -> 0.591 | G100: =元ほうれん草!G100-G$2 -> 0.176 | H100: =元ほうれん草!H100-H$2 -> 0.088 | I100: =元ほうれん草!I100-I$2 -> 0.127 | J100: =元ほうれん草!J100-J$2 -> 0.107 | K100: =元ほうれん草!K100-K$2 -> 0.052 | L100: =元ほうれん草!L100-L$2 -> 0.01 | M100: =元ほうれん草!M100-M$2 -> -0.002 | N100: =元ほうれん草!N100-N$2 -> -0.001 | O100: =元ほうれん草!O100-O$2 -> 0.014 | P100: =元ほうれん草!P100-P$2 -> 0.035
A101: 397 | B101: =元ほうれん草!B101-B$2 -> 0.205 | C101: =元ほうれん草!C101-C$2 -> 0.033 | D101: =元ほうれん草!D101-D$2 -> 0.199 | E101: =元ほうれん草!E101-E$2 -> 0.526 | F101: =元ほうれん草!F101-F$2 -> 0.611 | G101: =元ほうれん草!G101-G$2 -> 0.182 | H101: =元ほうれん草!H101-H$2 -> 0.091 | I101: =元ほうれん草!I101-I$2 -> 0.13 | J101: =元ほうれん草!J101-J$2 -> 0.11 | K101: =元ほうれん草!K101-K$2 -> 0.054 | L101: =元ほうれん草!L101-L$2 -> 0.01 | M101: =元ほうれん草!M101-M$2 -> -0.002 | N101: =元ほうれん草!N101-N$2 -> -0.001 | O101: =元ほうれん草!O101-O$2 -> 0.014 | P101: =元ほうれん草!P101-P$2 -> 0.035
A102: 398 | B102: =元ほうれん草!B102-B$2 -> 0.209 | C102: =元ほうれん草!C102-C$2 -> 0.035 | D102: =元ほうれん草!D102-D$2 -> 0.203 | E102: =元ほうれん草!E102-E$2 -> 0.546 | F102: =元ほうれん草!F102-F$2 -> 0.634 | G102: =元ほうれん草!G102-G$2 -> 0.19 | H102: =元ほうれん草!H102-H$2 -> 0.094 | I102: =元ほうれん草!I102-I$2 -> 0.133 | J102: =元ほうれん草!J102-J$2 -> 0.112 | K102: =元ほうれん草!K102-K$2 -> 0.055 | L102: =元ほうれん草!L102-L$2 -> 0.011 | M102: =元ほうれん草!M102-M$2 -> -0.001 | N102: =元ほうれん草!N102-N$2 -> 0 | O102: =元ほうれん草!O102-O$2 -> 0.015 | P102: =元ほうれん草!P102-P$2 -> 0.036
A103: 399 | B103: =元ほうれん草!B103-B$2 -> 0.212 | C103: =元ほうれん草!C103-C$2 -> 0.036 | D103: =元ほうれん草!D103-D$2 -> 0.206 | E103: =元ほうれん草!E103-E$2 -> 0.564 | F103: =元ほうれん草!F103-F$2 -> 0.657 | G103: =元ほうれん草!G103-G$2 -> 0.196 | H103: =元ほうれん草!H103-H$2 -> 0.096 | I103: =元ほうれん草!I103-I$2 -> 0.136 | J103: =元ほうれん草!J103-J$2 -> 0.114 | K103: =元ほうれん草!K103-K$2 -> 0.057 | L103: =元ほうれん草!L103-L$2 -> 0.011 | M103: =元ほうれん草!M103-M$2 -> 0 | N103: =元ほうれん草!N103-N$2 -> 0.001 | O103: =元ほうれん草!O103-O$2 -> 0.016 | P103: =元ほうれん草!P103-P$2 -> 0.037
A104: 400 | B104: =元ほうれん草!B104-B$2 -> 0.216 | C104: =元ほうれん草!C104-C$2 -> 0.036 | D104: =元ほうれん草!D104-D$2 -> 0.208 | E104: =元ほうれん草!E104-E$2 -> 0.583 | F104: =元ほうれん草!F104-F$2 -> 0.681 | G104: =元ほうれん草!G104-G$2 -> 0.203 | H104: =元ほうれん草!H104-H$2 -> 0.099 | I104: =元ほうれん草!I104-I$2 -> 0.139 | J104: =元ほうれん草!J104-J$2 -> 0.117 | K104: =元ほうれん草!K104-K$2 -> 0.058 | L104: =元ほうれん草!L104-L$2 -> 0.011 | M104: =元ほうれん草!M104-M$2 -> -0.001 | N104: =元ほうれん草!N104-N$2 -> 0.001 | O104: =元ほうれん草!O104-O$2 -> 0.016 | P104: =元ほうれん草!P104-P$2 -> 0.038
A105: 401 | B105: =元ほうれん草!B105-B$2 -> 0.223 | C105: =元ほうれん草!C105-C$2 -> 0.036 | D105: =元ほうれん草!D105-D$2 -> 0.212 | E105: =元ほうれん草!E105-E$2 -> 0.607 | F105: =元ほうれん草!F105-F$2 -> 0.709 | G105: =元ほうれん草!G105-G$2 -> 0.211 | H105: =元ほうれん草!H105-H$2 -> 0.102 | I105: =元ほうれん草!I105-I$2 -> 0.141 | J105: =元ほうれん草!J105-J$2 -> 0.121 | K105: =元ほうれん草!K105-K$2 -> 0.06 | L105: =元ほうれん草!L105-L$2 -> 0.012 | M105: =元ほうれん草!M105-M$2 -> -0.001 | N105: =元ほうれん草!N105-N$2 -> 0.002 | O105: =元ほうれん草!O105-O$2 -> 0.017 | P105: =元ほうれん草!P105-P$2 -> 0.038
A106: 402 | B106: =元ほうれん草!B106-B$2 -> 0.229 | C106: =元ほうれん草!C106-C$2 -> 0.037 | D106: =元ほうれん草!D106-D$2 -> 0.216 | E106: =元ほうれん草!E106-E$2 -> 0.631 | F106: =元ほうれん草!F106-F$2 -> 0.736 | G106: =元ほうれん草!G106-G$2 -> 0.219 | H106: =元ほうれん草!H106-H$2 -> 0.106 | I106: =元ほうれん草!I106-I$2 -> 0.144 | J106: =元ほうれん草!J106-J$2 -> 0.123 | K106: =元ほうれん草!K106-K$2 -> 0.061 | L106: =元ほうれん草!L106-L$2 -> 0.013 | M106: =元ほうれん草!M106-M$2 -> 0.001 | N106: =元ほうれん草!N106-N$2 -> 0.002 | O106: =元ほうれん草!O106-O$2 -> 0.017 | P106: =元ほうれん草!P106-P$2 -> 0.039
A107: 403 | B107: =元ほうれん草!B107-B$2 -> 0.234 | C107: =元ほうれん草!C107-C$2 -> 0.038 | D107: =元ほうれん草!D107-D$2 -> 0.22 | E107: =元ほうれん草!E107-E$2 -> 0.652 | F107: =元ほうれん草!F107-F$2 -> 0.763 | G107: =元ほうれん草!G107-G$2 -> 0.227 | H107: =元ほうれん草!H107-H$2 -> 0.11 | I107: =元ほうれん草!I107-I$2 -> 0.149 | J107: =元ほうれん草!J107-J$2 -> 0.127 | K107: =元ほうれん草!K107-K$2 -> 0.063 | L107: =元ほうれん草!L107-L$2 -> 0.014 | M107: =元ほうれん草!M107-M$2 -> 0.001 | N107: =元ほうれん草!N107-N$2 -> 0.002 | O107: =元ほうれん草!O107-O$2 -> 0.018 | P107: =元ほうれん草!P107-P$2 -> 0.041
A108: 404 | B108: =元ほうれん草!B108-B$2 -> 0.238 | C108: =元ほうれん草!C108-C$2 -> 0.039 | D108: =元ほうれん草!D108-D$2 -> 0.225 | E108: =元ほうれん草!E108-E$2 -> 0.67 | F108: =元ほうれん草!F108-F$2 -> 0.783 | G108: =元ほうれん草!G108-G$2 -> 0.233 | H108: =元ほうれん草!H108-H$2 -> 0.113 | I108: =元ほうれん草!I108-I$2 -> 0.153 | J108: =元ほうれん草!J108-J$2 -> 0.132 | K108: =元ほうれん草!K108-K$2 -> 0.065 | L108: =元ほうれん草!L108-L$2 -> 0.015 | M108: =元ほうれん草!M108-M$2 -> 0.002 | N108: =元ほうれん草!N108-N$2 -> 0.003 | O108: =元ほうれん草!O108-O$2 -> 0.02 | P108: =元ほうれん草!P108-P$2 -> 0.043
A109: 405 | B109: =元ほうれん草!B109-B$2 -> 0.242 | C109: =元ほうれん草!C109-C$2 -> 0.04 | D109: =元ほうれん草!D109-D$2 -> 0.228 | E109: =元ほうれん草!E109-E$2 -> 0.686 | F109: =元ほうれん草!F109-F$2 -> 0.8 | G109: =元ほうれん草!G109-G$2 -> 0.239 | H109: =元ほうれん草!H109-H$2 -> 0.116 | I109: =元ほうれん草!I109-I$2 -> 0.156 | J109: =元ほうれん草!J109-J$2 -> 0.135 | K109: =元ほうれん草!K109-K$2 -> 0.067 | L109: =元ほうれん草!L109-L$2 -> 0.015 | M109: =元ほうれん草!M109-M$2 -> 0.001 | N109: =元ほうれん草!N109-N$2 -> 0.003 | O109: =元ほうれん草!O109-O$2 -> 0.021 | P109: =元ほうれん草!P109-P$2 -> 0.045
A110: 406 | B110: =元ほうれん草!B110-B$2 -> 0.247 | C110: =元ほうれん草!C110-C$2 -> 0.042 | D110: =元ほうれん草!D110-D$2 -> 0.232 | E110: =元ほうれん草!E110-E$2 -> 0.7 | F110: =元ほうれん草!F110-F$2 -> 0.817 | G110: =元ほうれん草!G110-G$2 -> 0.244 | H110: =元ほうれん草!H110-H$2 -> 0.119 | I110: =元ほうれん草!I110-I$2 -> 0.161 | J110: =元ほうれん草!J110-J$2 -> 0.14 | K110: =元ほうれん草!K110-K$2 -> 0.07 | L110: =元ほうれん草!L110-L$2 -> 0.016 | M110: =元ほうれん草!M110-M$2 -> 0.002 | N110: =元ほうれん草!N110-N$2 -> 0.004 | O110: =元ほうれん草!O110-O$2 -> 0.023 | P110: =元ほうれん草!P110-P$2 -> 0.048
A111: 407 | B111: =元ほうれん草!B111-B$2 -> 0.256 | C111: =元ほうれん草!C111-C$2 -> 0.043 | D111: =元ほうれん草!D111-D$2 -> 0.236 | E111: =元ほうれん草!E111-E$2 -> 0.713 | F111: =元ほうれん草!F111-F$2 -> 0.831 | G111: =元ほうれん草!G111-G$2 -> 0.248 | H111: =元ほうれん草!H111-H$2 -> 0.122 | I111: =元ほうれん草!I111-I$2 -> 0.166 | J111: =元ほうれん草!J111-J$2 -> 0.146 | K111: =元ほうれん草!K111-K$2 -> 0.073 | L111: =元ほうれん草!L111-L$2 -> 0.018 | M111: =元ほうれん草!M111-M$2 -> 0.003 | N111: =元ほうれん草!N111-N$2 -> 0.005 | O111: =元ほうれん草!O111-O$2 -> 0.025 | P111: =元ほうれん草!P111-P$2 -> 0.051
A112: 408 | B112: =元ほうれん草!B112-B$2 -> 0.264 | C112: =元ほうれん草!C112-C$2 -> 0.045 | D112: =元ほうれん草!D112-D$2 -> 0.24 | E112: =元ほうれん草!E112-E$2 -> 0.722 | F112: =元ほうれん草!F112-F$2 -> 0.844 | G112: =元ほうれん草!G112-G$2 -> 0.253 | H112: =元ほうれん草!H112-H$2 -> 0.126 | I112: =元ほうれん草!I112-I$2 -> 0.172 | J112: =元ほうれん草!J112-J$2 -> 0.152 | K112: =元ほうれん草!K112-K$2 -> 0.076 | L112: =元ほうれん草!L112-L$2 -> 0.018 | M112: =元ほうれん草!M112-M$2 -> 0.003 | N112: =元ほうれん草!N112-N$2 -> 0.007 | O112: =元ほうれん草!O112-O$2 -> 0.026 | P112: =元ほうれん草!P112-P$2 -> 0.054
A113: 409 | B113: =元ほうれん草!B113-B$2 -> 0.272 | C113: =元ほうれん草!C113-C$2 -> 0.046 | D113: =元ほうれん草!D113-D$2 -> 0.24 | E113: =元ほうれん草!E113-E$2 -> 0.728 | F113: =元ほうれん草!F113-F$2 -> 0.851 | G113: =元ほうれん草!G113-G$2 -> 0.258 | H113: =元ほうれん草!H113-H$2 -> 0.131 | I113: =元ほうれん草!I113-I$2 -> 0.178 | J113: =元ほうれん草!J113-J$2 -> 0.158 | K113: =元ほうれん草!K113-K$2 -> 0.079 | L113: =元ほうれん草!L113-L$2 -> 0.019 | M113: =元ほうれん草!M113-M$2 -> 0.003 | N113: =元ほうれん草!N113-N$2 -> 0.008 | O113: =元ほうれん草!O113-O$2 -> 0.028 | P113: =元ほうれん草!P113-P$2 -> 0.055
A114: 410 | B114: =元ほうれん草!B114-B$2 -> 0.278 | C114: =元ほうれん草!C114-C$2 -> 0.047 | D114: =元ほうれん草!D114-D$2 -> 0.24 | E114: =元ほうれん草!E114-E$2 -> 0.73 | F114: =元ほうれん草!F114-F$2 -> 0.853 | G114: =元ほうれん草!G114-G$2 -> 0.261 | H114: =元ほうれん草!H114-H$2 -> 0.136 | I114: =元ほうれん草!I114-I$2 -> 0.184 | J114: =元ほうれん草!J114-J$2 -> 0.164 | K114: =元ほうれん草!K114-K$2 -> 0.082 | L114: =元ほうれん草!L114-L$2 -> 0.02 | M114: =元ほうれん草!M114-M$2 -> 0.004 | N114: =元ほうれん草!N114-N$2 -> 0.009 | O114: =元ほうれん草!O114-O$2 -> 0.029 | P114: =元ほうれん草!P114-P$2 -> 0.057
A115: 411 | B115: =元ほうれん草!B115-B$2 -> 0.285 | C115: =元ほうれん草!C115-C$2 -> 0.048 | D115: =元ほうれん草!D115-D$2 -> 0.239 | E115: =元ほうれん草!E115-E$2 -> 0.73 | F115: =元ほうれん草!F115-F$2 -> 0.853 | G115: =元ほうれん草!G115-G$2 -> 0.265 | H115: =元ほうれん草!H115-H$2 -> 0.139 | I115: =元ほうれん草!I115-I$2 -> 0.19 | J115: =元ほうれん草!J115-J$2 -> 0.17 | K115: =元ほうれん草!K115-K$2 -> 0.087 | L115: =元ほうれん草!L115-L$2 -> 0.022 | M115: =元ほうれん草!M115-M$2 -> 0.005 | N115: =元ほうれん草!N115-N$2 -> 0.01 | O115: =元ほうれん草!O115-O$2 -> 0.031 | P115: =元ほうれん草!P115-P$2 -> 0.06
A116: 412 | B116: =元ほうれん草!B116-B$2 -> 0.295 | C116: =元ほうれん草!C116-C$2 -> 0.049 | D116: =元ほうれん草!D116-D$2 -> 0.235 | E116: =元ほうれん草!E116-E$2 -> 0.727 | F116: =元ほうれん草!F116-F$2 -> 0.85 | G116: =元ほうれん草!G116-G$2 -> 0.267 | H116: =元ほうれん草!H116-H$2 -> 0.144 | I116: =元ほうれん草!I116-I$2 -> 0.197 | J116: =元ほうれん草!J116-J$2 -> 0.177 | K116: =元ほうれん草!K116-K$2 -> 0.091 | L116: =元ほうれん草!L116-L$2 -> 0.024 | M116: =元ほうれん草!M116-M$2 -> 0.006 | N116: =元ほうれん草!N116-N$2 -> 0.011 | O116: =元ほうれん草!O116-O$2 -> 0.033 | P116: =元ほうれん草!P116-P$2 -> 0.063
A117: 413 | B117: =元ほうれん草!B117-B$2 -> 0.305 | C117: =元ほうれん草!C117-C$2 -> 0.05 | D117: =元ほうれん草!D117-D$2 -> 0.228 | E117: =元ほうれん草!E117-E$2 -> 0.723 | F117: =元ほうれん草!F117-F$2 -> 0.846 | G117: =元ほうれん草!G117-G$2 -> 0.27 | H117: =元ほうれん草!H117-H$2 -> 0.15 | I117: =元ほうれん草!I117-I$2 -> 0.204 | J117: =元ほうれん草!J117-J$2 -> 0.183 | K117: =元ほうれん草!K117-K$2 -> 0.094 | L117: =元ほうれん草!L117-L$2 -> 0.025 | M117: =元ほうれん草!M117-M$2 -> 0.007 | N117: =元ほうれん草!N117-N$2 -> 0.012 | O117: =元ほうれん草!O117-O$2 -> 0.034 | P117: =元ほうれん草!P117-P$2 -> 0.064
A118: 414 | B118: =元ほうれん草!B118-B$2 -> 0.317 | C118: =元ほうれん草!C118-C$2 -> 0.051 | D118: =元ほうれん草!D118-D$2 -> 0.221 | E118: =元ほうれん草!E118-E$2 -> 0.717 | F118: =元ほうれん草!F118-F$2 -> 0.842 | G118: =元ほうれん草!G118-G$2 -> 0.274 | H118: =元ほうれん草!H118-H$2 -> 0.156 | I118: =元ほうれん草!I118-I$2 -> 0.21 | J118: =元ほうれん草!J118-J$2 -> 0.19 | K118: =元ほうれん草!K118-K$2 -> 0.097 | L118: =元ほうれん草!L118-L$2 -> 0.026 | M118: =元ほうれん草!M118-M$2 -> 0.007 | N118: =元ほうれん草!N118-N$2 -> 0.012 | O118: =元ほうれん草!O118-O$2 -> 0.035 | P118: =元ほうれん草!P118-P$2 -> 0.065
A119: 415 | B119: =元ほうれん草!B119-B$2 -> 0.327 | C119: =元ほうれん草!C119-C$2 -> 0.052 | D119: =元ほうれん草!D119-D$2 -> 0.212 | E119: =元ほうれん草!E119-E$2 -> 0.714 | F119: =元ほうれん草!F119-F$2 -> 0.839 | G119: =元ほうれん草!G119-G$2 -> 0.278 | H119: =元ほうれん草!H119-H$2 -> 0.162 | I119: =元ほうれん草!I119-I$2 -> 0.217 | J119: =元ほうれん草!J119-J$2 -> 0.196 | K119: =元ほうれん草!K119-K$2 -> 0.1 | L119: =元ほうれん草!L119-L$2 -> 0.027 | M119: =元ほうれん草!M119-M$2 -> 0.008 | N119: =元ほうれん草!N119-N$2 -> 0.012 | O119: =元ほうれん草!O119-O$2 -> 0.035 | P119: =元ほうれん草!P119-P$2 -> 0.066
A120: 416 | B120: =元ほうれん草!B120-B$2 -> 0.336 | C120: =元ほうれん草!C120-C$2 -> 0.053 | D120: =元ほうれん草!D120-D$2 -> 0.203 | E120: =元ほうれん草!E120-E$2 -> 0.711 | F120: =元ほうれん草!F120-F$2 -> 0.839 | G120: =元ほうれん草!G120-G$2 -> 0.284 | H120: =元ほうれん草!H120-H$2 -> 0.169 | I120: =元ほうれん草!I120-I$2 -> 0.223 | J120: =元ほうれん草!J120-J$2 -> 0.202 | K120: =元ほうれん草!K120-K$2 -> 0.103 | L120: =元ほうれん草!L120-L$2 -> 0.028 | M120: =元ほうれん草!M120-M$2 -> 0.009 | N120: =元ほうれん草!N120-N$2 -> 0.013 | O120: =元ほうれん草!O120-O$2 -> 0.035 | P120: =元ほうれん草!P120-P$2 -> 0.066
A121: 417 | B121: =元ほうれん草!B121-B$2 -> 0.347 | C121: =元ほうれん草!C121-C$2 -> 0.054 | D121: =元ほうれん草!D121-D$2 -> 0.194 | E121: =元ほうれん草!E121-E$2 -> 0.711 | F121: =元ほうれん草!F121-F$2 -> 0.841 | G121: =元ほうれん草!G121-G$2 -> 0.289 | H121: =元ほうれん草!H121-H$2 -> 0.178 | I121: =元ほうれん草!I121-I$2 -> 0.23 | J121: =元ほうれん草!J121-J$2 -> 0.207 | K121: =元ほうれん草!K121-K$2 -> 0.106 | L121: =元ほうれん草!L121-L$2 -> 0.03 | M121: =元ほうれん草!M121-M$2 -> 0.01 | N121: =元ほうれん草!N121-N$2 -> 0.014 | O121: =元ほうれん草!O121-O$2 -> 0.036 | P121: =元ほうれん草!P121-P$2 -> 0.066
A122: 418 | B122: =元ほうれん草!B122-B$2 -> 0.357 | C122: =元ほうれん草!C122-C$2 -> 0.056 | D122: =元ほうれん草!D122-D$2 -> 0.184 | E122: =元ほうれん草!E122-E$2 -> 0.715 | F122: =元ほうれん草!F122-F$2 -> 0.848 | G122: =元ほうれん草!G122-G$2 -> 0.298 | H122: =元ほうれん草!H122-H$2 -> 0.188 | I122: =元ほうれん草!I122-I$2 -> 0.236 | J122: =元ほうれん草!J122-J$2 -> 0.211 | K122: =元ほうれん草!K122-K$2 -> 0.108 | L122: =元ほうれん草!L122-L$2 -> 0.031 | M122: =元ほうれん草!M122-M$2 -> 0.011 | N122: =元ほうれん草!N122-N$2 -> 0.014 | O122: =元ほうれん草!O122-O$2 -> 0.036 | P122: =元ほうれん草!P122-P$2 -> 0.066
A123: 419 | B123: =元ほうれん草!B123-B$2 -> 0.366 | C123: =元ほうれん草!C123-C$2 -> 0.056 | D123: =元ほうれん草!D123-D$2 -> 0.172 | E123: =元ほうれん草!E123-E$2 -> 0.724 | F123: =元ほうれん草!F123-F$2 -> 0.862 | G123: =元ほうれん草!G123-G$2 -> 0.309 | H123: =元ほうれん草!H123-H$2 -> 0.197 | I123: =元ほうれん草!I123-I$2 -> 0.242 | J123: =元ほうれん草!J123-J$2 -> 0.215 | K123: =元ほうれん草!K123-K$2 -> 0.109 | L123: =元ほうれん草!L123-L$2 -> 0.031 | M123: =元ほうれん草!M123-M$2 -> 0.01 | N123: =元ほうれん草!N123-N$2 -> 0.014 | O123: =元ほうれん草!O123-O$2 -> 0.036 | P123: =元ほうれん草!P123-P$2 -> 0.065
A124: 420 | B124: =元ほうれん草!B124-B$2 -> 0.376 | C124: =元ほうれん草!C124-C$2 -> 0.057 | D124: =元ほうれん草!D124-D$2 -> 0.162 | E124: =元ほうれん草!E124-E$2 -> 0.739 | F124: =元ほうれん草!F124-F$2 -> 0.883 | G124: =元ほうれん草!G124-G$2 -> 0.323 | H124: =元ほうれん草!H124-H$2 -> 0.209 | I124: =元ほうれん草!I124-I$2 -> 0.249 | J124: =元ほうれん草!J124-J$2 -> 0.218 | K124: =元ほうれん草!K124-K$2 -> 0.111 | L124: =元ほうれん草!L124-L$2 -> 0.032 | M124: =元ほうれん草!M124-M$2 -> 0.01 | N124: =元ほうれん草!N124-N$2 -> 0.014 | O124: =元ほうれん草!O124-O$2 -> 0.036 | P124: =元ほうれん草!P124-P$2 -> 0.064
A125: 421 | B125: =元ほうれん草!B125-B$2 -> 0.381 | C125: =元ほうれん草!C125-C$2 -> 0.057 | D125: =元ほうれん草!D125-D$2 -> 0.153 | E125: =元ほうれん草!E125-E$2 -> 0.758 | F125: =元ほうれん草!F125-F$2 -> 0.909 | G125: =元ほうれん草!G125-G$2 -> 0.337 | H125: =元ほうれん草!H125-H$2 -> 0.22 | I125: =元ほうれん草!I125-I$2 -> 0.254 | J125: =元ほうれん草!J125-J$2 -> 0.221 | K125: =元ほうれん草!K125-K$2 -> 0.112 | L125: =元ほうれん草!L125-L$2 -> 0.032 | M125: =元ほうれん草!M125-M$2 -> 0.011 | N125: =元ほうれん草!N125-N$2 -> 0.014 | O125: =元ほうれん草!O125-O$2 -> 0.036 | P125: =元ほうれん草!P125-P$2 -> 0.064
A126: 422 | B126: =元ほうれん草!B126-B$2 -> 0.384 | C126: =元ほうれん草!C126-C$2 -> 0.057 | D126: =元ほうれん草!D126-D$2 -> 0.144 | E126: =元ほうれん草!E126-E$2 -> 0.779 | F126: =元ほうれん草!F126-F$2 -> 0.938 | G126: =元ほうれん草!G126-G$2 -> 0.351 | H126: =元ほうれん草!H126-H$2 -> 0.229 | I126: =元ほうれん草!I126-I$2 -> 0.258 | J126: =元ほうれん草!J126-J$2 -> 0.223 | K126: =元ほうれん草!K126-K$2 -> 0.113 | L126: =元ほうれん草!L126-L$2 -> 0.032 | M126: =元ほうれん草!M126-M$2 -> 0.011 | N126: =元ほうれん草!N126-N$2 -> 0.013 | O126: =元ほうれん草!O126-O$2 -> 0.035 | P126: =元ほうれん草!P126-P$2 -> 0.063
A127: 423 | B127: =元ほうれん草!B127-B$2 -> 0.388 | C127: =元ほうれん草!C127-C$2 -> 0.057 | D127: =元ほうれん草!D127-D$2 -> 0.134 | E127: =元ほうれん草!E127-E$2 -> 0.807 | F127: =元ほうれん草!F127-F$2 -> 0.975 | G127: =元ほうれん草!G127-G$2 -> 0.37 | H127: =元ほうれん草!H127-H$2 -> 0.24 | I127: =元ほうれん草!I127-I$2 -> 0.262 | J127: =元ほうれん草!J127-J$2 -> 0.224 | K127: =元ほうれん草!K127-K$2 -> 0.113 | L127: =元ほうれん草!L127-L$2 -> 0.032 | M127: =元ほうれん草!M127-M$2 -> 0.011 | N127: =元ほうれん草!N127-N$2 -> 0.012 | O127: =元ほうれん草!O127-O$2 -> 0.033 | P127: =元ほうれん草!P127-P$2 -> 0.062
A128: 424 | B128: =元ほうれん草!B128-B$2 -> 0.394 | C128: =元ほうれん草!C128-C$2 -> 0.057 | D128: =元ほうれん草!D128-D$2 -> 0.127 | E128: =元ほうれん草!E128-E$2 -> 0.844 | F128: =元ほうれん草!F128-F$2 -> 1.018 | G128: =元ほうれん草!G128-G$2 -> 0.39 | H128: =元ほうれん草!H128-H$2 -> 0.252 | I128: =元ほうれん草!I128-I$2 -> 0.268 | J128: =元ほうれん草!J128-J$2 -> 0.226 | K128: =元ほうれん草!K128-K$2 -> 0.114 | L128: =元ほうれん草!L128-L$2 -> 0.033 | M128: =元ほうれん草!M128-M$2 -> 0.011 | N128: =元ほうれん草!N128-N$2 -> 0.012 | O128: =元ほうれん草!O128-O$2 -> 0.033 | P128: =元ほうれん草!P128-P$2 -> 0.062
A129: 425 | B129: =元ほうれん草!B129-B$2 -> 0.398 | C129: =元ほうれん草!C129-C$2 -> 0.059 | D129: =元ほうれん草!D129-D$2 -> 0.12 | E129: =元ほうれん草!E129-E$2 -> 0.882 | F129: =元ほうれん草!F129-F$2 -> 1.062 | G129: =元ほうれん草!G129-G$2 -> 0.41 | H129: =元ほうれん草!H129-H$2 -> 0.264 | I129: =元ほうれん草!I129-I$2 -> 0.273 | J129: =元ほうれん草!J129-J$2 -> 0.227 | K129: =元ほうれん草!K129-K$2 -> 0.115 | L129: =元ほうれん草!L129-L$2 -> 0.034 | M129: =元ほうれん草!M129-M$2 -> 0.012 | N129: =元ほうれん草!N129-N$2 -> 0.013 | O129: =元ほうれん草!O129-O$2 -> 0.034 | P129: =元ほうれん草!P129-P$2 -> 0.063
A130: 426 | B130: =元ほうれん草!B130-B$2 -> 0.403 | C130: =元ほうれん草!C130-C$2 -> 0.06 | D130: =元ほうれん草!D130-D$2 -> 0.114 | E130: =元ほうれん草!E130-E$2 -> 0.917 | F130: =元ほうれん草!F130-F$2 -> 1.105 | G130: =元ほうれん草!G130-G$2 -> 0.429 | H130: =元ほうれん草!H130-H$2 -> 0.274 | I130: =元ほうれん草!I130-I$2 -> 0.277 | J130: =元ほうれん草!J130-J$2 -> 0.229 | K130: =元ほうれん草!K130-K$2 -> 0.117 | L130: =元ほうれん草!L130-L$2 -> 0.034 | M130: =元ほうれん草!M130-M$2 -> 0.012 | N130: =元ほうれん草!N130-N$2 -> 0.015 | O130: =元ほうれん草!O130-O$2 -> 0.035 | P130: =元ほうれん草!P130-P$2 -> 0.064
A131: 427 | B131: =元ほうれん草!B131-B$2 -> 0.407 | C131: =元ほうれん草!C131-C$2 -> 0.059 | D131: =元ほうれん草!D131-D$2 -> 0.109 | E131: =元ほうれん草!E131-E$2 -> 0.948 | F131: =元ほうれん草!F131-F$2 -> 1.139 | G131: =元ほうれん草!G131-G$2 -> 0.446 | H131: =元ほうれん草!H131-H$2 -> 0.282 | I131: =元ほうれん草!I131-I$2 -> 0.28 | J131: =元ほうれん草!J131-J$2 -> 0.232 | K131: =元ほうれん草!K131-K$2 -> 0.118 | L131: =元ほうれん草!L131-L$2 -> 0.034 | M131: =元ほうれん草!M131-M$2 -> 0.013 | N131: =元ほうれん草!N131-N$2 -> 0.015 | O131: =元ほうれん草!O131-O$2 -> 0.036 | P131: =元ほうれん草!P131-P$2 -> 0.064
A132: 428 | B132: =元ほうれん草!B132-B$2 -> 0.41 | C132: =元ほうれん草!C132-C$2 -> 0.058 | D132: =元ほうれん草!D132-D$2 -> 0.103 | E132: =元ほうれん草!E132-E$2 -> 0.974 | F132: =元ほうれん草!F132-F$2 -> 1.171 | G132: =元ほうれん草!G132-G$2 -> 0.459 | H132: =元ほうれん草!H132-H$2 -> 0.289 | I132: =元ほうれん草!I132-I$2 -> 0.284 | J132: =元ほうれん草!J132-J$2 -> 0.234 | K132: =元ほうれん草!K132-K$2 -> 0.118 | L132: =元ほうれん草!L132-L$2 -> 0.034 | M132: =元ほうれん草!M132-M$2 -> 0.011 | N132: =元ほうれん草!N132-N$2 -> 0.014 | O132: =元ほうれん草!O132-O$2 -> 0.035 | P132: =元ほうれん草!P132-P$2 -> 0.065
A133: 429 | B133: =元ほうれん草!B133-B$2 -> 0.413 | C133: =元ほうれん草!C133-C$2 -> 0.058 | D133: =元ほうれん草!D133-D$2 -> 0.099 | E133: =元ほうれん草!E133-E$2 -> 0.999 | F133: =元ほうれん草!F133-F$2 -> 1.204 | G133: =元ほうれん草!G133-G$2 -> 0.47 | H133: =元ほうれん草!H133-H$2 -> 0.296 | I133: =元ほうれん草!I133-I$2 -> 0.288 | J133: =元ほうれん草!J133-J$2 -> 0.237 | K133: =元ほうれん草!K133-K$2 -> 0.119 | L133: =元ほうれん草!L133-L$2 -> 0.035 | M133: =元ほうれん草!M133-M$2 -> 0.011 | N133: =元ほうれん草!N133-N$2 -> 0.015 | O133: =元ほうれん草!O133-O$2 -> 0.037 | P133: =元ほうれん草!P133-P$2 -> 0.068
A134: 430 | B134: =元ほうれん草!B134-B$2 -> 0.414 | C134: =元ほうれん草!C134-C$2 -> 0.059 | D134: =元ほうれん草!D134-D$2 -> 0.096 | E134: =元ほうれん草!E134-E$2 -> 1.012 | F134: =元ほうれん草!F134-F$2 -> 1.219 | G134: =元ほうれん草!G134-G$2 -> 0.476 | H134: =元ほうれん草!H134-H$2 -> 0.301 | I134: =元ほうれん草!I134-I$2 -> 0.292 | J134: =元ほうれん草!J134-J$2 -> 0.241 | K134: =元ほうれん草!K134-K$2 -> 0.121 | L134: =元ほうれん草!L134-L$2 -> 0.036 | M134: =元ほうれん草!M134-M$2 -> 0.012 | N134: =元ほうれん草!N134-N$2 -> 0.015 | O134: =元ほうれん草!O134-O$2 -> 0.039 | P134: =元ほうれん草!P134-P$2 -> 0.071
A135: 431 | B135: =元ほうれん草!B135-B$2 -> 0.417 | C135: =元ほうれん草!C135-C$2 -> 0.06 | D135: =元ほうれん草!D135-D$2 -> 0.093 | E135: =元ほうれん草!E135-E$2 -> 1.007 | F135: =元ほうれん草!F135-F$2 -> 1.211 | G135: =元ほうれん草!G135-G$2 -> 0.477 | H135: =元ほうれん草!H135-H$2 -> 0.304 | I135: =元ほうれん草!I135-I$2 -> 0.296 | J135: =元ほうれん草!J135-J$2 -> 0.244 | K135: =元ほうれん草!K135-K$2 -> 0.122 | L135: =元ほうれん草!L135-L$2 -> 0.036 | M135: =元ほうれん草!M135-M$2 -> 0.013 | N135: =元ほうれん草!N135-N$2 -> 0.016 | O135: =元ほうれん草!O135-O$2 -> 0.041 | P135: =元ほうれん草!P135-P$2 -> 0.074
A136: 432 | B136: =元ほうれん草!B136-B$2 -> 0.418 | C136: =元ほうれん草!C136-C$2 -> 0.059 | D136: =元ほうれん草!D136-D$2 -> 0.09 | E136: =元ほうれん草!E136-E$2 -> 0.99 | F136: =元ほうれん草!F136-F$2 -> 1.184 | G136: =元ほうれん草!G136-G$2 -> 0.472 | H136: =元ほうれん草!H136-H$2 -> 0.304 | I136: =元ほうれん草!I136-I$2 -> 0.3 | J136: =元ほうれん草!J136-J$2 -> 0.249 | K136: =元ほうれん草!K136-K$2 -> 0.125 | L136: =元ほうれん草!L136-L$2 -> 0.037 | M136: =元ほうれん草!M136-M$2 -> 0.014 | N136: =元ほうれん草!N136-N$2 -> 0.019 | O136: =元ほうれん草!O136-O$2 -> 0.044 | P136: =元ほうれん草!P136-P$2 -> 0.077
A137: 433 | B137: =元ほうれん草!B137-B$2 -> 0.417 | C137: =元ほうれん草!C137-C$2 -> 0.059 | D137: =元ほうれん草!D137-D$2 -> 0.085 | E137: =元ほうれん草!E137-E$2 -> 0.959 | F137: =元ほうれん草!F137-F$2 -> 1.145 | G137: =元ほうれん草!G137-G$2 -> 0.463 | H137: =元ほうれん草!H137-H$2 -> 0.303 | I137: =元ほうれん草!I137-I$2 -> 0.304 | J137: =元ほうれん草!J137-J$2 -> 0.254 | K137: =元ほうれん草!K137-K$2 -> 0.128 | L137: =元ほうれん草!L137-L$2 -> 0.038 | M137: =元ほうれん草!M137-M$2 -> 0.013 | N137: =元ほうれん草!N137-N$2 -> 0.02 | O137: =元ほうれん草!O137-O$2 -> 0.046 | P137: =元ほうれん草!P137-P$2 -> 0.081
A138: 434 | B138: =元ほうれん草!B138-B$2 -> 0.42 | C138: =元ほうれん草!C138-C$2 -> 0.06 | D138: =元ほうれん草!D138-D$2 -> 0.08 | E138: =元ほうれん草!E138-E$2 -> 0.918 | F138: =元ほうれん草!F138-F$2 -> 1.099 | G138: =元ほうれん草!G138-G$2 -> 0.451 | H138: =元ほうれん草!H138-H$2 -> 0.302 | I138: =元ほうれん草!I138-I$2 -> 0.309 | J138: =元ほうれん草!J138-J$2 -> 0.26 | K138: =元ほうれん草!K138-K$2 -> 0.131 | L138: =元ほうれん草!L138-L$2 -> 0.039 | M138: =元ほうれん草!M138-M$2 -> 0.013 | N138: =元ほうれん草!N138-N$2 -> 0.02 | O138: =元ほうれん草!O138-O$2 -> 0.047 | P138: =元ほうれん草!P138-P$2 -> 0.084
A139: 435 | B139: =元ほうれん草!B139-B$2 -> 0.424 | C139: =元ほうれん草!C139-C$2 -> 0.062 | D139: =元ほうれん草!D139-D$2 -> 0.075 | E139: =元ほうれん草!E139-E$2 -> 0.865 | F139: =元ほうれん草!F139-F$2 -> 1.04 | G139: =元ほうれん草!G139-G$2 -> 0.436 | H139: =元ほうれん草!H139-H$2 -> 0.302 | I139: =元ほうれん草!I139-I$2 -> 0.314 | J139: =元ほうれん草!J139-J$2 -> 0.267 | K139: =元ほうれん草!K139-K$2 -> 0.135 | L139: =元ほうれん草!L139-L$2 -> 0.04 | M139: =元ほうれん草!M139-M$2 -> 0.015 | N139: =元ほうれん草!N139-N$2 -> 0.022 | O139: =元ほうれん草!O139-O$2 -> 0.05 | P139: =元ほうれん草!P139-P$2 -> 0.088
A140: 436 | B140: =元ほうれん草!B140-B$2 -> 0.429 | C140: =元ほうれん草!C140-C$2 -> 0.064 | D140: =元ほうれん草!D140-D$2 -> 0.071 | E140: =元ほうれん草!E140-E$2 -> 0.795 | F140: =元ほうれん草!F140-F$2 -> 0.961 | G140: =元ほうれん草!G140-G$2 -> 0.417 | H140: =元ほうれん草!H140-H$2 -> 0.301 | I140: =元ほうれん草!I140-I$2 -> 0.321 | J140: =元ほうれん草!J140-J$2 -> 0.273 | K140: =元ほうれん草!K140-K$2 -> 0.139 | L140: =元ほうれん草!L140-L$2 -> 0.041 | M140: =元ほうれん草!M140-M$2 -> 0.016 | N140: =元ほうれん草!N140-N$2 -> 0.023 | O140: =元ほうれん草!O140-O$2 -> 0.053 | P140: =元ほうれん草!P140-P$2 -> 0.092
A141: 437 | B141: =元ほうれん草!B141-B$2 -> 0.435 | C141: =元ほうれん草!C141-C$2 -> 0.064 | D141: =元ほうれん草!D141-D$2 -> 0.064 | E141: =元ほうれん草!E141-E$2 -> 0.715 | F141: =元ほうれん草!F141-F$2 -> 0.865 | G141: =元ほうれん草!G141-G$2 -> 0.395 | H141: =元ほうれん草!H141-H$2 -> 0.301 | I141: =元ほうれん草!I141-I$2 -> 0.326 | J141: =元ほうれん草!J141-J$2 -> 0.28 | K141: =元ほうれん草!K141-K$2 -> 0.142 | L141: =元ほうれん草!L141-L$2 -> 0.042 | M141: =元ほうれん草!M141-M$2 -> 0.017 | N141: =元ほうれん草!N141-N$2 -> 0.023 | O141: =元ほうれん草!O141-O$2 -> 0.054 | P141: =元ほうれん草!P141-P$2 -> 0.094
A142: 438 | B142: =元ほうれん草!B142-B$2 -> 0.443 | C142: =元ほうれん草!C142-C$2 -> 0.065 | D142: =元ほうれん草!D142-D$2 -> 0.058 | E142: =元ほうれん草!E142-E$2 -> 0.629 | F142: =元ほうれん草!F142-F$2 -> 0.764 | G142: =元ほうれん草!G142-G$2 -> 0.371 | H142: =元ほうれん草!H142-H$2 -> 0.3 | I142: =元ほうれん草!I142-I$2 -> 0.332 | J142: =元ほうれん草!J142-J$2 -> 0.288 | K142: =元ほうれん草!K142-K$2 -> 0.146 | L142: =元ほうれん草!L142-L$2 -> 0.043 | M142: =元ほうれん草!M142-M$2 -> 0.018 | N142: =元ほうれん草!N142-N$2 -> 0.024 | O142: =元ほうれん草!O142-O$2 -> 0.055 | P142: =元ほうれん草!P142-P$2 -> 0.095
A143: 439 | B143: =元ほうれん草!B143-B$2 -> 0.455 | C143: =元ほうれん草!C143-C$2 -> 0.067 | D143: =元ほうれん草!D143-D$2 -> 0.052 | E143: =元ほうれん草!E143-E$2 -> 0.545 | F143: =元ほうれん草!F143-F$2 -> 0.666 | G143: =元ほうれん草!G143-G$2 -> 0.353 | H143: =元ほうれん草!H143-H$2 -> 0.303 | I143: =元ほうれん草!I143-I$2 -> 0.339 | J143: =元ほうれん草!J143-J$2 -> 0.296 | K143: =元ほうれん草!K143-K$2 -> 0.151 | L143: =元ほうれん草!L143-L$2 -> 0.044 | M143: =元ほうれん草!M143-M$2 -> 0.018 | N143: =元ほうれん草!N143-N$2 -> 0.025 | O143: =元ほうれん草!O143-O$2 -> 0.057 | P143: =元ほうれん草!P143-P$2 -> 0.096
A144: 440 | B144: =元ほうれん草!B144-B$2 -> 0.468 | C144: =元ほうれん草!C144-C$2 -> 0.069 | D144: =元ほうれん草!D144-D$2 -> 0.048 | E144: =元ほうれん草!E144-E$2 -> 0.47 | F144: =元ほうれん草!F144-F$2 -> 0.581 | G144: =元ほうれん草!G144-G$2 -> 0.339 | H144: =元ほうれん草!H144-H$2 -> 0.309 | I144: =元ほうれん草!I144-I$2 -> 0.345 | J144: =元ほうれん草!J144-J$2 -> 0.302 | K144: =元ほうれん草!K144-K$2 -> 0.154 | L144: =元ほうれん草!L144-L$2 -> 0.046 | M144: =元ほうれん草!M144-M$2 -> 0.019 | N144: =元ほうれん草!N144-N$2 -> 0.026 | O144: =元ほうれん草!O144-O$2 -> 0.058 | P144: =元ほうれん草!P144-P$2 -> 0.098
A145: 441 | B145: =元ほうれん草!B145-B$2 -> 0.479 | C145: =元ほうれん草!C145-C$2 -> 0.07 | D145: =元ほうれん草!D145-D$2 -> 0.042 | E145: =元ほうれん草!E145-E$2 -> 0.401 | F145: =元ほうれん草!F145-F$2 -> 0.502 | G145: =元ほうれん草!G145-G$2 -> 0.328 | H145: =元ほうれん草!H145-H$2 -> 0.315 | I145: =元ほうれん草!I145-I$2 -> 0.351 | J145: =元ほうれん草!J145-J$2 -> 0.308 | K145: =元ほうれん草!K145-K$2 -> 0.156 | L145: =元ほうれん草!L145-L$2 -> 0.047 | M145: =元ほうれん草!M145-M$2 -> 0.019 | N145: =元ほうれん草!N145-N$2 -> 0.025 | O145: =元ほうれん草!O145-O$2 -> 0.057 | P145: =元ほうれん草!P145-P$2 -> 0.097
A146: 442 | B146: =元ほうれん草!B146-B$2 -> 0.491 | C146: =元ほうれん草!C146-C$2 -> 0.071 | D146: =元ほうれん草!D146-D$2 -> 0.037 | E146: =元ほうれん草!E146-E$2 -> 0.332 | F146: =元ほうれん草!F146-F$2 -> 0.425 | G146: =元ほうれん草!G146-G$2 -> 0.32 | H146: =元ほうれん草!H146-H$2 -> 0.325 | I146: =元ほうれん草!I146-I$2 -> 0.358 | J146: =元ほうれん草!J146-J$2 -> 0.313 | K146: =元ほうれん草!K146-K$2 -> 0.158 | L146: =元ほうれん草!L146-L$2 -> 0.047 | M146: =元ほうれん草!M146-M$2 -> 0.018 | N146: =元ほうれん草!N146-N$2 -> 0.024 | O146: =元ほうれん草!O146-O$2 -> 0.057 | P146: =元ほうれん草!P146-P$2 -> 0.095
A147: 443 | B147: =元ほうれん草!B147-B$2 -> 0.504 | C147: =元ほうれん草!C147-C$2 -> 0.073 | D147: =元ほうれん草!D147-D$2 -> 0.034 | E147: =元ほうれん草!E147-E$2 -> 0.275 | F147: =元ほうれん草!F147-F$2 -> 0.36 | G147: =元ほうれん草!G147-G$2 -> 0.319 | H147: =元ほうれん草!H147-H$2 -> 0.339 | I147: =元ほうれん草!I147-I$2 -> 0.367 | J147: =元ほうれん草!J147-J$2 -> 0.32 | K147: =元ほうれん草!K147-K$2 -> 0.162 | L147: =元ほうれん草!L147-L$2 -> 0.048 | M147: =元ほうれん草!M147-M$2 -> 0.019 | N147: =元ほうれん草!N147-N$2 -> 0.025 | O147: =元ほうれん草!O147-O$2 -> 0.056 | P147: =元ほうれん草!P147-P$2 -> 0.095
A148: 444 | B148: =元ほうれん草!B148-B$2 -> 0.513 | C148: =元ほうれん草!C148-C$2 -> 0.074 | D148: =元ほうれん草!D148-D$2 -> 0.031 | E148: =元ほうれん草!E148-E$2 -> 0.225 | F148: =元ほうれん草!F148-F$2 -> 0.306 | G148: =元ほうれん草!G148-G$2 -> 0.322 | H148: =元ほうれん草!H148-H$2 -> 0.356 | I148: =元ほうれん草!I148-I$2 -> 0.378 | J148: =元ほうれん草!J148-J$2 -> 0.324 | K148: =元ほうれん草!K148-K$2 -> 0.164 | L148: =元ほうれん草!L148-L$2 -> 0.049 | M148: =元ほうれん草!M148-M$2 -> 0.019 | N148: =元ほうれん草!N148-N$2 -> 0.024 | O148: =元ほうれん草!O148-O$2 -> 0.055 | P148: =元ほうれん草!P148-P$2 -> 0.093
A149: 445 | B149: =元ほうれん草!B149-B$2 -> 0.521 | C149: =元ほうれん草!C149-C$2 -> 0.075 | D149: =元ほうれん草!D149-D$2 -> 0.028 | E149: =元ほうれん草!E149-E$2 -> 0.182 | F149: =元ほうれん草!F149-F$2 -> 0.261 | G149: =元ほうれん草!G149-G$2 -> 0.33 | H149: =元ほうれん草!H149-H$2 -> 0.376 | I149: =元ほうれん草!I149-I$2 -> 0.388 | J149: =元ほうれん草!J149-J$2 -> 0.326 | K149: =元ほうれん草!K149-K$2 -> 0.165 | L149: =元ほうれん草!L149-L$2 -> 0.049 | M149: =元ほうれん草!M149-M$2 -> 0.02 | N149: =元ほうれん草!N149-N$2 -> 0.023 | O149: =元ほうれん草!O149-O$2 -> 0.053 | P149: =元ほうれん草!P149-P$2 -> 0.09
A150: 446 | B150: =元ほうれん草!B150-B$2 -> 0.527 | C150: =元ほうれん草!C150-C$2 -> 0.075 | D150: =元ほうれん草!D150-D$2 -> 0.026 | E150: =元ほうれん草!E150-E$2 -> 0.148 | F150: =元ほうれん草!F150-F$2 -> 0.226 | G150: =元ほうれん草!G150-G$2 -> 0.344 | H150: =元ほうれん草!H150-H$2 -> 0.398 | I150: =元ほうれん草!I150-I$2 -> 0.397 | J150: =元ほうれん草!J150-J$2 -> 0.329 | K150: =元ほうれん草!K150-K$2 -> 0.165 | L150: =元ほうれん草!L150-L$2 -> 0.05 | M150: =元ほうれん草!M150-M$2 -> 0.02 | N150: =元ほうれん草!N150-N$2 -> 0.023 | O150: =元ほうれん草!O150-O$2 -> 0.051 | P150: =元ほうれん草!P150-P$2 -> 0.087
A151: 447 | B151: =元ほうれん草!B151-B$2 -> 0.534 | C151: =元ほうれん草!C151-C$2 -> 0.077 | D151: =元ほうれん草!D151-D$2 -> 0.024 | E151: =元ほうれん草!E151-E$2 -> 0.121 | F151: =元ほうれん草!F151-F$2 -> 0.2 | G151: =元ほうれん草!G151-G$2 -> 0.362 | H151: =元ほうれん草!H151-H$2 -> 0.423 | I151: =元ほうれん草!I151-I$2 -> 0.405 | J151: =元ほうれん草!J151-J$2 -> 0.331 | K151: =元ほうれん草!K151-K$2 -> 0.166 | L151: =元ほうれん草!L151-L$2 -> 0.049 | M151: =元ほうれん草!M151-M$2 -> 0.02 | N151: =元ほうれん草!N151-N$2 -> 0.023 | O151: =元ほうれん草!O151-O$2 -> 0.049 | P151: =元ほうれん草!P151-P$2 -> 0.085
A152: 448 | B152: =元ほうれん草!B152-B$2 -> 0.538 | C152: =元ほうれん草!C152-C$2 -> 0.077 | D152: =元ほうれん草!D152-D$2 -> 0.023 | E152: =元ほうれん草!E152-E$2 -> 0.101 | F152: =元ほうれん草!F152-F$2 -> 0.182 | G152: =元ほうれん草!G152-G$2 -> 0.379 | H152: =元ほうれん草!H152-H$2 -> 0.447 | I152: =元ほうれん草!I152-I$2 -> 0.414 | J152: =元ほうれん草!J152-J$2 -> 0.331 | K152: =元ほうれん草!K152-K$2 -> 0.165 | L152: =元ほうれん草!L152-L$2 -> 0.049 | M152: =元ほうれん草!M152-M$2 -> 0.019 | N152: =元ほうれん草!N152-N$2 -> 0.021 | O152: =元ほうれん草!O152-O$2 -> 0.047 | P152: =元ほうれん草!P152-P$2 -> 0.081
A153: 449 | B153: =元ほうれん草!B153-B$2 -> 0.541 | C153: =元ほうれん草!C153-C$2 -> 0.078 | D153: =元ほうれん草!D153-D$2 -> 0.021 | E153: =元ほうれん草!E153-E$2 -> 0.084 | F153: =元ほうれん草!F153-F$2 -> 0.169 | G153: =元ほうれん草!G153-G$2 -> 0.4 | H153: =元ほうれん草!H153-H$2 -> 0.471 | I153: =元ほうれん草!I153-I$2 -> 0.422 | J153: =元ほうれん草!J153-J$2 -> 0.331 | K153: =元ほうれん草!K153-K$2 -> 0.164 | L153: =元ほうれん草!L153-L$2 -> 0.049 | M153: =元ほうれん草!M153-M$2 -> 0.019 | N153: =元ほうれん草!N153-N$2 -> 0.02 | O153: =元ほうれん草!O153-O$2 -> 0.045 | P153: =元ほうれん草!P153-P$2 -> 0.079
A154: 450 | B154: =元ほうれん草!B154-B$2 -> 0.543 | C154: =元ほうれん草!C154-C$2 -> 0.079 | D154: =元ほうれん草!D154-D$2 -> 0.019 | E154: =元ほうれん草!E154-E$2 -> 0.071 | F154: =元ほうれん草!F154-F$2 -> 0.159 | G154: =元ほうれん草!G154-G$2 -> 0.423 | H154: =元ほうれん草!H154-H$2 -> 0.497 | I154: =元ほうれん草!I154-I$2 -> 0.429 | J154: =元ほうれん草!J154-J$2 -> 0.33 | K154: =元ほうれん草!K154-K$2 -> 0.162 | L154: =元ほうれん草!L154-L$2 -> 0.049 | M154: =元ほうれん草!M154-M$2 -> 0.019 | N154: =元ほうれん草!N154-N$2 -> 0.02 | O154: =元ほうれん草!O154-O$2 -> 0.043 | P154: =元ほうれん草!P154-P$2 -> 0.076
A155: 451 | B155: =元ほうれん草!B155-B$2 -> 0.543 | C155: =元ほうれん草!C155-C$2 -> 0.079 | D155: =元ほうれん草!D155-D$2 -> 0.019 | E155: =元ほうれん草!E155-E$2 -> 0.06 | F155: =元ほうれん草!F155-F$2 -> 0.153 | G155: =元ほうれん草!G155-G$2 -> 0.445 | H155: =元ほうれん草!H155-H$2 -> 0.521 | I155: =元ほうれん草!I155-I$2 -> 0.436 | J155: =元ほうれん草!J155-J$2 -> 0.327 | K155: =元ほうれん草!K155-K$2 -> 0.161 | L155: =元ほうれん草!L155-L$2 -> 0.049 | M155: =元ほうれん草!M155-M$2 -> 0.019 | N155: =元ほうれん草!N155-N$2 -> 0.019 | O155: =元ほうれん草!O155-O$2 -> 0.042 | P155: =元ほうれん草!P155-P$2 -> 0.073
A156: 452 | B156: =元ほうれん草!B156-B$2 -> 0.542 | C156: =元ほうれん草!C156-C$2 -> 0.078 | D156: =元ほうれん草!D156-D$2 -> 0.017 | E156: =元ほうれん草!E156-E$2 -> 0.05 | F156: =元ほうれん草!F156-F$2 -> 0.147 | G156: =元ほうれん草!G156-G$2 -> 0.463 | H156: =元ほうれん草!H156-H$2 -> 0.541 | I156: =元ほうれん草!I156-I$2 -> 0.44 | J156: =元ほうれん草!J156-J$2 -> 0.323 | K156: =元ほうれん草!K156-K$2 -> 0.157 | L156: =元ほうれん草!L156-L$2 -> 0.047 | M156: =元ほうれん草!M156-M$2 -> 0.018 | N156: =元ほうれん草!N156-N$2 -> 0.018 | O156: =元ほうれん草!O156-O$2 -> 0.04 | P156: =元ほうれん草!P156-P$2 -> 0.069
A157: 453 | B157: =元ほうれん草!B157-B$2 -> 0.539 | C157: =元ほうれん草!C157-C$2 -> 0.078 | D157: =元ほうれん草!D157-D$2 -> 0.017 | E157: =元ほうれん草!E157-E$2 -> 0.044 | F157: =元ほうれん草!F157-F$2 -> 0.143 | G157: =元ほうれん草!G157-G$2 -> 0.48 | H157: =元ほうれん草!H157-H$2 -> 0.557 | I157: =元ほうれん草!I157-I$2 -> 0.442 | J157: =元ほうれん草!J157-J$2 -> 0.319 | K157: =元ほうれん草!K157-K$2 -> 0.155 | L157: =元ほうれん草!L157-L$2 -> 0.046 | M157: =元ほうれん草!M157-M$2 -> 0.017 | N157: =元ほうれん草!N157-N$2 -> 0.017 | O157: =元ほうれん草!O157-O$2 -> 0.038 | P157: =元ほうれん草!P157-P$2 -> 0.067
A158: 454 | B158: =元ほうれん草!B158-B$2 -> 0.535 | C158: =元ほうれん草!C158-C$2 -> 0.077 | D158: =元ほうれん草!D158-D$2 -> 0.015 | E158: =元ほうれん草!E158-E$2 -> 0.038 | F158: =元ほうれん草!F158-F$2 -> 0.141 | G158: =元ほうれん草!G158-G$2 -> 0.491 | H158: =元ほうれん草!H158-H$2 -> 0.569 | I158: =元ほうれん草!I158-I$2 -> 0.441 | J158: =元ほうれん草!J158-J$2 -> 0.314 | K158: =元ほうれん草!K158-K$2 -> 0.152 | L158: =元ほうれん草!L158-L$2 -> 0.046 | M158: =元ほうれん草!M158-M$2 -> 0.017 | N158: =元ほうれん草!N158-N$2 -> 0.017 | O158: =元ほうれん草!O158-O$2 -> 0.036 | P158: =元ほうれん草!P158-P$2 -> 0.064
A159: 455 | B159: =元ほうれん草!B159-B$2 -> 0.531 | C159: =元ほうれん草!C159-C$2 -> 0.077 | D159: =元ほうれん草!D159-D$2 -> 0.015 | E159: =元ほうれん草!E159-E$2 -> 0.034 | F159: =元ほうれん草!F159-F$2 -> 0.139 | G159: =元ほうれん草!G159-G$2 -> 0.497 | H159: =元ほうれん草!H159-H$2 -> 0.575 | I159: =元ほうれん草!I159-I$2 -> 0.439 | J159: =元ほうれん草!J159-J$2 -> 0.308 | K159: =元ほうれん草!K159-K$2 -> 0.149 | L159: =元ほうれん草!L159-L$2 -> 0.045 | M159: =元ほうれん草!M159-M$2 -> 0.017 | N159: =元ほうれん草!N159-N$2 -> 0.017 | O159: =元ほうれん草!O159-O$2 -> 0.035 | P159: =元ほうれん草!P159-P$2 -> 0.062
A160: 456 | B160: =元ほうれん草!B160-B$2 -> 0.525 | C160: =元ほうれん草!C160-C$2 -> 0.077 | D160: =元ほうれん草!D160-D$2 -> 0.015 | E160: =元ほうれん草!E160-E$2 -> 0.031 | F160: =元ほうれん草!F160-F$2 -> 0.136 | G160: =元ほうれん草!G160-G$2 -> 0.497 | H160: =元ほうれん草!H160-H$2 -> 0.573 | I160: =元ほうれん草!I160-I$2 -> 0.433 | J160: =元ほうれん草!J160-J$2 -> 0.302 | K160: =元ほうれん草!K160-K$2 -> 0.146 | L160: =元ほうれん草!L160-L$2 -> 0.043 | M160: =元ほうれん草!M160-M$2 -> 0.016 | N160: =元ほうれん草!N160-N$2 -> 0.016 | O160: =元ほうれん草!O160-O$2 -> 0.034 | P160: =元ほうれん草!P160-P$2 -> 0.062
A161: 457 | B161: =元ほうれん草!B161-B$2 -> 0.517 | C161: =元ほうれん草!C161-C$2 -> 0.076 | D161: =元ほうれん草!D161-D$2 -> 0.014 | E161: =元ほうれん草!E161-E$2 -> 0.028 | F161: =元ほうれん草!F161-F$2 -> 0.132 | G161: =元ほうれん草!G161-G$2 -> 0.492 | H161: =元ほうれん草!H161-H$2 -> 0.568 | I161: =元ほうれん草!I161-I$2 -> 0.426 | J161: =元ほうれん草!J161-J$2 -> 0.297 | K161: =元ほうれん草!K161-K$2 -> 0.142 | L161: =元ほうれん草!L161-L$2 -> 0.042 | M161: =元ほうれん草!M161-M$2 -> 0.015 | N161: =元ほうれん草!N161-N$2 -> 0.015 | O161: =元ほうれん草!O161-O$2 -> 0.034 | P161: =元ほうれん草!P161-P$2 -> 0.061
A162: 458 | B162: =元ほうれん草!B162-B$2 -> 0.51 | C162: =元ほうれん草!C162-C$2 -> 0.074 | D162: =元ほうれん草!D162-D$2 -> 0.014 | E162: =元ほうれん草!E162-E$2 -> 0.026 | F162: =元ほうれん草!F162-F$2 -> 0.127 | G162: =元ほうれん草!G162-G$2 -> 0.482 | H162: =元ほうれん草!H162-H$2 -> 0.558 | I162: =元ほうれん草!I162-I$2 -> 0.418 | J162: =元ほうれん草!J162-J$2 -> 0.29 | K162: =元ほうれん草!K162-K$2 -> 0.139 | L162: =元ほうれん草!L162-L$2 -> 0.04 | M162: =元ほうれん草!M162-M$2 -> 0.014 | N162: =元ほうれん草!N162-N$2 -> 0.015 | O162: =元ほうれん草!O162-O$2 -> 0.034 | P162: =元ほうれん草!P162-P$2 -> 0.06
A163: 459 | B163: =元ほうれん草!B163-B$2 -> 0.506 | C163: =元ほうれん草!C163-C$2 -> 0.072 | D163: =元ほうれん草!D163-D$2 -> 0.014 | E163: =元ほうれん草!E163-E$2 -> 0.024 | F163: =元ほうれん草!F163-F$2 -> 0.123 | G163: =元ほうれん草!G163-G$2 -> 0.468 | H163: =元ほうれん草!H163-H$2 -> 0.542 | I163: =元ほうれん草!I163-I$2 -> 0.41 | J163: =元ほうれん草!J163-J$2 -> 0.284 | K163: =元ほうれん草!K163-K$2 -> 0.137 | L163: =元ほうれん草!L163-L$2 -> 0.04 | M163: =元ほうれん草!M163-M$2 -> 0.015 | N163: =元ほうれん草!N163-N$2 -> 0.015 | O163: =元ほうれん草!O163-O$2 -> 0.035 | P163: =元ほうれん草!P163-P$2 -> 0.061
A164: 460 | B164: =元ほうれん草!B164-B$2 -> 0.499 | C164: =元ほうれん草!C164-C$2 -> 0.071 | D164: =元ほうれん草!D164-D$2 -> 0.014 | E164: =元ほうれん草!E164-E$2 -> 0.022 | F164: =元ほうれん草!F164-F$2 -> 0.117 | G164: =元ほうれん草!G164-G$2 -> 0.45 | H164: =元ほうれん草!H164-H$2 -> 0.522 | I164: =元ほうれん草!I164-I$2 -> 0.399 | J164: =元ほうれん草!J164-J$2 -> 0.279 | K164: =元ほうれん草!K164-K$2 -> 0.134 | L164: =元ほうれん草!L164-L$2 -> 0.04 | M164: =元ほうれん草!M164-M$2 -> 0.015 | N164: =元ほうれん草!N164-N$2 -> 0.015 | O164: =元ほうれん草!O164-O$2 -> 0.036 | P164: =元ほうれん草!P164-P$2 -> 0.063
A165: 461 | B165: =元ほうれん草!B165-B$2 -> 0.49 | C165: =元ほうれん草!C165-C$2 -> 0.071 | D165: =元ほうれん草!D165-D$2 -> 0.014 | E165: =元ほうれん草!E165-E$2 -> 0.021 | F165: =元ほうれん草!F165-F$2 -> 0.111 | G165: =元ほうれん草!G165-G$2 -> 0.429 | H165: =元ほうれん草!H165-H$2 -> 0.5 | I165: =元ほうれん草!I165-I$2 -> 0.389 | J165: =元ほうれん草!J165-J$2 -> 0.274 | K165: =元ほうれん草!K165-K$2 -> 0.132 | L165: =元ほうれん草!L165-L$2 -> 0.039 | M165: =元ほうれん草!M165-M$2 -> 0.014 | N165: =元ほうれん草!N165-N$2 -> 0.016 | O165: =元ほうれん草!O165-O$2 -> 0.037 | P165: =元ほうれん草!P165-P$2 -> 0.066
A166: 462 | B166: =元ほうれん草!B166-B$2 -> 0.479 | C166: =元ほうれん草!C166-C$2 -> 0.068 | D166: =元ほうれん草!D166-D$2 -> 0.013 | E166: =元ほうれん草!E166-E$2 -> 0.019 | F166: =元ほうれん草!F166-F$2 -> 0.103 | G166: =元ほうれん草!G166-G$2 -> 0.403 | H166: =元ほうれん草!H166-H$2 -> 0.472 | I166: =元ほうれん草!I166-I$2 -> 0.376 | J166: =元ほうれん草!J166-J$2 -> 0.27 | K166: =元ほうれん草!K166-K$2 -> 0.13 | L166: =元ほうれん草!L166-L$2 -> 0.037 | M166: =元ほうれん草!M166-M$2 -> 0.013 | N166: =元ほうれん草!N166-N$2 -> 0.016 | O166: =元ほうれん草!O166-O$2 -> 0.038 | P166: =元ほうれん草!P166-P$2 -> 0.069
A167: 463 | B167: =元ほうれん草!B167-B$2 -> 0.469 | C167: =元ほうれん草!C167-C$2 -> 0.067 | D167: =元ほうれん草!D167-D$2 -> 0.012 | E167: =元ほうれん草!E167-E$2 -> 0.018 | F167: =元ほうれん草!F167-F$2 -> 0.096 | G167: =元ほうれん草!G167-G$2 -> 0.375 | H167: =元ほうれん草!H167-H$2 -> 0.443 | I167: =元ほうれん草!I167-I$2 -> 0.365 | J167: =元ほうれん草!J167-J$2 -> 0.268 | K167: =元ほうれん草!K167-K$2 -> 0.129 | L167: =元ほうれん草!L167-L$2 -> 0.037 | M167: =元ほうれん草!M167-M$2 -> 0.013 | N167: =元ほうれん草!N167-N$2 -> 0.017 | O167: =元ほうれん草!O167-O$2 -> 0.04 | P167: =元ほうれん草!P167-P$2 -> 0.072
A168: 464 | B168: =元ほうれん草!B168-B$2 -> 0.464 | C168: =元ほうれん草!C168-C$2 -> 0.067 | D168: =元ほうれん草!D168-D$2 -> 0.013 | E168: =元ほうれん草!E168-E$2 -> 0.018 | F168: =元ほうれん草!F168-F$2 -> 0.09 | G168: =元ほうれん草!G168-G$2 -> 0.348 | H168: =元ほうれん草!H168-H$2 -> 0.415 | I168: =元ほうれん草!I168-I$2 -> 0.355 | J168: =元ほうれん草!J168-J$2 -> 0.269 | K168: =元ほうれん草!K168-K$2 -> 0.131 | L168: =元ほうれん草!L168-L$2 -> 0.038 | M168: =元ほうれん草!M168-M$2 -> 0.015 | N168: =元ほうれん草!N168-N$2 -> 0.019 | O168: =元ほうれん草!O168-O$2 -> 0.044 | P168: =元ほうれん草!P168-P$2 -> 0.078
A169: 465 | B169: =元ほうれん草!B169-B$2 -> 0.459 | C169: =元ほうれん草!C169-C$2 -> 0.068 | D169: =元ほうれん草!D169-D$2 -> 0.014 | E169: =元ほうれん草!E169-E$2 -> 0.019 | F169: =元ほうれん草!F169-F$2 -> 0.084 | G169: =元ほうれん草!G169-G$2 -> 0.326 | H169: =元ほうれん草!H169-H$2 -> 0.392 | I169: =元ほうれん草!I169-I$2 -> 0.347 | J169: =元ほうれん草!J169-J$2 -> 0.269 | K169: =元ほうれん草!K169-K$2 -> 0.133 | L169: =元ほうれん草!L169-L$2 -> 0.038 | M169: =元ほうれん草!M169-M$2 -> 0.015 | N169: =元ほうれん草!N169-N$2 -> 0.02 | O169: =元ほうれん草!O169-O$2 -> 0.047 | P169: =元ほうれん草!P169-P$2 -> 0.082
A170: 466 | B170: =元ほうれん草!B170-B$2 -> 0.454 | C170: =元ほうれん草!C170-C$2 -> 0.067 | D170: =元ほうれん草!D170-D$2 -> 0.014 | E170: =元ほうれん草!E170-E$2 -> 0.018 | F170: =元ほうれん草!F170-F$2 -> 0.077 | G170: =元ほうれん草!G170-G$2 -> 0.301 | H170: =元ほうれん草!H170-H$2 -> 0.368 | I170: =元ほうれん草!I170-I$2 -> 0.34 | J170: =元ほうれん草!J170-J$2 -> 0.269 | K170: =元ほうれん草!K170-K$2 -> 0.133 | L170: =元ほうれん草!L170-L$2 -> 0.038 | M170: =元ほうれん草!M170-M$2 -> 0.015 | N170: =元ほうれん草!N170-N$2 -> 0.021 | O170: =元ほうれん草!O170-O$2 -> 0.049 | P170: =元ほうれん草!P170-P$2 -> 0.085
A171: 467 | B171: =元ほうれん草!B171-B$2 -> 0.455 | C171: =元ほうれん草!C171-C$2 -> 0.066 | D171: =元ほうれん草!D171-D$2 -> 0.014 | E171: =元ほうれん草!E171-E$2 -> 0.018 | F171: =元ほうれん草!F171-F$2 -> 0.07 | G171: =元ほうれん草!G171-G$2 -> 0.272 | H171: =元ほうれん草!H171-H$2 -> 0.34 | I171: =元ほうれん草!I171-I$2 -> 0.333 | J171: =元ほうれん草!J171-J$2 -> 0.272 | K171: =元ほうれん草!K171-K$2 -> 0.135 | L171: =元ほうれん草!L171-L$2 -> 0.038 | M171: =元ほうれん草!M171-M$2 -> 0.015 | N171: =元ほうれん草!N171-N$2 -> 0.021 | O171: =元ほうれん草!O171-O$2 -> 0.051 | P171: =元ほうれん草!P171-P$2 -> 0.089
A172: 468 | B172: =元ほうれん草!B172-B$2 -> 0.457 | C172: =元ほうれん草!C172-C$2 -> 0.067 | D172: =元ほうれん草!D172-D$2 -> 0.013 | E172: =元ほうれん草!E172-E$2 -> 0.017 | F172: =元ほうれん草!F172-F$2 -> 0.065 | G172: =元ほうれん草!G172-G$2 -> 0.247 | H172: =元ほうれん草!H172-H$2 -> 0.314 | I172: =元ほうれん草!I172-I$2 -> 0.325 | J172: =元ほうれん草!J172-J$2 -> 0.274 | K172: =元ほうれん草!K172-K$2 -> 0.137 | L172: =元ほうれん草!L172-L$2 -> 0.04 | M172: =元ほうれん草!M172-M$2 -> 0.016 | N172: =元ほうれん草!N172-N$2 -> 0.023 | O172: =元ほうれん草!O172-O$2 -> 0.054 | P172: =元ほうれん草!P172-P$2 -> 0.092
A173: 469 | B173: =元ほうれん草!B173-B$2 -> 0.461 | C173: =元ほうれん草!C173-C$2 -> 0.068 | D173: =元ほうれん草!D173-D$2 -> 0.013 | E173: =元ほうれん草!E173-E$2 -> 0.017 | F173: =元ほうれん草!F173-F$2 -> 0.059 | G173: =元ほうれん草!G173-G$2 -> 0.223 | H173: =元ほうれん草!H173-H$2 -> 0.289 | I173: =元ほうれん草!I173-I$2 -> 0.318 | J173: =元ほうれん草!J173-J$2 -> 0.276 | K173: =元ほうれん草!K173-K$2 -> 0.139 | L173: =元ほうれん草!L173-L$2 -> 0.042 | M173: =元ほうれん草!M173-M$2 -> 0.017 | N173: =元ほうれん草!N173-N$2 -> 0.024 | O173: =元ほうれん草!O173-O$2 -> 0.055 | P173: =元ほうれん草!P173-P$2 -> 0.095
A174: 470 | B174: =元ほうれん草!B174-B$2 -> 0.466 | C174: =元ほうれん草!C174-C$2 -> 0.068 | D174: =元ほうれん草!D174-D$2 -> 0.013 | E174: =元ほうれん草!E174-E$2 -> 0.016 | F174: =元ほうれん草!F174-F$2 -> 0.053 | G174: =元ほうれん草!G174-G$2 -> 0.199 | H174: =元ほうれん草!H174-H$2 -> 0.265 | I174: =元ほうれん草!I174-I$2 -> 0.311 | J174: =元ほうれん草!J174-J$2 -> 0.277 | K174: =元ほうれん草!K174-K$2 -> 0.141 | L174: =元ほうれん草!L174-L$2 -> 0.042 | M174: =元ほうれん草!M174-M$2 -> 0.018 | N174: =元ほうれん草!N174-N$2 -> 0.025 | O174: =元ほうれん草!O174-O$2 -> 0.055 | P174: =元ほうれん草!P174-P$2 -> 0.095
A175: 471 | B175: =元ほうれん草!B175-B$2 -> 0.472 | C175: =元ほうれん草!C175-C$2 -> 0.069 | D175: =元ほうれん草!D175-D$2 -> 0.014 | E175: =元ほうれん草!E175-E$2 -> 0.016 | F175: =元ほうれん草!F175-F$2 -> 0.047 | G175: =元ほうれん草!G175-G$2 -> 0.177 | H175: =元ほうれん草!H175-H$2 -> 0.241 | I175: =元ほうれん草!I175-I$2 -> 0.304 | J175: =元ほうれん草!J175-J$2 -> 0.279 | K175: =元ほうれん草!K175-K$2 -> 0.142 | L175: =元ほうれん草!L175-L$2 -> 0.042 | M175: =元ほうれん草!M175-M$2 -> 0.018 | N175: =元ほうれん草!N175-N$2 -> 0.024 | O175: =元ほうれん草!O175-O$2 -> 0.055 | P175: =元ほうれん草!P175-P$2 -> 0.094
A176: 472 | B176: =元ほうれん草!B176-B$2 -> 0.48 | C176: =元ほうれん草!C176-C$2 -> 0.068 | D176: =元ほうれん草!D176-D$2 -> 0.014 | E176: =元ほうれん草!E176-E$2 -> 0.016 | F176: =元ほうれん草!F176-F$2 -> 0.042 | G176: =元ほうれん草!G176-G$2 -> 0.156 | H176: =元ほうれん草!H176-H$2 -> 0.22 | I176: =元ほうれん草!I176-I$2 -> 0.297 | J176: =元ほうれん草!J176-J$2 -> 0.279 | K176: =元ほうれん草!K176-K$2 -> 0.143 | L176: =元ほうれん草!L176-L$2 -> 0.042 | M176: =元ほうれん草!M176-M$2 -> 0.018 | N176: =元ほうれん草!N176-N$2 -> 0.023 | O176: =元ほうれん草!O176-O$2 -> 0.054 | P176: =元ほうれん草!P176-P$2 -> 0.092
A177: 473 | B177: =元ほうれん草!B177-B$2 -> 0.487 | C177: =元ほうれん草!C177-C$2 -> 0.07 | D177: =元ほうれん草!D177-D$2 -> 0.015 | E177: =元ほうれん草!E177-E$2 -> 0.016 | F177: =元ほうれん草!F177-F$2 -> 0.038 | G177: =元ほうれん草!G177-G$2 -> 0.138 | H177: =元ほうれん草!H177-H$2 -> 0.2 | I177: =元ほうれん草!I177-I$2 -> 0.29 | J177: =元ほうれん草!J177-J$2 -> 0.278 | K177: =元ほうれん草!K177-K$2 -> 0.143 | L177: =元ほうれん草!L177-L$2 -> 0.043 | M177: =元ほうれん草!M177-M$2 -> 0.018 | N177: =元ほうれん草!N177-N$2 -> 0.023 | O177: =元ほうれん草!O177-O$2 -> 0.052 | P177: =元ほうれん草!P177-P$2 -> 0.088
A178: 474 | B178: =元ほうれん草!B178-B$2 -> 0.488 | C178: =元ほうれん草!C178-C$2 -> 0.07 | D178: =元ほうれん草!D178-D$2 -> 0.014 | E178: =元ほうれん草!E178-E$2 -> 0.015 | F178: =元ほうれん草!F178-F$2 -> 0.034 | G178: =元ほうれん草!G178-G$2 -> 0.119 | H178: =元ほうれん草!H178-H$2 -> 0.181 | I178: =元ほうれん草!I178-I$2 -> 0.282 | J178: =元ほうれん草!J178-J$2 -> 0.275 | K178: =元ほうれん草!K178-K$2 -> 0.141 | L178: =元ほうれん草!L178-L$2 -> 0.042 | M178: =元ほうれん草!M178-M$2 -> 0.017 | N178: =元ほうれん草!N178-N$2 -> 0.021 | O178: =元ほうれん草!O178-O$2 -> 0.049 | P178: =元ほうれん草!P178-P$2 -> 0.084
A179: 475 | B179: =元ほうれん草!B179-B$2 -> 0.49 | C179: =元ほうれん草!C179-C$2 -> 0.069 | D179: =元ほうれん草!D179-D$2 -> 0.014 | E179: =元ほうれん草!E179-E$2 -> 0.015 | F179: =元ほうれん草!F179-F$2 -> 0.03 | G179: =元ほうれん草!G179-G$2 -> 0.103 | H179: =元ほうれん草!H179-H$2 -> 0.165 | I179: =元ほうれん草!I179-I$2 -> 0.272 | J179: =元ほうれん草!J179-J$2 -> 0.27 | K179: =元ほうれん草!K179-K$2 -> 0.139 | L179: =元ほうれん草!L179-L$2 -> 0.04 | M179: =元ほうれん草!M179-M$2 -> 0.015 | N179: =元ほうれん草!N179-N$2 -> 0.02 | O179: =元ほうれん草!O179-O$2 -> 0.046 | P179: =元ほうれん草!P179-P$2 -> 0.078
A180: 476 | B180: =元ほうれん草!B180-B$2 -> 0.494 | C180: =元ほうれん草!C180-C$2 -> 0.069 | D180: =元ほうれん草!D180-D$2 -> 0.014 | E180: =元ほうれん草!E180-E$2 -> 0.015 | F180: =元ほうれん草!F180-F$2 -> 0.028 | G180: =元ほうれん草!G180-G$2 -> 0.091 | H180: =元ほうれん草!H180-H$2 -> 0.151 | I180: =元ほうれん草!I180-I$2 -> 0.263 | J180: =元ほうれん草!J180-J$2 -> 0.265 | K180: =元ほうれん草!K180-K$2 -> 0.137 | L180: =元ほうれん草!L180-L$2 -> 0.039 | M180: =元ほうれん草!M180-M$2 -> 0.015 | N180: =元ほうれん草!N180-N$2 -> 0.018 | O180: =元ほうれん草!O180-O$2 -> 0.042 | P180: =元ほうれん草!P180-P$2 -> 0.073
A181: 477 | B181: =元ほうれん草!B181-B$2 -> 0.495 | C181: =元ほうれん草!C181-C$2 -> 0.07 | D181: =元ほうれん草!D181-D$2 -> 0.015 | E181: =元ほうれん草!E181-E$2 -> 0.015 | F181: =元ほうれん草!F181-F$2 -> 0.025 | G181: =元ほうれん草!G181-G$2 -> 0.081 | H181: =元ほうれん草!H181-H$2 -> 0.138 | I181: =元ほうれん草!I181-I$2 -> 0.254 | J181: =元ほうれん草!J181-J$2 -> 0.259 | K181: =元ほうれん草!K181-K$2 -> 0.134 | L181: =元ほうれん草!L181-L$2 -> 0.039 | M181: =元ほうれん草!M181-M$2 -> 0.015 | N181: =元ほうれん草!N181-N$2 -> 0.017 | O181: =元ほうれん草!O181-O$2 -> 0.039 | P181: =元ほうれん草!P181-P$2 -> 0.068
A182: 478 | B182: =元ほうれん草!B182-B$2 -> 0.493 | C182: =元ほうれん草!C182-C$2 -> 0.071 | D182: =元ほうれん草!D182-D$2 -> 0.015 | E182: =元ほうれん草!E182-E$2 -> 0.015 | F182: =元ほうれん草!F182-F$2 -> 0.023 | G182: =元ほうれん草!G182-G$2 -> 0.07 | H182: =元ほうれん草!H182-H$2 -> 0.125 | I182: =元ほうれん草!I182-I$2 -> 0.243 | J182: =元ほうれん草!J182-J$2 -> 0.25 | K182: =元ほうれん草!K182-K$2 -> 0.13 | L182: =元ほうれん草!L182-L$2 -> 0.038 | M182: =元ほうれん草!M182-M$2 -> 0.013 | N182: =元ほうれん草!N182-N$2 -> 0.015 | O182: =元ほうれん草!O182-O$2 -> 0.034 | P182: =元ほうれん草!P182-P$2 -> 0.061
A183: 479 | B183: =元ほうれん草!B183-B$2 -> 0.492 | C183: =元ほうれん草!C183-C$2 -> 0.071 | D183: =元ほうれん草!D183-D$2 -> 0.014 | E183: =元ほうれん草!E183-E$2 -> 0.016 | F183: =元ほうれん草!F183-F$2 -> 0.021 | G183: =元ほうれん草!G183-G$2 -> 0.06 | H183: =元ほうれん草!H183-H$2 -> 0.112 | I183: =元ほうれん草!I183-I$2 -> 0.232 | J183: =元ほうれん草!J183-J$2 -> 0.24 | K183: =元ほうれん草!K183-K$2 -> 0.126 | L183: =元ほうれん草!L183-L$2 -> 0.036 | M183: =元ほうれん草!M183-M$2 -> 0.013 | N183: =元ほうれん草!N183-N$2 -> 0.013 | O183: =元ほうれん草!O183-O$2 -> 0.03 | P183: =元ほうれん草!P183-P$2 -> 0.055
A184: 480 | B184: =元ほうれん草!B184-B$2 -> 0.488 | C184: =元ほうれん草!C184-C$2 -> 0.07 | D184: =元ほうれん草!D184-D$2 -> 0.014 | E184: =元ほうれん草!E184-E$2 -> 0.017 | F184: =元ほうれん草!F184-F$2 -> 0.019 | G184: =元ほうれん草!G184-G$2 -> 0.053 | H184: =元ほうれん草!H184-H$2 -> 0.102 | I184: =元ほうれん草!I184-I$2 -> 0.22 | J184: =元ほうれん草!J184-J$2 -> 0.228 | K184: =元ほうれん草!K184-K$2 -> 0.12 | L184: =元ほうれん草!L184-L$2 -> 0.034 | M184: =元ほうれん草!M184-M$2 -> 0.011 | N184: =元ほうれん草!N184-N$2 -> 0.011 | O184: =元ほうれん草!O184-O$2 -> 0.026 | P184: =元ほうれん草!P184-P$2 -> 0.048
A185: 481 | B185: =元ほうれん草!B185-B$2 -> 0.482 | C185: =元ほうれん草!C185-C$2 -> 0.068 | D185: =元ほうれん草!D185-D$2 -> 0.013 | E185: =元ほうれん草!E185-E$2 -> 0.016 | F185: =元ほうれん草!F185-F$2 -> 0.018 | G185: =元ほうれん草!G185-G$2 -> 0.045 | H185: =元ほうれん草!H185-H$2 -> 0.092 | I185: =元ほうれん草!I185-I$2 -> 0.207 | J185: =元ほうれん草!J185-J$2 -> 0.217 | K185: =元ほうれん草!K185-K$2 -> 0.113 | L185: =元ほうれん草!L185-L$2 -> 0.031 | M185: =元ほうれん草!M185-M$2 -> 0.01 | N185: =元ほうれん草!N185-N$2 -> 0.008 | O185: =元ほうれん草!O185-O$2 -> 0.021 | P185: =元ほうれん草!P185-P$2 -> 0.042
A186: 482 | B186: =元ほうれん草!B186-B$2 -> 0.476 | C186: =元ほうれん草!C186-C$2 -> 0.068 | D186: =元ほうれん草!D186-D$2 -> 0.013 | E186: =元ほうれん草!E186-E$2 -> 0.017 | F186: =元ほうれん草!F186-F$2 -> 0.018 | G186: =元ほうれん草!G186-G$2 -> 0.039 | H186: =元ほうれん草!H186-H$2 -> 0.083 | I186: =元ほうれん草!I186-I$2 -> 0.195 | J186: =元ほうれん草!J186-J$2 -> 0.204 | K186: =元ほうれん草!K186-K$2 -> 0.107 | L186: =元ほうれん草!L186-L$2 -> 0.03 | M186: =元ほうれん草!M186-M$2 -> 0.009 | N186: =元ほうれん草!N186-N$2 -> 0.007 | O186: =元ほうれん草!O186-O$2 -> 0.018 | P186: =元ほうれん草!P186-P$2 -> 0.037
A187: 483 | B187: =元ほうれん草!B187-B$2 -> 0.468 | C187: =元ほうれん草!C187-C$2 -> 0.066 | D187: =元ほうれん草!D187-D$2 -> 0.013 | E187: =元ほうれん草!E187-E$2 -> 0.017 | F187: =元ほうれん草!F187-F$2 -> 0.017 | G187: =元ほうれん草!G187-G$2 -> 0.034 | H187: =元ほうれん草!H187-H$2 -> 0.074 | I187: =元ほうれん草!I187-I$2 -> 0.181 | J187: =元ほうれん草!J187-J$2 -> 0.191 | K187: =元ほうれん草!K187-K$2 -> 0.1 | L187: =元ほうれん草!L187-L$2 -> 0.027 | M187: =元ほうれん草!M187-M$2 -> 0.007 | N187: =元ほうれん草!N187-N$2 -> 0.005 | O187: =元ほうれん草!O187-O$2 -> 0.015 | P187: =元ほうれん草!P187-P$2 -> 0.032
A188: 484 | B188: =元ほうれん草!B188-B$2 -> 0.46 | C188: =元ほうれん草!C188-C$2 -> 0.064 | D188: =元ほうれん草!D188-D$2 -> 0.013 | E188: =元ほうれん草!E188-E$2 -> 0.017 | F188: =元ほうれん草!F188-F$2 -> 0.016 | G188: =元ほうれん草!G188-G$2 -> 0.029 | H188: =元ほうれん草!H188-H$2 -> 0.066 | I188: =元ほうれん草!I188-I$2 -> 0.168 | J188: =元ほうれん草!J188-J$2 -> 0.177 | K188: =元ほうれん草!K188-K$2 -> 0.093 | L188: =元ほうれん草!L188-L$2 -> 0.025 | M188: =元ほうれん草!M188-M$2 -> 0.006 | N188: =元ほうれん草!N188-N$2 -> 0.003 | O188: =元ほうれん草!O188-O$2 -> 0.012 | P188: =元ほうれん草!P188-P$2 -> 0.028
A189: 485 | B189: =元ほうれん草!B189-B$2 -> 0.449 | C189: =元ほうれん草!C189-C$2 -> 0.062 | D189: =元ほうれん草!D189-D$2 -> 0.013 | E189: =元ほうれん草!E189-E$2 -> 0.017 | F189: =元ほうれん草!F189-F$2 -> 0.016 | G189: =元ほうれん草!G189-G$2 -> 0.025 | H189: =元ほうれん草!H189-H$2 -> 0.059 | I189: =元ほうれん草!I189-I$2 -> 0.155 | J189: =元ほうれん草!J189-J$2 -> 0.163 | K189: =元ほうれん草!K189-K$2 -> 0.085 | L189: =元ほうれん草!L189-L$2 -> 0.022 | M189: =元ほうれん草!M189-M$2 -> 0.004 | N189: =元ほうれん草!N189-N$2 -> 0.001 | O189: =元ほうれん草!O189-O$2 -> 0.009 | P189: =元ほうれん草!P189-P$2 -> 0.024
A190: 486 | B190: =元ほうれん草!B190-B$2 -> 0.435 | C190: =元ほうれん草!C190-C$2 -> 0.06 | D190: =元ほうれん草!D190-D$2 -> 0.013 | E190: =元ほうれん草!E190-E$2 -> 0.017 | F190: =元ほうれん草!F190-F$2 -> 0.015 | G190: =元ほうれん草!G190-G$2 -> 0.022 | H190: =元ほうれん草!H190-H$2 -> 0.052 | I190: =元ほうれん草!I190-I$2 -> 0.143 | J190: =元ほうれん草!J190-J$2 -> 0.149 | K190: =元ほうれん草!K190-K$2 -> 0.077 | L190: =元ほうれん草!L190-L$2 -> 0.02 | M190: =元ほうれん草!M190-M$2 -> 0.002 | N190: =元ほうれん草!N190-N$2 -> 0.001 | O190: =元ほうれん草!O190-O$2 -> 0.006 | P190: =元ほうれん草!P190-P$2 -> 0.02
A191: 487 | B191: =元ほうれん草!B191-B$2 -> 0.419 | C191: =元ほうれん草!C191-C$2 -> 0.058 | D191: =元ほうれん草!D191-D$2 -> 0.013 | E191: =元ほうれん草!E191-E$2 -> 0.017 | F191: =元ほうれん草!F191-F$2 -> 0.015 | G191: =元ほうれん草!G191-G$2 -> 0.02 | H191: =元ほうれん草!H191-H$2 -> 0.047 | I191: =元ほうれん草!I191-I$2 -> 0.132 | J191: =元ほうれん草!J191-J$2 -> 0.137 | K191: =元ほうれん草!K191-K$2 -> 0.071 | L191: =元ほうれん草!L191-L$2 -> 0.018 | M191: =元ほうれん草!M191-M$2 -> 0.002 | N191: =元ほうれん草!N191-N$2 -> 0 | O191: =元ほうれん草!O191-O$2 -> 0.005 | P191: =元ほうれん草!P191-P$2 -> 0.017
A192: 488 | B192: =元ほうれん草!B192-B$2 -> 0.403 | C192: =元ほうれん草!C192-C$2 -> 0.056 | D192: =元ほうれん草!D192-D$2 -> 0.014 | E192: =元ほうれん草!E192-E$2 -> 0.019 | F192: =元ほうれん草!F192-F$2 -> 0.016 | G192: =元ほうれん草!G192-G$2 -> 0.018 | H192: =元ほうれん草!H192-H$2 -> 0.042 | I192: =元ほうれん草!I192-I$2 -> 0.121 | J192: =元ほうれん草!J192-J$2 -> 0.125 | K192: =元ほうれん草!K192-K$2 -> 0.065 | L192: =元ほうれん草!L192-L$2 -> 0.016 | M192: =元ほうれん草!M192-M$2 -> 0.001 | N192: =元ほうれん草!N192-N$2 -> -0.002 | O192: =元ほうれん草!O192-O$2 -> 0.004 | P192: =元ほうれん草!P192-P$2 -> 0.016
A193: 489 | B193: =元ほうれん草!B193-B$2 -> 0.386 | C193: =元ほうれん草!C193-C$2 -> 0.053 | D193: =元ほうれん草!D193-D$2 -> 0.014 | E193: =元ほうれん草!E193-E$2 -> 0.019 | F193: =元ほうれん草!F193-F$2 -> 0.016 | G193: =元ほうれん草!G193-G$2 -> 0.016 | H193: =元ほうれん草!H193-H$2 -> 0.037 | I193: =元ほうれん草!I193-I$2 -> 0.109 | J193: =元ほうれん草!J193-J$2 -> 0.113 | K193: =元ほうれん草!K193-K$2 -> 0.059 | L193: =元ほうれん草!L193-L$2 -> 0.013 | M193: =元ほうれん草!M193-M$2 -> 0 | N193: =元ほうれん草!N193-N$2 -> -0.003 | O193: =元ほうれん草!O193-O$2 -> 0.002 | P193: =元ほうれん草!P193-P$2 -> 0.014
A194: 490 | B194: =元ほうれん草!B194-B$2 -> 0.369 | C194: =元ほうれん草!C194-C$2 -> 0.051 | D194: =元ほうれん草!D194-D$2 -> 0.015 | E194: =元ほうれん草!E194-E$2 -> 0.019 | F194: =元ほうれん草!F194-F$2 -> 0.017 | G194: =元ほうれん草!G194-G$2 -> 0.015 | H194: =元ほうれん草!H194-H$2 -> 0.034 | I194: =元ほうれん草!I194-I$2 -> 0.1 | J194: =元ほうれん草!J194-J$2 -> 0.103 | K194: =元ほうれん草!K194-K$2 -> 0.053 | L194: =元ほうれん草!L194-L$2 -> 0.012 | M194: =元ほうれん草!M194-M$2 -> -0.001 | N194: =元ほうれん草!N194-N$2 -> -0.003 | O194: =元ほうれん草!O194-O$2 -> 0.001 | P194: =元ほうれん草!P194-P$2 -> 0.013
A195: 491 | B195: =元ほうれん草!B195-B$2 -> 0.353 | C195: =元ほうれん草!C195-C$2 -> 0.047 | D195: =元ほうれん草!D195-D$2 -> 0.015 | E195: =元ほうれん草!E195-E$2 -> 0.02 | F195: =元ほうれん草!F195-F$2 -> 0.017 | G195: =元ほうれん草!G195-G$2 -> 0.014 | H195: =元ほうれん草!H195-H$2 -> 0.03 | I195: =元ほうれん草!I195-I$2 -> 0.092 | J195: =元ほうれん草!J195-J$2 -> 0.093 | K195: =元ほうれん草!K195-K$2 -> 0.048 | L195: =元ほうれん草!L195-L$2 -> 0.01 | M195: =元ほうれん草!M195-M$2 -> -0.002 | N195: =元ほうれん草!N195-N$2 -> -0.004 | O195: =元ほうれん草!O195-O$2 -> 0 | P195: =元ほうれん草!P195-P$2 -> 0.012
A196: 492 | B196: =元ほうれん草!B196-B$2 -> 0.334 | C196: =元ほうれん草!C196-C$2 -> 0.045 | D196: =元ほうれん草!D196-D$2 -> 0.016 | E196: =元ほうれん草!E196-E$2 -> 0.02 | F196: =元ほうれん草!F196-F$2 -> 0.017 | G196: =元ほうれん草!G196-G$2 -> 0.013 | H196: =元ほうれん草!H196-H$2 -> 0.026 | I196: =元ほうれん草!I196-I$2 -> 0.083 | J196: =元ほうれん草!J196-J$2 -> 0.083 | K196: =元ほうれん草!K196-K$2 -> 0.042 | L196: =元ほうれん草!L196-L$2 -> 0.009 | M196: =元ほうれん草!M196-M$2 -> -0.003 | N196: =元ほうれん草!N196-N$2 -> -0.005 | O196: =元ほうれん草!O196-O$2 -> 0 | P196: =元ほうれん草!P196-P$2 -> 0.011
A197: 493 | B197: =元ほうれん草!B197-B$2 -> 0.314 | C197: =元ほうれん草!C197-C$2 -> 0.042 | D197: =元ほうれん草!D197-D$2 -> 0.016 | E197: =元ほうれん草!E197-E$2 -> 0.02 | F197: =元ほうれん草!F197-F$2 -> 0.016 | G197: =元ほうれん草!G197-G$2 -> 0.012 | H197: =元ほうれん草!H197-H$2 -> 0.024 | I197: =元ほうれん草!I197-I$2 -> 0.075 | J197: =元ほうれん草!J197-J$2 -> 0.073 | K197: =元ほうれん草!K197-K$2 -> 0.037 | L197: =元ほうれん草!L197-L$2 -> 0.007 | M197: =元ほうれん草!M197-M$2 -> -0.003 | N197: =元ほうれん草!N197-N$2 -> -0.006 | O197: =元ほうれん草!O197-O$2 -> -0.001 | P197: =元ほうれん草!P197-P$2 -> 0.009
A198: 494 | B198: =元ほうれん草!B198-B$2 -> 0.296 | C198: =元ほうれん草!C198-C$2 -> 0.04 | D198: =元ほうれん草!D198-D$2 -> 0.017 | E198: =元ほうれん草!E198-E$2 -> 0.02 | F198: =元ほうれん草!F198-F$2 -> 0.017 | G198: =元ほうれん草!G198-G$2 -> 0.011 | H198: =元ほうれん草!H198-H$2 -> 0.021 | I198: =元ほうれん草!I198-I$2 -> 0.068 | J198: =元ほうれん草!J198-J$2 -> 0.066 | K198: =元ほうれん草!K198-K$2 -> 0.034 | L198: =元ほうれん草!L198-L$2 -> 0.006 | M198: =元ほうれん草!M198-M$2 -> -0.004 | N198: =元ほうれん草!N198-N$2 -> -0.005 | O198: =元ほうれん草!O198-O$2 -> -0.002 | P198: =元ほうれん草!P198-P$2 -> 0.01
A199: 495 | B199: =元ほうれん草!B199-B$2 -> 0.277 | C199: =元ほうれん草!C199-C$2 -> 0.037 | D199: =元ほうれん草!D199-D$2 -> 0.019 | E199: =元ほうれん草!E199-E$2 -> 0.02 | F199: =元ほうれん草!F199-F$2 -> 0.017 | G199: =元ほうれん草!G199-G$2 -> 0.011 | H199: =元ほうれん草!H199-H$2 -> 0.019 | I199: =元ほうれん草!I199-I$2 -> 0.062 | J199: =元ほうれん草!J199-J$2 -> 0.059 | K199: =元ほうれん草!K199-K$2 -> 0.031 | L199: =元ほうれん草!L199-L$2 -> 0.005 | M199: =元ほうれん草!M199-M$2 -> -0.004 | N199: =元ほうれん草!N199-N$2 -> -0.006 | O199: =元ほうれん草!O199-O$2 -> -0.002 | P199: =元ほうれん草!P199-P$2 -> 0.009
A200: 496 | B200: =元ほうれん草!B200-B$2 -> 0.257 | C200: =元ほうれん草!C200-C$2 -> 0.033 | D200: =元ほうれん草!D200-D$2 -> 0.019 | E200: =元ほうれん草!E200-E$2 -> 0.019 | F200: =元ほうれん草!F200-F$2 -> 0.017 | G200: =元ほうれん草!G200-G$2 -> 0.01 | H200: =元ほうれん草!H200-H$2 -> 0.016 | I200: =元ほうれん草!I200-I$2 -> 0.056 | J200: =元ほうれん草!J200-J$2 -> 0.052 | K200: =元ほうれん草!K200-K$2 -> 0.026 | L200: =元ほうれん草!L200-L$2 -> 0.002 | M200: =元ほうれん草!M200-M$2 -> -0.004 | N200: =元ほうれん草!N200-N$2 -> -0.007 | O200: =元ほうれん草!O200-O$2 -> -0.003 | P200: =元ほうれん草!P200-P$2 -> 0.008
A201: 497 | B201: =元ほうれん草!B201-B$2 -> 0.238 | C201: =元ほうれん草!C201-C$2 -> 0.03 | D201: =元ほうれん草!D201-D$2 -> 0.02 | E201: =元ほうれん草!E201-E$2 -> 0.019 | F201: =元ほうれん草!F201-F$2 -> 0.017 | G201: =元ほうれん草!G201-G$2 -> 0.009 | H201: =元ほうれん草!H201-H$2 -> 0.015 | I201: =元ほうれん草!I201-I$2 -> 0.051 | J201: =元ほうれん草!J201-J$2 -> 0.046 | K201: =元ほうれん草!K201-K$2 -> 0.023 | L201: =元ほうれん草!L201-L$2 -> 0.001 | M201: =元ほうれん草!M201-M$2 -> -0.005 | N201: =元ほうれん草!N201-N$2 -> -0.007 | O201: =元ほうれん草!O201-O$2 -> -0.003 | P201: =元ほうれん草!P201-P$2 -> 0.007
... 303 more rows

Sheet 元ほうれん草
B2: 何か変
A3: 波長/nm | B3: E:\生化学実験\sample1.txt | C3: E:\生化学実験\sample2.txt | D3: E:\生化学実験\sample3.txt | E3: E:\生化学実験\sample4.txt | F3: E:\生化学実験\sample5.txt | G3: E:\生化学実験\sample6.txt | H3: E:\生化学実験\sample7.txt | I3: E:\生化学実験\sample8.txt | J3: E:\生化学実験\sample9.txt | K3: E:\生化学実験\sample10.txt | L3: E:\生化学実験\sample11.txt | M3: E:\生化学実験\sample12.txt | N3: E:\生化学実験\sample13.txt | O3: E:\生化学実験\sample14.txt | P3: E:\生化学実験\sample15.txt
A4: 300 | B4: 0.206 | C4: -0.012 | D4: 0.022 | E4: 0.102 | F4: 0.117 | G4: 0.078 | H4: 0.061 | I4: 0.063 | J4: 0.017 | K4: 0 | L4: -0.011 | M4: -0.01 | N4: -0.015 | O4: -0.007 | P4: 0.008
A5: 301 | B5: 0.153 | C5: -0.018 | D5: 0.004 | E5: 0.1 | F5: 0.12 | G5: 0.064 | H5: 0.06 | I5: 0.027 | J5: 0.009 | K5: -0.014 | L5: -0.022 | M5: -0.013 | N5: -0.014 | O5: -0.009 | P5: -0.006
A6: 302 | B6: 0.182 | C6: -0.006 | D6: 0.001 | E6: 0.131 | F6: 0.135 | G6: 0.074 | H6: 0.065 | I6: 0.042 | J6: 0.023 | K6: -0.012 | L6: -0.012 | M6: -0.021 | N6: 0 | O6: -0.001 | P6: -0.005
A7: 303 | B7: 0.233 | C7: -0.007 | D7: 0.022 | E7: 0.135 | F7: 0.13 | G7: 0.081 | H7: 0.058 | I7: 0.058 | J7: 0.021 | K7: 0.014 | L7: -0.008 | M7: -0.019 | N7: -0.006 | O7: -0.008 | P7: -0.006
A8: 304 | B8: 0.261 | C8: -0.009 | D8: 0.031 | E8: 0.111 | F8: 0.118 | G8: 0.077 | H8: 0.051 | I8: 0.063 | J8: 0.025 | K8: 0.032 | L8: 0.008 | M8: -0.011 | N8: 0.011 | O8: -0.016 | P8: 0.001
A9: 305 | B9: 0.233 | C9: -0.017 | D9: 0.035 | E9: 0.11 | F9: 0.11 | G9: 0.075 | H9: 0.038 | I9: 0.067 | J9: 0.04 | K9: 0.032 | L9: 0.02 | M9: -0.006 | N9: 0.013 | O9: -0.014 | P9: 0.013
A10: 306 | B10: 0.233 | C10: -0.035 | D10: 0.018 | E10: 0.125 | F10: 0.108 | G10: 0.07 | H10: 0.02 | I10: 0.052 | J10: 0.024 | K10: 0.014 | L10: 0.005 | M10: -0.018 | N10: -0.002 | O10: -0.012 | P10: -0.005
A11: 307 | B11: 0.222 | C11: -0.048 | D11: -0.008 | E11: 0.123 | F11: 0.095 | G11: 0.057 | H11: 0.011 | I11: 0.021 | J11: -0.009 | K11: -0.014 | L11: -0.038 | M11: -0.028 | N11: -0.024 | O11: -0.03 | P11: -0.021
A12: 308 | B12: 0.198 | C12: -0.054 | D12: -0.019 | E12: 0.091 | F12: 0.083 | G12: 0.059 | H12: 0.015 | I12: 0.011 | J12: -0.027 | K12: -0.037 | L12: -0.062 | M12: -0.035 | N12: -0.036 | O12: -0.03 | P12: -0.023
A13: 309 | B13: 0.195 | C13: -0.039 | D13: -0.002 | E13: 0.085 | F13: 0.102 | G13: 0.066 | H13: 0.028 | I13: 0.021 | J13: -0.024 | K13: -0.028 | L13: -0.05 | M13: -0.024 | N13: -0.027 | O13: -0.011 | P13: -0.008
A14: 310 | B14: 0.224 | C14: -0.032 | D14: 0.005 | E14: 0.096 | F14: 0.123 | G14: 0.069 | H14: 0.041 | I14: 0.021 | J14: 0.004 | K14: -0.007 | L14: -0.019 | M14: -0.015 | N14: -0.019 | O14: -0.009 | P14: 0.003
A15: 311 | B15: 0.224 | C15: -0.033 | D15: 0.007 | E15: 0.093 | F15: 0.119 | G15: 0.082 | H15: 0.042 | I15: 0.03 | J15: 0.006 | K15: -0.012 | L15: -0.014 | M15: -0.019 | N15: -0.027 | O15: -0.012 | P15: 0.001
A16: 312 | B16: 0.233 | C16: -0.022 | D16: 0.024 | E16: 0.11 | F16: 0.14 | G16: 0.094 | H16: 0.056 | I16: 0.061 | J16: 0.011 | K16: -0.018 | L16: -0.01 | M16: -0.017 | N16: -0.024 | O16: 0.001 | P16: 0
A17: 313 | B17: 0.26 | C17: -0.022 | D17: 0.024 | E17: 0.121 | F17: 0.131 | G17: 0.09 | H17: 0.052 | I17: 0.063 | J17: 0 | K17: -0.024 | L17: -0.014 | M17: -0.024 | N17: -0.027 | O17: -0.006 | P17: -0.009
A18: 314 | B18: 0.255 | C18: -0.019 | D18: 0.01 | E18: 0.124 | F18: 0.145 | G18: 0.086 | H18: 0.045 | I18: 0.066 | J18: 0.002 | K18: -0.012 | L18: -0.014 | M18: -0.02 | N18: -0.024 | O18: -0.017 | P18: -0.006
A19: 315 | B19: 0.238 | C19: -0.006 | D19: 0.02 | E19: 0.13 | F19: 0.158 | G19: 0.094 | H19: 0.05 | I19: 0.074 | J19: 0.014 | K19: 0.011 | L19: 0.003 | M19: -0.007 | N19: -0.011 | O19: -0.005 | P19: 0.003
A20: 316 | B20: 0.231 | C20: -0.009 | D20: 0.03 | E20: 0.139 | F20: 0.178 | G20: 0.101 | H20: 0.067 | I20: 0.07 | J20: 0.025 | K20: 0.012 | L20: 0.003 | M20: -0.004 | N20: -0.01 | O20: 0.008 | P20: 0
A21: 317 | B21: 0.243 | C21: -0.039 | D21: 0.02 | E21: 0.134 | F21: 0.176 | G21: 0.092 | H21: 0.066 | I21: 0.062 | J21: 0.015 | K21: -0.009 | L21: -0.019 | M21: -0.015 | N21: -0.026 | O21: -0.007 | P21: -0.004
A22: 318 | B22: 0.271 | C22: -0.051 | D22: 0.011 | E22: 0.134 | F22: 0.173 | G22: 0.089 | H22: 0.062 | I22: 0.061 | J22: 0.004 | K22: -0.013 | L22: -0.015 | M22: -0.012 | N22: -0.025 | O22: -0.019 | P22: 0
A23: 319 | B23: 0.29 | C23: -0.054 | D23: -0.007 | E23: 0.152 | F23: 0.169 | G23: 0.1 | H23: 0.074 | I23: 0.052 | J23: 0.008 | K23: -0.004 | L23: 0 | M23: -0.004 | N23: -0.016 | O23: -0.009 | P23: 0.008
A24: 320 | B24: 0.284 | C24: -0.088 | D24: -0.048 | E24: 0.159 | F24: 0.183 | G24: 0.097 | H24: 0.072 | I24: 0.045 | J24: 0.007 | K24: -0.001 | L24: -0.005 | M24: -0.005 | N24: -0.021 | O24: -0.006 | P24: 0.005
A25: 321 | B25: 0.275 | C25: -0.136 | D25: -0.078 | E25: 0.15 | F25: 0.196 | G25: 0.099 | H25: 0.07 | I25: 0.045 | J25: -0.003 | K25: -0.011 | L25: -0.017 | M25: -0.011 | N25: -0.022 | O25: -0.007 | P25: -0.002
A26: 322 | B26: 0.274 | C26: -0.165 | D26: -0.096 | E26: 0.159 | F26: 0.23 | G26: 0.106 | H26: 0.077 | I26: 0.046 | J26: -0.004 | K26: -0.017 | L26: -0.02 | M26: -0.019 | N26: -0.018 | O26: -0.011 | P26: 0.002
A27: 323 | B27: 0.291 | C27: -0.163 | D27: -0.093 | E27: 0.181 | F27: 0.264 | G27: 0.12 | H27: 0.084 | I27: 0.051 | J27: 0.001 | K27: -0.014 | L27: -0.021 | M27: -0.02 | N27: -0.016 | O27: -0.012 | P27: 0.009
A28: 324 | B28: 0.305 | C28: -0.147 | D28: -0.08 | E28: 0.202 | F28: 0.282 | G28: 0.131 | H28: 0.092 | I28: 0.061 | J28: 0.005 | K28: -0.009 | L28: -0.018 | M28: -0.019 | N28: -0.017 | O28: -0.009 | P28: 0.015
A29: 325 | B29: 0.314 | C29: -0.124 | D29: -0.061 | E29: 0.217 | F29: 0.297 | G29: 0.14 | H29: 0.101 | I29: 0.071 | J29: 0.009 | K29: -0.006 | L29: -0.015 | M29: -0.016 | N29: -0.013 | O29: -0.006 | P29: 0.019
A30: 326 | B30: 0.321 | C30: -0.101 | D30: -0.039 | E30: 0.23 | F30: 0.308 | G30: 0.147 | H30: 0.108 | I30: 0.077 | J30: 0.013 | K30: -0.004 | L30: -0.013 | M30: -0.014 | N30: -0.012 | O30: -0.003 | P30: 0.019
A31: 327 | B31: 0.326 | C31: -0.082 | D31: -0.024 | E31: 0.238 | F31: 0.315 | G31: 0.153 | H31: 0.111 | I31: 0.081 | J31: 0.016 | K31: -0.002 | L31: -0.012 | M31: -0.012 | N31: -0.012 | O31: -0.002 | P31: 0.02
A32: 328 | B32: 0.333 | C32: -0.066 | D32: -0.01 | E32: 0.247 | F32: 0.322 | G32: 0.159 | H32: 0.114 | I32: 0.085 | J32: 0.02 | K32: 0 | L32: -0.01 | M32: -0.009 | N32: -0.012 | O32: 0 | P32: 0.021
A33: 329 | B33: 0.337 | C33: -0.052 | D33: 0.003 | E33: 0.253 | F33: 0.327 | G33: 0.163 | H33: 0.119 | I33: 0.089 | J33: 0.021 | K33: 0.001 | L33: -0.009 | M33: -0.008 | N33: -0.013 | O33: 0.001 | P33: 0.02
A34: 330 | B34: 0.34 | C34: -0.042 | D34: 0.011 | E34: 0.257 | F34: 0.328 | G34: 0.167 | H34: 0.12 | I34: 0.091 | J34: 0.023 | K34: 0.002 | L34: -0.009 | M34: -0.007 | N34: -0.013 | O34: 0.002 | P34: 0.019
A35: 331 | B35: 0.343 | C35: -0.032 | D35: 0.019 | E35: 0.26 | F35: 0.328 | G35: 0.17 | H35: 0.123 | I35: 0.092 | J35: 0.024 | K35: 0.002 | L35: -0.008 | M35: -0.007 | N35: -0.013 | O35: 0.002 | P35: 0.019
A36: 332 | B36: 0.345 | C36: -0.024 | D36: 0.026 | E36: 0.261 | F36: 0.329 | G36: 0.172 | H36: 0.125 | I36: 0.095 | J36: 0.024 | K36: 0.003 | L36: -0.008 | M36: -0.005 | N36: -0.013 | O36: 0.002 | P36: 0.018
A37: 333 | B37: 0.344 | C37: -0.018 | D37: 0.032 | E37: 0.26 | F37: 0.328 | G37: 0.173 | H37: 0.125 | I37: 0.097 | J37: 0.025 | K37: 0.003 | L37: -0.008 | M37: -0.005 | N37: -0.013 | O37: 0.002 | P37: 0.016
A38: 334 | B38: 0.344 | C38: -0.014 | D38: 0.036 | E38: 0.259 | F38: 0.325 | G38: 0.173 | H38: 0.125 | I38: 0.097 | J38: 0.026 | K38: 0.002 | L38: -0.008 | M38: -0.006 | N38: -0.015 | O38: 0.002 | P38: 0.015
A39: 335 | B39: 0.347 | C39: -0.011 | D39: 0.04 | E39: 0.258 | F39: 0.323 | G39: 0.173 | H39: 0.125 | I39: 0.096 | J39: 0.026 | K39: 0.004 | L39: -0.007 | M39: -0.007 | N39: -0.015 | O39: 0.002 | P39: 0.015
A40: 336 | B40: 0.351 | C40: -0.007 | D40: 0.043 | E40: 0.257 | F40: 0.32 | G40: 0.173 | H40: 0.126 | I40: 0.097 | J40: 0.027 | K40: 0.004 | L40: -0.006 | M40: -0.007 | N40: -0.014 | O40: 0.002 | P40: 0.015
A41: 337 | B41: 0.35 | C41: -0.006 | D41: 0.045 | E41: 0.255 | F41: 0.318 | G41: 0.172 | H41: 0.127 | I41: 0.098 | J41: 0.026 | K41: 0.003 | L41: -0.006 | M41: -0.008 | N41: -0.015 | O41: 0.001 | P41: 0.013
A42: 338 | B42: 0.35 | C42: -0.004 | D42: 0.047 | E42: 0.252 | F42: 0.315 | G42: 0.171 | H42: 0.125 | I42: 0.096 | J42: 0.024 | K42: 0.001 | L42: -0.008 | M42: -0.009 | N42: -0.015 | O42: 0 | P42: 0.012
A43: 339 | B43: 0.352 | C43: -0.002 | D43: 0.05 | E43: 0.251 | F43: 0.312 | G43: 0.172 | H43: 0.125 | I43: 0.096 | J43: 0.024 | K43: 0.002 | L43: -0.007 | M43: -0.009 | N43: -0.015 | O43: 0.001 | P43: 0.012
A44: 340 | B44: 0.354 | C44: 0 | D44: 0.052 | E44: 0.251 | F44: 0.309 | G44: 0.171 | H44: 0.125 | I44: 0.096 | J44: 0.025 | K44: 0.003 | L44: -0.007 | M44: -0.009 | N44: -0.015 | O44: 0.001 | P44: 0.012
A45: 341 | B45: 0.354 | C45: 0 | D45: 0.053 | E45: 0.25 | F45: 0.307 | G45: 0.17 | H45: 0.123 | I45: 0.096 | J45: 0.025 | K45: 0.003 | L45: -0.007 | M45: -0.01 | N45: -0.015 | O45: 0.001 | P45: 0.012
A46: 342 | B46: 0.353 | C46: 0 | D46: 0.055 | E46: 0.248 | F46: 0.307 | G46: 0.168 | H46: 0.122 | I46: 0.095 | J46: 0.023 | K46: 0.002 | L46: -0.007 | M46: -0.01 | N46: -0.016 | O46: 0 | P46: 0.011
A47: 343 | B47: 0.353 | C47: 0.001 | D47: 0.056 | E47: 0.249 | F47: 0.308 | G47: 0.167 | H47: 0.12 | I47: 0.093 | J47: 0.023 | K47: 0.001 | L47: -0.007 | M47: -0.011 | N47: -0.016 | O47: -0.001 | P47: 0.011
A48: 344 | B48: 0.354 | C48: 0.002 | D48: 0.058 | E48: 0.249 | F48: 0.308 | G48: 0.166 | H48: 0.118 | I48: 0.092 | J48: 0.022 | K48: 0.001 | L48: -0.007 | M48: -0.012 | N48: -0.016 | O48: -0.001 | P48: 0.011
A49: 345 | B49: 0.354 | C49: 0.001 | D49: 0.059 | E49: 0.25 | F49: 0.309 | G49: 0.164 | H49: 0.116 | I49: 0.091 | J49: 0.021 | K49: 0 | L49: -0.007 | M49: -0.012 | N49: -0.016 | O49: -0.002 | P49: 0.011
A50: 346 | B50: 0.354 | C50: 0.001 | D50: 0.061 | E50: 0.253 | F50: 0.312 | G50: 0.162 | H50: 0.114 | I50: 0.09 | J50: 0.021 | K50: 0 | L50: -0.007 | M50: -0.012 | N50: -0.016 | O50: -0.002 | P50: 0.011
A51: 347 | B51: 0.353 | C51: 0.002 | D51: 0.064 | E51: 0.256 | F51: 0.315 | G51: 0.162 | H51: 0.113 | I51: 0.089 | J51: 0.021 | K51: 0 | L51: -0.007 | M51: -0.013 | N51: -0.016 | O51: -0.001 | P51: 0.012
A52: 348 | B52: 0.353 | C52: 0.002 | D52: 0.066 | E52: 0.261 | F52: 0.318 | G52: 0.161 | H52: 0.111 | I52: 0.088 | J52: 0.021 | K52: 0 | L52: -0.007 | M52: -0.013 | N52: -0.016 | O52: -0.002 | P52: 0.012
A53: 349 | B53: 0.353 | C53: 0.002 | D53: 0.068 | E53: 0.265 | F53: 0.323 | G53: 0.161 | H53: 0.11 | I53: 0.087 | J53: 0.021 | K53: 0 | L53: -0.007 | M53: -0.013 | N53: -0.016 | O53: -0.002 | P53: 0.012
A54: 350 | B54: 0.353 | C54: 0.002 | D54: 0.071 | E54: 0.271 | F54: 0.33 | G54: 0.162 | H54: 0.109 | I54: 0.087 | J54: 0.02 | K54: 0 | L54: -0.007 | M54: -0.012 | N54: -0.015 | O54: -0.002 | P54: 0.012
A55: 351 | B55: 0.354 | C55: 0.003 | D55: 0.073 | E55: 0.278 | F55: 0.339 | G55: 0.163 | H55: 0.108 | I55: 0.086 | J55: 0.02 | K55: 0 | L55: -0.006 | M55: -0.013 | N55: -0.014 | O55: -0.001 | P55: 0.013
A56: 352 | B56: 0.354 | C56: 0.002 | D56: 0.074 | E56: 0.283 | F56: 0.346 | G56: 0.163 | H56: 0.108 | I56: 0.086 | J56: 0.019 | K56: 0 | L56: -0.007 | M56: -0.014 | N56: -0.015 | O56: -0.001 | P56: 0.013
A57: 353 | B57: 0.354 | C57: 0.002 | D57: 0.076 | E57: 0.29 | F57: 0.353 | G57: 0.164 | H57: 0.107 | I57: 0.086 | J57: 0.019 | K57: 0 | L57: -0.007 | M57: -0.014 | N57: -0.016 | O57: -0.001 | P57: 0.013
A58: 354 | B58: 0.354 | C58: 0.002 | D58: 0.08 | E58: 0.298 | F58: 0.363 | G58: 0.166 | H58: 0.107 | I58: 0.086 | J58: 0.02 | K58: 0 | L58: -0.007 | M58: -0.014 | N58: -0.015 | O58: -0.001 | P58: 0.013
A59: 355 | B59: 0.354 | C59: 0.002 | D59: 0.082 | E59: 0.305 | F59: 0.371 | G59: 0.168 | H59: 0.108 | I59: 0.087 | J59: 0.021 | K59: 0.001 | L59: -0.006 | M59: -0.013 | N59: -0.015 | O59: -0.001 | P59: 0.014
A60: 356 | B60: 0.354 | C60: 0.003 | D60: 0.085 | E60: 0.311 | F60: 0.379 | G60: 0.17 | H60: 0.108 | I60: 0.087 | J60: 0.021 | K60: 0.001 | L60: -0.006 | M60: -0.013 | N60: -0.015 | O60: -0.001 | P60: 0.013
A61: 357 | B61: 0.355 | C61: 0.003 | D61: 0.087 | E61: 0.319 | F61: 0.387 | G61: 0.173 | H61: 0.108 | I61: 0.088 | J61: 0.022 | K61: 0.002 | L61: -0.006 | M61: -0.014 | N61: -0.015 | O61: 0 | P61: 0.014
A62: 358 | B62: 0.356 | C62: 0.004 | D62: 0.09 | E62: 0.327 | F62: 0.395 | G62: 0.174 | H62: 0.109 | I62: 0.088 | J62: 0.022 | K62: 0.002 | L62: -0.006 | M62: -0.014 | N62: -0.015 | O62: 0 | P62: 0.014
A63: 359 | B63: 0.357 | C63: 0.004 | D63: 0.093 | E63: 0.334 | F63: 0.404 | G63: 0.176 | H63: 0.109 | I63: 0.089 | J63: 0.023 | K63: 0.003 | L63: -0.005 | M63: -0.013 | N63: -0.014 | O63: 0.001 | P63: 0.014
A64: 360 | B64: 0.358 | C64: 0.004 | D64: 0.096 | E64: 0.341 | F64: 0.412 | G64: 0.177 | H64: 0.109 | I64: 0.089 | J64: 0.024 | K64: 0.003 | L64: -0.005 | M64: -0.013 | N64: -0.014 | O64: 0.001 | P64: 0.014
A65: 361 | B65: 0.36 | C65: 0.004 | D65: 0.1 | E65: 0.348 | F65: 0.42 | G65: 0.179 | H65: 0.109 | I65: 0.089 | J65: 0.026 | K65: 0.004 | L65: -0.005 | M65: -0.013 | N65: -0.014 | O65: 0.001 | P65: 0.016
A66: 362 | B66: 0.361 | C66: 0.005 | D66: 0.103 | E66: 0.356 | F66: 0.43 | G66: 0.181 | H66: 0.109 | I66: 0.09 | J66: 0.027 | K66: 0.004 | L66: -0.005 | M66: -0.013 | N66: -0.014 | O66: 0.002 | P66: 0.016
A67: 363 | B67: 0.361 | C67: 0.005 | D67: 0.106 | E67: 0.364 | F67: 0.438 | G67: 0.181 | H67: 0.109 | I67: 0.091 | J67: 0.028 | K67: 0.005 | L67: -0.004 | M67: -0.013 | N67: -0.014 | O67: 0.002 | P67: 0.017
A68: 364 | B68: 0.364 | C68: 0.005 | D68: 0.109 | E68: 0.372 | F68: 0.447 | G68: 0.183 | H68: 0.109 | I68: 0.092 | J68: 0.029 | K68: 0.006 | L68: -0.004 | M68: -0.012 | N68: -0.013 | O68: 0.002 | P68: 0.018
A69: 365 | B69: 0.366 | C69: 0.005 | D69: 0.112 | E69: 0.38 | F69: 0.456 | G69: 0.184 | H69: 0.108 | I69: 0.093 | J69: 0.03 | K69: 0.007 | L69: -0.004 | M69: -0.012 | N69: -0.012 | O69: 0.003 | P69: 0.018
A70: 366 | B70: 0.368 | C70: 0.006 | D70: 0.116 | E70: 0.389 | F70: 0.467 | G70: 0.186 | H70: 0.108 | I70: 0.093 | J70: 0.032 | K70: 0.008 | L70: -0.003 | M70: -0.012 | N70: -0.012 | O70: 0.003 | P70: 0.019
A71: 367 | B71: 0.369 | C71: 0.006 | D71: 0.118 | E71: 0.398 | F71: 0.477 | G71: 0.187 | H71: 0.107 | I71: 0.094 | J71: 0.033 | K71: 0.008 | L71: -0.004 | M71: -0.012 | N71: -0.013 | O71: 0.003 | P71: 0.019
A72: 368 | B72: 0.37 | C72: 0.007 | D72: 0.12 | E72: 0.407 | F72: 0.485 | G72: 0.188 | H72: 0.106 | I72: 0.095 | J72: 0.034 | K72: 0.009 | L72: -0.004 | M72: -0.012 | N72: -0.013 | O72: 0.003 | P72: 0.019
A73: 369 | B73: 0.372 | C73: 0.007 | D73: 0.123 | E73: 0.416 | F73: 0.494 | G73: 0.189 | H73: 0.106 | I73: 0.095 | J73: 0.035 | K73: 0.01 | L73: -0.003 | M73: -0.012 | N73: -0.012 | O73: 0.004 | P73: 0.019
A74: 370 | B74: 0.375 | C74: 0.007 | D74: 0.126 | E74: 0.425 | F74: 0.505 | G74: 0.19 | H74: 0.106 | I74: 0.096 | J74: 0.038 | K74: 0.011 | L74: -0.002 | M74: -0.011 | N74: -0.011 | O74: 0.004 | P74: 0.021
A75: 371 | B75: 0.378 | C75: 0.007 | D75: 0.128 | E75: 0.434 | F75: 0.517 | G75: 0.192 | H75: 0.106 | I75: 0.098 | J75: 0.039 | K75: 0.012 | L75: -0.002 | M75: -0.011 | N75: -0.011 | O75: 0.004 | P75: 0.021
A76: 372 | B76: 0.38 | C76: 0.008 | D76: 0.13 | E76: 0.443 | F76: 0.527 | G76: 0.194 | H76: 0.107 | I76: 0.099 | J76: 0.041 | K76: 0.012 | L76: -0.001 | M76: -0.011 | N76: -0.011 | O76: 0.005 | P76: 0.021
A77: 373 | B77: 0.384 | C77: 0.01 | D77: 0.133 | E77: 0.451 | F77: 0.536 | G77: 0.196 | H77: 0.107 | I77: 0.1 | J77: 0.043 | K77: 0.014 | L77: 0 | M77: -0.01 | N77: -0.01 | O77: 0.005 | P77: 0.022
A78: 374 | B78: 0.387 | C78: 0.01 | D78: 0.135 | E78: 0.458 | F78: 0.544 | G78: 0.199 | H78: 0.107 | I78: 0.102 | J78: 0.045 | K78: 0.015 | L78: 0 | M78: -0.01 | N78: -0.01 | O78: 0.006 | P78: 0.022
A79: 375 | B79: 0.39 | C79: 0.011 | D79: 0.137 | E79: 0.464 | F79: 0.551 | G79: 0.201 | H79: 0.108 | I79: 0.103 | J79: 0.047 | K79: 0.016 | L79: 0 | M79: -0.01 | N79: -0.01 | O79: 0.006 | P79: 0.023
A80: 376 | B80: 0.392 | C80: 0.011 | D80: 0.138 | E80: 0.468 | F80: 0.556 | G80: 0.201 | H80: 0.108 | I80: 0.103 | J80: 0.047 | K80: 0.017 | L80: 0 | M80: -0.01 | N80: -0.01 | O80: 0.006 | P80: 0.023
A81: 377 | B81: 0.396 | C81: 0.011 | D81: 0.139 | E81: 0.47 | F81: 0.559 | G81: 0.201 | H81: 0.108 | I81: 0.105 | J81: 0.049 | K81: 0.017 | L81: 0.001 | M81: -0.009 | N81: -0.01 | O81: 0.006 | P81: 0.024
A82: 378 | B82: 0.4 | C82: 0.012 | D82: 0.141 | E82: 0.472 | F82: 0.564 | G82: 0.201 | H82: 0.109 | I82: 0.106 | J82: 0.051 | K82: 0.019 | L82: 0.001 | M82: -0.009 | N82: -0.009 | O82: 0.007 | P82: 0.025
A83: 379 | B83: 0.404 | C83: 0.014 | D83: 0.144 | E83: 0.475 | F83: 0.567 | G83: 0.201 | H83: 0.108 | I83: 0.108 | J83: 0.054 | K83: 0.02 | L83: 0.002 | M83: -0.008 | N83: -0.008 | O83: 0.009 | P83: 0.026
A84: 380 | B84: 0.407 | C84: 0.014 | D84: 0.146 | E84: 0.476 | F84: 0.567 | G84: 0.201 | H84: 0.107 | I84: 0.109 | J84: 0.055 | K84: 0.02 | L84: 0.002 | M84: -0.009 | N84: -0.008 | O84: 0.009 | P84: 0.026
A85: 381 | B85: 0.41 | C85: 0.013 | D85: 0.147 | E85: 0.476 | F85: 0.566 | G85: 0.199 | H85: 0.106 | I85: 0.109 | J85: 0.056 | K85: 0.021 | L85: 0.002 | M85: -0.009 | N85: -0.008 | O85: 0.009 | P85: 0.026
A86: 382 | B86: 0.414 | C86: 0.014 | D86: 0.149 | E86: 0.478 | F86: 0.565 | G86: 0.197 | H86: 0.105 | I86: 0.11 | J86: 0.058 | K86: 0.022 | L86: 0.002 | M86: -0.009 | N86: -0.008 | O86: 0.01 | P86: 0.027
A87: 383 | B87: 0.419 | C87: 0.016 | D87: 0.153 | E87: 0.48 | F87: 0.566 | G87: 0.196 | H87: 0.104 | I87: 0.112 | J87: 0.061 | K87: 0.024 | L87: 0.003 | M87: -0.007 | N87: -0.007 | O87: 0.011 | P87: 0.029
A88: 384 | B88: 0.424 | C88: 0.017 | D88: 0.156 | E88: 0.48 | F88: 0.565 | G88: 0.193 | H88: 0.102 | I88: 0.114 | J88: 0.064 | K88: 0.027 | L88: 0.004 | M88: -0.006 | N88: -0.006 | O88: 0.012 | P88: 0.031
A89: 385 | B89: 0.429 | C89: 0.018 | D89: 0.16 | E89: 0.479 | F89: 0.563 | G89: 0.19 | H89: 0.099 | I89: 0.116 | J89: 0.068 | K89: 0.029 | L89: 0.005 | M89: -0.005 | N89: -0.005 | O89: 0.013 | P89: 0.033
A90: 386 | B90: 0.434 | C90: 0.018 | D90: 0.163 | E90: 0.477 | F90: 0.561 | G90: 0.187 | H90: 0.097 | I90: 0.117 | J90: 0.07 | K90: 0.03 | L90: 0.006 | M90: -0.006 | N90: -0.005 | O90: 0.014 | P90: 0.034
A91: 387 | B91: 0.438 | C91: 0.019 | D91: 0.167 | E91: 0.475 | F91: 0.558 | G91: 0.183 | H91: 0.095 | I91: 0.118 | J91: 0.073 | K91: 0.031 | L91: 0.006 | M91: -0.006 | N91: -0.005 | O91: 0.015 | P91: 0.035
A92: 388 | B92: 0.442 | C92: 0.02 | D92: 0.17 | E92: 0.473 | F92: 0.554 | G92: 0.18 | H92: 0.093 | I92: 0.12 | J92: 0.075 | K92: 0.033 | L92: 0.007 | M92: -0.006 | N92: -0.005 | O92: 0.015 | P92: 0.037
A93: 389 | B93: 0.447 | C93: 0.021 | D93: 0.174 | E93: 0.472 | F93: 0.553 | G93: 0.178 | H93: 0.091 | I93: 0.121 | J93: 0.079 | K93: 0.035 | L93: 0.007 | M93: -0.005 | N93: -0.005 | O93: 0.016 | P93: 0.038
A94: 390 | B94: 0.453 | C94: 0.021 | D94: 0.178 | E94: 0.472 | F94: 0.552 | G94: 0.175 | H94: 0.09 | I94: 0.123 | J94: 0.083 | K94: 0.037 | L94: 0.008 | M94: -0.005 | N94: -0.004 | O94: 0.017 | P94: 0.039
A95: 391 | B95: 0.46 | C95: 0.023 | D95: 0.182 | E95: 0.473 | F95: 0.554 | G95: 0.175 | H95: 0.09 | I95: 0.126 | J95: 0.086 | K95: 0.039 | L95: 0.009 | M95: -0.004 | N95: -0.003 | O95: 0.018 | P95: 0.04
A96: 392 | B96: 0.465 | C96: 0.024 | D96: 0.186 | E96: 0.476 | F96: 0.557 | G96: 0.175 | H96: 0.089 | I96: 0.128 | J96: 0.089 | K96: 0.041 | L96: 0.009 | M96: -0.004 | N96: -0.002 | O96: 0.019 | P96: 0.041
A97: 393 | B97: 0.47 | C97: 0.024 | D97: 0.19 | E97: 0.481 | F97: 0.56 | G97: 0.175 | H97: 0.089 | I97: 0.13 | J97: 0.091 | K97: 0.042 | L97: 0.009 | M97: -0.004 | N97: -0.003 | O97: 0.019 | P97: 0.04
A98: 394 | B98: 0.475 | C98: 0.025 | D98: 0.193 | E98: 0.488 | F98: 0.567 | G98: 0.176 | H98: 0.09 | I98: 0.132 | J98: 0.094 | K98: 0.044 | L98: 0.01 | M98: -0.003 | N98: -0.003 | O98: 0.019 | P98: 0.041
A99: 395 | B99: 0.48 | C99: 0.027 | D99: 0.195 | E99: 0.497 | F99: 0.579 | G99: 0.18 | H99: 0.092 | I99: 0.134 | J99: 0.097 | K99: 0.046 | L99: 0.011 | M99: -0.003 | N99: -0.001 | O99: 0.02 | P99: 0.042
A100: 396 | B100: 0.488 | C100: 0.028 | D100: 0.197 | E100: 0.511 | F100: 0.595 | G100: 0.183 | H100: 0.094 | I100: 0.137 | J100: 0.101 | K100: 0.047 | L100: 0.012 | M100: -0.002 | N100: -0.002 | O100: 0.02 | P100: 0.042
A101: 397 | B101: 0.494 | C101: 0.03 | D101: 0.2 | E101: 0.528 | F101: 0.615 | G101: 0.189 | H101: 0.097 | I101: 0.14 | J101: 0.104 | K101: 0.049 | L101: 0.012 | M101: -0.002 | N101: -0.002 | O101: 0.02 | P101: 0.042
A102: 398 | B102: 0.498 | C102: 0.032 | D102: 0.204 | E102: 0.548 | F102: 0.638 | G102: 0.197 | H102: 0.1 | I102: 0.143 | J102: 0.106 | K102: 0.05 | L102: 0.013 | M102: -0.001 | N102: -0.001 | O102: 0.021 | P102: 0.043
A103: 399 | B103: 0.501 | C103: 0.033 | D103: 0.207 | E103: 0.566 | F103: 0.661 | G103: 0.203 | H103: 0.102 | I103: 0.146 | J103: 0.108 | K103: 0.052 | L103: 0.013 | M103: 0 | N103: 0 | O103: 0.022 | P103: 0.044
A104: 400 | B104: 0.505 | C104: 0.033 | D104: 0.209 | E104: 0.585 | F104: 0.685 | G104: 0.21 | H104: 0.105 | I104: 0.149 | J104: 0.111 | K104: 0.053 | L104: 0.013 | M104: -0.001 | N104: 0 | O104: 0.022 | P104: 0.045
A105: 401 | B105: 0.512 | C105: 0.033 | D105: 0.213 | E105: 0.609 | F105: 0.713 | G105: 0.218 | H105: 0.108 | I105: 0.151 | J105: 0.115 | K105: 0.055 | L105: 0.014 | M105: -0.001 | N105: 0.001 | O105: 0.023 | P105: 0.045
A106: 402 | B106: 0.518 | C106: 0.034 | D106: 0.217 | E106: 0.633 | F106: 0.74 | G106: 0.226 | H106: 0.112 | I106: 0.154 | J106: 0.117 | K106: 0.056 | L106: 0.015 | M106: 0.001 | N106: 0.001 | O106: 0.023 | P106: 0.046
A107: 403 | B107: 0.523 | C107: 0.035 | D107: 0.221 | E107: 0.654 | F107: 0.767 | G107: 0.234 | H107: 0.116 | I107: 0.159 | J107: 0.121 | K107: 0.058 | L107: 0.016 | M107: 0.001 | N107: 0.001 | O107: 0.024 | P107: 0.048
A108: 404 | B108: 0.527 | C108: 0.036 | D108: 0.226 | E108: 0.672 | F108: 0.787 | G108: 0.24 | H108: 0.119 | I108: 0.163 | J108: 0.126 | K108: 0.06 | L108: 0.017 | M108: 0.002 | N108: 0.002 | O108: 0.026 | P108: 0.05
A109: 405 | B109: 0.531 | C109: 0.037 | D109: 0.229 | E109: 0.688 | F109: 0.804 | G109: 0.246 | H109: 0.122 | I109: 0.166 | J109: 0.129 | K109: 0.062 | L109: 0.017 | M109: 0.001 | N109: 0.002 | O109: 0.027 | P109: 0.052
A110: 406 | B110: 0.536 | C110: 0.039 | D110: 0.233 | E110: 0.702 | F110: 0.821 | G110: 0.251 | H110: 0.125 | I110: 0.171 | J110: 0.134 | K110: 0.065 | L110: 0.018 | M110: 0.002 | N110: 0.003 | O110: 0.029 | P110: 0.055
A111: 407 | B111: 0.545 | C111: 0.04 | D111: 0.237 | E111: 0.715 | F111: 0.835 | G111: 0.255 | H111: 0.128 | I111: 0.176 | J111: 0.14 | K111: 0.068 | L111: 0.02 | M111: 0.003 | N111: 0.004 | O111: 0.031 | P111: 0.058
A112: 408 | B112: 0.553 | C112: 0.042 | D112: 0.241 | E112: 0.724 | F112: 0.848 | G112: 0.26 | H112: 0.132 | I112: 0.182 | J112: 0.146 | K112: 0.071 | L112: 0.02 | M112: 0.003 | N112: 0.006 | O112: 0.032 | P112: 0.061
A113: 409 | B113: 0.561 | C113: 0.043 | D113: 0.241 | E113: 0.73 | F113: 0.855 | G113: 0.265 | H113: 0.137 | I113: 0.188 | J113: 0.152 | K113: 0.074 | L113: 0.021 | M113: 0.003 | N113: 0.007 | O113: 0.034 | P113: 0.062
A114: 410 | B114: 0.567 | C114: 0.044 | D114: 0.241 | E114: 0.732 | F114: 0.857 | G114: 0.268 | H114: 0.142 | I114: 0.194 | J114: 0.158 | K114: 0.077 | L114: 0.022 | M114: 0.004 | N114: 0.008 | O114: 0.035 | P114: 0.064
A115: 411 | B115: 0.574 | C115: 0.045 | D115: 0.24 | E115: 0.732 | F115: 0.857 | G115: 0.272 | H115: 0.145 | I115: 0.2 | J115: 0.164 | K115: 0.082 | L115: 0.024 | M115: 0.005 | N115: 0.009 | O115: 0.037 | P115: 0.067
A116: 412 | B116: 0.584 | C116: 0.046 | D116: 0.236 | E116: 0.729 | F116: 0.854 | G116: 0.274 | H116: 0.15 | I116: 0.207 | J116: 0.171 | K116: 0.086 | L116: 0.026 | M116: 0.006 | N116: 0.01 | O116: 0.039 | P116: 0.07
A117: 413 | B117: 0.594 | C117: 0.047 | D117: 0.229 | E117: 0.725 | F117: 0.85 | G117: 0.277 | H117: 0.156 | I117: 0.214 | J117: 0.177 | K117: 0.089 | L117: 0.027 | M117: 0.007 | N117: 0.011 | O117: 0.04 | P117: 0.071
A118: 414 | B118: 0.606 | C118: 0.048 | D118: 0.222 | E118: 0.719 | F118: 0.846 | G118: 0.281 | H118: 0.162 | I118: 0.22 | J118: 0.184 | K118: 0.092 | L118: 0.028 | M118: 0.007 | N118: 0.011 | O118: 0.041 | P118: 0.072
A119: 415 | B119: 0.616 | C119: 0.049 | D119: 0.213 | E119: 0.716 | F119: 0.843 | G119: 0.285 | H119: 0.168 | I119: 0.227 | J119: 0.19 | K119: 0.095 | L119: 0.029 | M119: 0.008 | N119: 0.011 | O119: 0.041 | P119: 0.073
A120: 416 | B120: 0.625 | C120: 0.05 | D120: 0.204 | E120: 0.713 | F120: 0.843 | G120: 0.291 | H120: 0.175 | I120: 0.233 | J120: 0.196 | K120: 0.098 | L120: 0.03 | M120: 0.009 | N120: 0.012 | O120: 0.041 | P120: 0.073
A121: 417 | B121: 0.636 | C121: 0.051 | D121: 0.195 | E121: 0.713 | F121: 0.845 | G121: 0.296 | H121: 0.184 | I121: 0.24 | J121: 0.201 | K121: 0.101 | L121: 0.032 | M121: 0.01 | N121: 0.013 | O121: 0.042 | P121: 0.073
A122: 418 | B122: 0.646 | C122: 0.053 | D122: 0.185 | E122: 0.717 | F122: 0.852 | G122: 0.305 | H122: 0.194 | I122: 0.246 | J122: 0.205 | K122: 0.103 | L122: 0.033 | M122: 0.011 | N122: 0.013 | O122: 0.042 | P122: 0.073
A123: 419 | B123: 0.655 | C123: 0.053 | D123: 0.173 | E123: 0.726 | F123: 0.866 | G123: 0.316 | H123: 0.203 | I123: 0.252 | J123: 0.209 | K123: 0.104 | L123: 0.033 | M123: 0.01 | N123: 0.013 | O123: 0.042 | P123: 0.072
A124: 420 | B124: 0.665 | C124: 0.054 | D124: 0.163 | E124: 0.741 | F124: 0.887 | G124: 0.33 | H124: 0.215 | I124: 0.259 | J124: 0.212 | K124: 0.106 | L124: 0.034 | M124: 0.01 | N124: 0.013 | O124: 0.042 | P124: 0.071
A125: 421 | B125: 0.67 | C125: 0.054 | D125: 0.154 | E125: 0.76 | F125: 0.913 | G125: 0.344 | H125: 0.226 | I125: 0.264 | J125: 0.215 | K125: 0.107 | L125: 0.034 | M125: 0.011 | N125: 0.013 | O125: 0.042 | P125: 0.071
A126: 422 | B126: 0.673 | C126: 0.054 | D126: 0.145 | E126: 0.781 | F126: 0.942 | G126: 0.358 | H126: 0.235 | I126: 0.268 | J126: 0.217 | K126: 0.108 | L126: 0.034 | M126: 0.011 | N126: 0.012 | O126: 0.041 | P126: 0.07
A127: 423 | B127: 0.677 | C127: 0.054 | D127: 0.135 | E127: 0.809 | F127: 0.979 | G127: 0.377 | H127: 0.246 | I127: 0.272 | J127: 0.218 | K127: 0.108 | L127: 0.034 | M127: 0.011 | N127: 0.011 | O127: 0.039 | P127: 0.069
A128: 424 | B128: 0.683 | C128: 0.054 | D128: 0.128 | E128: 0.846 | F128: 1.022 | G128: 0.397 | H128: 0.258 | I128: 0.278 | J128: 0.22 | K128: 0.109 | L128: 0.035 | M128: 0.011 | N128: 0.011 | O128: 0.039 | P128: 0.069
A129: 425 | B129: 0.687 | C129: 0.056 | D129: 0.121 | E129: 0.884 | F129: 1.066 | G129: 0.417 | H129: 0.27 | I129: 0.283 | J129: 0.221 | K129: 0.11 | L129: 0.036 | M129: 0.012 | N129: 0.012 | O129: 0.04 | P129: 0.07
A130: 426 | B130: 0.692 | C130: 0.057 | D130: 0.115 | E130: 0.919 | F130: 1.109 | G130: 0.436 | H130: 0.28 | I130: 0.287 | J130: 0.223 | K130: 0.112 | L130: 0.036 | M130: 0.012 | N130: 0.014 | O130: 0.041 | P130: 0.071
A131: 427 | B131: 0.696 | C131: 0.056 | D131: 0.11 | E131: 0.95 | F131: 1.143 | G131: 0.453 | H131: 0.288 | I131: 0.29 | J131: 0.226 | K131: 0.113 | L131: 0.036 | M131: 0.013 | N131: 0.014 | O131: 0.042 | P131: 0.071
A132: 428 | B132: 0.699 | C132: 0.055 | D132: 0.104 | E132: 0.976 | F132: 1.175 | G132: 0.466 | H132: 0.295 | I132: 0.294 | J132: 0.228 | K132: 0.113 | L132: 0.036 | M132: 0.011 | N132: 0.013 | O132: 0.041 | P132: 0.072
A133: 429 | B133: 0.702 | C133: 0.055 | D133: 0.1 | E133: 1.001 | F133: 1.208 | G133: 0.477 | H133: 0.302 | I133: 0.298 | J133: 0.231 | K133: 0.114 | L133: 0.037 | M133: 0.011 | N133: 0.014 | O133: 0.043 | P133: 0.075
A134: 430 | B134: 0.703 | C134: 0.056 | D134: 0.097 | E134: 1.014 | F134: 1.223 | G134: 0.483 | H134: 0.307 | I134: 0.302 | J134: 0.235 | K134: 0.116 | L134: 0.038 | M134: 0.012 | N134: 0.014 | O134: 0.045 | P134: 0.078
A135: 431 | B135: 0.706 | C135: 0.057 | D135: 0.094 | E135: 1.009 | F135: 1.215 | G135: 0.484 | H135: 0.31 | I135: 0.306 | J135: 0.238 | K135: 0.117 | L135: 0.038 | M135: 0.013 | N135: 0.015 | O135: 0.047 | P135: 0.081
A136: 432 | B136: 0.707 | C136: 0.056 | D136: 0.091 | E136: 0.992 | F136: 1.188 | G136: 0.479 | H136: 0.31 | I136: 0.31 | J136: 0.243 | K136: 0.12 | L136: 0.039 | M136: 0.014 | N136: 0.018 | O136: 0.05 | P136: 0.084
A137: 433 | B137: 0.706 | C137: 0.056 | D137: 0.086 | E137: 0.961 | F137: 1.149 | G137: 0.47 | H137: 0.309 | I137: 0.314 | J137: 0.248 | K137: 0.123 | L137: 0.04 | M137: 0.013 | N137: 0.019 | O137: 0.052 | P137: 0.088
A138: 434 | B138: 0.709 | C138: 0.057 | D138: 0.081 | E138: 0.92 | F138: 1.103 | G138: 0.458 | H138: 0.308 | I138: 0.319 | J138: 0.254 | K138: 0.126 | L138: 0.041 | M138: 0.013 | N138: 0.019 | O138: 0.053 | P138: 0.091
A139: 435 | B139: 0.713 | C139: 0.059 | D139: 0.076 | E139: 0.867 | F139: 1.044 | G139: 0.443 | H139: 0.308 | I139: 0.324 | J139: 0.261 | K139: 0.13 | L139: 0.042 | M139: 0.015 | N139: 0.021 | O139: 0.056 | P139: 0.095
A140: 436 | B140: 0.718 | C140: 0.061 | D140: 0.072 | E140: 0.797 | F140: 0.965 | G140: 0.424 | H140: 0.307 | I140: 0.331 | J140: 0.267 | K140: 0.134 | L140: 0.043 | M140: 0.016 | N140: 0.022 | O140: 0.059 | P140: 0.099
A141: 437 | B141: 0.724 | C141: 0.061 | D141: 0.065 | E141: 0.717 | F141: 0.869 | G141: 0.402 | H141: 0.307 | I141: 0.336 | J141: 0.274 | K141: 0.137 | L141: 0.044 | M141: 0.017 | N141: 0.022 | O141: 0.06 | P141: 0.101
A142: 438 | B142: 0.732 | C142: 0.062 | D142: 0.059 | E142: 0.631 | F142: 0.768 | G142: 0.378 | H142: 0.306 | I142: 0.342 | J142: 0.282 | K142: 0.141 | L142: 0.045 | M142: 0.018 | N142: 0.023 | O142: 0.061 | P142: 0.102
A143: 439 | B143: 0.744 | C143: 0.064 | D143: 0.053 | E143: 0.547 | F143: 0.67 | G143: 0.36 | H143: 0.309 | I143: 0.349 | J143: 0.29 | K143: 0.146 | L143: 0.046 | M143: 0.018 | N143: 0.024 | O143: 0.063 | P143: 0.103
A144: 440 | B144: 0.757 | C144: 0.066 | D144: 0.049 | E144: 0.472 | F144: 0.585 | G144: 0.346 | H144: 0.315 | I144: 0.355 | J144: 0.296 | K144: 0.149 | L144: 0.048 | M144: 0.019 | N144: 0.025 | O144: 0.064 | P144: 0.105
A145: 441 | B145: 0.768 | C145: 0.067 | D145: 0.043 | E145: 0.403 | F145: 0.506 | G145: 0.335 | H145: 0.321 | I145: 0.361 | J145: 0.302 | K145: 0.151 | L145: 0.049 | M145: 0.019 | N145: 0.024 | O145: 0.063 | P145: 0.104
A146: 442 | B146: 0.78 | C146: 0.068 | D146: 0.038 | E146: 0.334 | F146: 0.429 | G146: 0.327 | H146: 0.331 | I146: 0.368 | J146: 0.307 | K146: 0.153 | L146: 0.049 | M146: 0.018 | N146: 0.023 | O146: 0.063 | P146: 0.102
A147: 443 | B147: 0.793 | C147: 0.07 | D147: 0.035 | E147: 0.277 | F147: 0.364 | G147: 0.326 | H147: 0.345 | I147: 0.377 | J147: 0.314 | K147: 0.157 | L147: 0.05 | M147: 0.019 | N147: 0.024 | O147: 0.062 | P147: 0.102
A148: 444 | B148: 0.802 | C148: 0.071 | D148: 0.032 | E148: 0.227 | F148: 0.31 | G148: 0.329 | H148: 0.362 | I148: 0.388 | J148: 0.318 | K148: 0.159 | L148: 0.051 | M148: 0.019 | N148: 0.023 | O148: 0.061 | P148: 0.1
A149: 445 | B149: 0.81 | C149: 0.072 | D149: 0.029 | E149: 0.184 | F149: 0.265 | G149: 0.337 | H149: 0.382 | I149: 0.398 | J149: 0.32 | K149: 0.16 | L149: 0.051 | M149: 0.02 | N149: 0.022 | O149: 0.059 | P149: 0.097
A150: 446 | B150: 0.816 | C150: 0.072 | D150: 0.027 | E150: 0.15 | F150: 0.23 | G150: 0.351 | H150: 0.404 | I150: 0.407 | J150: 0.323 | K150: 0.16 | L150: 0.052 | M150: 0.02 | N150: 0.022 | O150: 0.057 | P150: 0.094
A151: 447 | B151: 0.823 | C151: 0.074 | D151: 0.025 | E151: 0.123 | F151: 0.204 | G151: 0.369 | H151: 0.429 | I151: 0.415 | J151: 0.325 | K151: 0.161 | L151: 0.051 | M151: 0.02 | N151: 0.022 | O151: 0.055 | P151: 0.092
A152: 448 | B152: 0.827 | C152: 0.074 | D152: 0.024 | E152: 0.103 | F152: 0.186 | G152: 0.386 | H152: 0.453 | I152: 0.424 | J152: 0.325 | K152: 0.16 | L152: 0.051 | M152: 0.019 | N152: 0.02 | O152: 0.053 | P152: 0.088
A153: 449 | B153: 0.83 | C153: 0.075 | D153: 0.022 | E153: 0.086 | F153: 0.173 | G153: 0.407 | H153: 0.477 | I153: 0.432 | J153: 0.325 | K153: 0.159 | L153: 0.051 | M153: 0.019 | N153: 0.019 | O153: 0.051 | P153: 0.086
A154: 450 | B154: 0.832 | C154: 0.076 | D154: 0.02 | E154: 0.073 | F154: 0.163 | G154: 0.43 | H154: 0.503 | I154: 0.439 | J154: 0.324 | K154: 0.157 | L154: 0.051 | M154: 0.019 | N154: 0.019 | O154: 0.049 | P154: 0.083
A155: 451 | B155: 0.832 | C155: 0.076 | D155: 0.02 | E155: 0.062 | F155: 0.157 | G155: 0.452 | H155: 0.527 | I155: 0.446 | J155: 0.321 | K155: 0.156 | L155: 0.051 | M155: 0.019 | N155: 0.018 | O155: 0.048 | P155: 0.08
A156: 452 | B156: 0.831 | C156: 0.075 | D156: 0.018 | E156: 0.052 | F156: 0.151 | G156: 0.47 | H156: 0.547 | I156: 0.45 | J156: 0.317 | K156: 0.152 | L156: 0.049 | M156: 0.018 | N156: 0.017 | O156: 0.046 | P156: 0.076
A157: 453 | B157: 0.828 | C157: 0.075 | D157: 0.018 | E157: 0.046 | F157: 0.147 | G157: 0.487 | H157: 0.563 | I157: 0.452 | J157: 0.313 | K157: 0.15 | L157: 0.048 | M157: 0.017 | N157: 0.016 | O157: 0.044 | P157: 0.074
A158: 454 | B158: 0.824 | C158: 0.074 | D158: 0.016 | E158: 0.04 | F158: 0.145 | G158: 0.498 | H158: 0.575 | I158: 0.451 | J158: 0.308 | K158: 0.147 | L158: 0.048 | M158: 0.017 | N158: 0.016 | O158: 0.042 | P158: 0.071
A159: 455 | B159: 0.82 | C159: 0.074 | D159: 0.016 | E159: 0.036 | F159: 0.143 | G159: 0.504 | H159: 0.581 | I159: 0.449 | J159: 0.302 | K159: 0.144 | L159: 0.047 | M159: 0.017 | N159: 0.016 | O159: 0.041 | P159: 0.069
A160: 456 | B160: 0.814 | C160: 0.074 | D160: 0.016 | E160: 0.033 | F160: 0.14 | G160: 0.504 | H160: 0.579 | I160: 0.443 | J160: 0.296 | K160: 0.141 | L160: 0.045 | M160: 0.016 | N160: 0.015 | O160: 0.04 | P160: 0.069
A161: 457 | B161: 0.806 | C161: 0.073 | D161: 0.015 | E161: 0.03 | F161: 0.136 | G161: 0.499 | H161: 0.574 | I161: 0.436 | J161: 0.291 | K161: 0.137 | L161: 0.044 | M161: 0.015 | N161: 0.014 | O161: 0.04 | P161: 0.068
A162: 458 | B162: 0.799 | C162: 0.071 | D162: 0.015 | E162: 0.028 | F162: 0.131 | G162: 0.489 | H162: 0.564 | I162: 0.428 | J162: 0.284 | K162: 0.134 | L162: 0.042 | M162: 0.014 | N162: 0.014 | O162: 0.04 | P162: 0.067
A163: 459 | B163: 0.795 | C163: 0.069 | D163: 0.015 | E163: 0.026 | F163: 0.127 | G163: 0.475 | H163: 0.548 | I163: 0.42 | J163: 0.278 | K163: 0.132 | L163: 0.042 | M163: 0.015 | N163: 0.014 | O163: 0.041 | P163: 0.068
A164: 460 | B164: 0.788 | C164: 0.068 | D164: 0.015 | E164: 0.024 | F164: 0.121 | G164: 0.457 | H164: 0.528 | I164: 0.409 | J164: 0.273 | K164: 0.129 | L164: 0.042 | M164: 0.015 | N164: 0.014 | O164: 0.042 | P164: 0.07
A165: 461 | B165: 0.779 | C165: 0.068 | D165: 0.015 | E165: 0.023 | F165: 0.115 | G165: 0.436 | H165: 0.506 | I165: 0.399 | J165: 0.268 | K165: 0.127 | L165: 0.041 | M165: 0.014 | N165: 0.015 | O165: 0.043 | P165: 0.073
A166: 462 | B166: 0.768 | C166: 0.065 | D166: 0.014 | E166: 0.021 | F166: 0.107 | G166: 0.41 | H166: 0.478 | I166: 0.386 | J166: 0.264 | K166: 0.125 | L166: 0.039 | M166: 0.013 | N166: 0.015 | O166: 0.044 | P166: 0.076
A167: 463 | B167: 0.758 | C167: 0.064 | D167: 0.013 | E167: 0.02 | F167: 0.1 | G167: 0.382 | H167: 0.449 | I167: 0.375 | J167: 0.262 | K167: 0.124 | L167: 0.039 | M167: 0.013 | N167: 0.016 | O167: 0.046 | P167: 0.079
A168: 464 | B168: 0.753 | C168: 0.064 | D168: 0.014 | E168: 0.02 | F168: 0.094 | G168: 0.355 | H168: 0.421 | I168: 0.365 | J168: 0.263 | K168: 0.126 | L168: 0.04 | M168: 0.015 | N168: 0.018 | O168: 0.05 | P168: 0.085
A169: 465 | B169: 0.748 | C169: 0.065 | D169: 0.015 | E169: 0.021 | F169: 0.088 | G169: 0.333 | H169: 0.398 | I169: 0.357 | J169: 0.263 | K169: 0.128 | L169: 0.04 | M169: 0.015 | N169: 0.019 | O169: 0.053 | P169: 0.089
A170: 466 | B170: 0.743 | C170: 0.064 | D170: 0.015 | E170: 0.02 | F170: 0.081 | G170: 0.308 | H170: 0.374 | I170: 0.35 | J170: 0.263 | K170: 0.128 | L170: 0.04 | M170: 0.015 | N170: 0.02 | O170: 0.055 | P170: 0.092
A171: 467 | B171: 0.744 | C171: 0.063 | D171: 0.015 | E171: 0.02 | F171: 0.074 | G171: 0.279 | H171: 0.346 | I171: 0.343 | J171: 0.266 | K171: 0.13 | L171: 0.04 | M171: 0.015 | N171: 0.02 | O171: 0.057 | P171: 0.096
A172: 468 | B172: 0.746 | C172: 0.064 | D172: 0.014 | E172: 0.019 | F172: 0.069 | G172: 0.254 | H172: 0.32 | I172: 0.335 | J172: 0.268 | K172: 0.132 | L172: 0.042 | M172: 0.016 | N172: 0.022 | O172: 0.06 | P172: 0.099
A173: 469 | B173: 0.75 | C173: 0.065 | D173: 0.014 | E173: 0.019 | F173: 0.063 | G173: 0.23 | H173: 0.295 | I173: 0.328 | J173: 0.27 | K173: 0.134 | L173: 0.044 | M173: 0.017 | N173: 0.023 | O173: 0.061 | P173: 0.102
A174: 470 | B174: 0.755 | C174: 0.065 | D174: 0.014 | E174: 0.018 | F174: 0.057 | G174: 0.206 | H174: 0.271 | I174: 0.321 | J174: 0.271 | K174: 0.136 | L174: 0.044 | M174: 0.018 | N174: 0.024 | O174: 0.061 | P174: 0.102
A175: 471 | B175: 0.761 | C175: 0.066 | D175: 0.015 | E175: 0.018 | F175: 0.051 | G175: 0.184 | H175: 0.247 | I175: 0.314 | J175: 0.273 | K175: 0.137 | L175: 0.044 | M175: 0.018 | N175: 0.023 | O175: 0.061 | P175: 0.101
A176: 472 | B176: 0.769 | C176: 0.065 | D176: 0.015 | E176: 0.018 | F176: 0.046 | G176: 0.163 | H176: 0.226 | I176: 0.307 | J176: 0.273 | K176: 0.138 | L176: 0.044 | M176: 0.018 | N176: 0.022 | O176: 0.06 | P176: 0.099
A177: 473 | B177: 0.776 | C177: 0.067 | D177: 0.016 | E177: 0.018 | F177: 0.042 | G177: 0.145 | H177: 0.206 | I177: 0.3 | J177: 0.272 | K177: 0.138 | L177: 0.045 | M177: 0.018 | N177: 0.022 | O177: 0.058 | P177: 0.095
A178: 474 | B178: 0.777 | C178: 0.067 | D178: 0.015 | E178: 0.017 | F178: 0.038 | G178: 0.126 | H178: 0.187 | I178: 0.292 | J178: 0.269 | K178: 0.136 | L178: 0.044 | M178: 0.017 | N178: 0.02 | O178: 0.055 | P178: 0.091
A179: 475 | B179: 0.779 | C179: 0.066 | D179: 0.015 | E179: 0.017 | F179: 0.034 | G179: 0.11 | H179: 0.171 | I179: 0.282 | J179: 0.264 | K179: 0.134 | L179: 0.042 | M179: 0.015 | N179: 0.019 | O179: 0.052 | P179: 0.085
A180: 476 | B180: 0.783 | C180: 0.066 | D180: 0.015 | E180: 0.017 | F180: 0.032 | G180: 0.098 | H180: 0.157 | I180: 0.273 | J180: 0.259 | K180: 0.132 | L180: 0.041 | M180: 0.015 | N180: 0.017 | O180: 0.048 | P180: 0.08
A181: 477 | B181: 0.784 | C181: 0.067 | D181: 0.016 | E181: 0.017 | F181: 0.029 | G181: 0.088 | H181: 0.144 | I181: 0.264 | J181: 0.253 | K181: 0.129 | L181: 0.041 | M181: 0.015 | N181: 0.016 | O181: 0.045 | P181: 0.075
A182: 478 | B182: 0.782 | C182: 0.068 | D182: 0.016 | E182: 0.017 | F182: 0.027 | G182: 0.077 | H182: 0.131 | I182: 0.253 | J182: 0.244 | K182: 0.125 | L182: 0.04 | M182: 0.013 | N182: 0.014 | O182: 0.04 | P182: 0.068
A183: 479 | B183: 0.781 | C183: 0.068 | D183: 0.015 | E183: 0.018 | F183: 0.025 | G183: 0.067 | H183: 0.118 | I183: 0.242 | J183: 0.234 | K183: 0.121 | L183: 0.038 | M183: 0.013 | N183: 0.012 | O183: 0.036 | P183: 0.062
A184: 480 | B184: 0.777 | C184: 0.067 | D184: 0.015 | E184: 0.019 | F184: 0.023 | G184: 0.06 | H184: 0.108 | I184: 0.23 | J184: 0.222 | K184: 0.115 | L184: 0.036 | M184: 0.011 | N184: 0.01 | O184: 0.032 | P184: 0.055
A185: 481 | B185: 0.771 | C185: 0.065 | D185: 0.014 | E185: 0.018 | F185: 0.022 | G185: 0.052 | H185: 0.098 | I185: 0.217 | J185: 0.211 | K185: 0.108 | L185: 0.033 | M185: 0.01 | N185: 0.007 | O185: 0.027 | P185: 0.049
A186: 482 | B186: 0.765 | C186: 0.065 | D186: 0.014 | E186: 0.019 | F186: 0.022 | G186: 0.046 | H186: 0.089 | I186: 0.205 | J186: 0.198 | K186: 0.102 | L186: 0.032 | M186: 0.009 | N186: 0.006 | O186: 0.024 | P186: 0.044
A187: 483 | B187: 0.757 | C187: 0.063 | D187: 0.014 | E187: 0.019 | F187: 0.021 | G187: 0.041 | H187: 0.08 | I187: 0.191 | J187: 0.185 | K187: 0.095 | L187: 0.029 | M187: 0.007 | N187: 0.004 | O187: 0.021 | P187: 0.039
A188: 484 | B188: 0.749 | C188: 0.061 | D188: 0.014 | E188: 0.019 | F188: 0.02 | G188: 0.036 | H188: 0.072 | I188: 0.178 | J188: 0.171 | K188: 0.088 | L188: 0.027 | M188: 0.006 | N188: 0.002 | O188: 0.018 | P188: 0.035
A189: 485 | B189: 0.738 | C189: 0.059 | D189: 0.014 | E189: 0.019 | F189: 0.02 | G189: 0.032 | H189: 0.065 | I189: 0.165 | J189: 0.157 | K189: 0.08 | L189: 0.024 | M189: 0.004 | N189: 0 | O189: 0.015 | P189: 0.031
A190: 486 | B190: 0.724 | C190: 0.057 | D190: 0.014 | E190: 0.019 | F190: 0.019 | G190: 0.029 | H190: 0.058 | I190: 0.153 | J190: 0.143 | K190: 0.072 | L190: 0.022 | M190: 0.002 | N190: 0 | O190: 0.012 | P190: 0.027
A191: 487 | B191: 0.708 | C191: 0.055 | D191: 0.014 | E191: 0.019 | F191: 0.019 | G191: 0.027 | H191: 0.053 | I191: 0.142 | J191: 0.131 | K191: 0.066 | L191: 0.02 | M191: 0.002 | N191: -0.001 | O191: 0.011 | P191: 0.024
A192: 488 | B192: 0.692 | C192: 0.053 | D192: 0.015 | E192: 0.021 | F192: 0.02 | G192: 0.025 | H192: 0.048 | I192: 0.131 | J192: 0.119 | K192: 0.06 | L192: 0.018 | M192: 0.001 | N192: -0.003 | O192: 0.01 | P192: 0.023
A193: 489 | B193: 0.675 | C193: 0.05 | D193: 0.015 | E193: 0.021 | F193: 0.02 | G193: 0.023 | H193: 0.043 | I193: 0.119 | J193: 0.107 | K193: 0.054 | L193: 0.015 | M193: 0 | N193: -0.004 | O193: 0.008 | P193: 0.021
A194: 490 | B194: 0.658 | C194: 0.048 | D194: 0.016 | E194: 0.021 | F194: 0.021 | G194: 0.022 | H194: 0.04 | I194: 0.11 | J194: 0.097 | K194: 0.048 | L194: 0.014 | M194: -0.001 | N194: -0.004 | O194: 0.007 | P194: 0.02
A195: 491 | B195: 0.642 | C195: 0.044 | D195: 0.016 | E195: 0.022 | F195: 0.021 | G195: 0.021 | H195: 0.036 | I195: 0.102 | J195: 0.087 | K195: 0.043 | L195: 0.012 | M195: -0.002 | N195: -0.005 | O195: 0.006 | P195: 0.019
A196: 492 | B196: 0.623 | C196: 0.042 | D196: 0.017 | E196: 0.022 | F196: 0.021 | G196: 0.02 | H196: 0.032 | I196: 0.093 | J196: 0.077 | K196: 0.037 | L196: 0.011 | M196: -0.003 | N196: -0.006 | O196: 0.006 | P196: 0.018
A197: 493 | B197: 0.603 | C197: 0.039 | D197: 0.017 | E197: 0.022 | F197: 0.02 | G197: 0.019 | H197: 0.03 | I197: 0.085 | J197: 0.067 | K197: 0.032 | L197: 0.009 | M197: -0.003 | N197: -0.007 | O197: 0.005 | P197: 0.016
A198: 494 | B198: 0.585 | C198: 0.037 | D198: 0.018 | E198: 0.022 | F198: 0.021 | G198: 0.018 | H198: 0.027 | I198: 0.078 | J198: 0.06 | K198: 0.029 | L198: 0.008 | M198: -0.004 | N198: -0.006 | O198: 0.004 | P198: 0.017
A199: 495 | B199: 0.566 | C199: 0.034 | D199: 0.02 | E199: 0.022 | F199: 0.021 | G199: 0.018 | H199: 0.025 | I199: 0.072 | J199: 0.053 | K199: 0.026 | L199: 0.007 | M199: -0.004 | N199: -0.007 | O199: 0.004 | P199: 0.016
A200: 496 | B200: 0.546 | C200: 0.03 | D200: 0.02 | E200: 0.021 | F200: 0.021 | G200: 0.017 | H200: 0.022 | I200: 0.066 | J200: 0.046 | K200: 0.021 | L200: 0.004 | M200: -0.004 | N200: -0.008 | O200: 0.003 | P200: 0.015
A201: 497 | B201: 0.527 | C201: 0.027 | D201: 0.021 | E201: 0.021 | F201: 0.021 | G201: 0.016 | H201: 0.021 | I201: 0.061 | J201: 0.04 | K201: 0.018 | L201: 0.003 | M201: -0.005 | N201: -0.008 | O201: 0.003 | P201: 0.014
... 303 more rows

Sheet 補正トマト
A2: 770 nm吸光度 | B2: =元トマト!B474 -> 0.003 | C2: =元トマト!C474 -> 0.008 | D2: =元トマト!D474 -> -0.009 | E2: =元トマト!E474 -> -0.007 | F2: =元トマト!F474 -> -0.002 | G2: =元トマト!G474 -> 0.006 | H2: =元トマト!H474 -> 0.01 | I2: =元トマト!I474 -> -0.002
A3: 波長/nm | B3: E:\spectrum1125\トマト０１.txt | C3: E:\spectrum1125\トマト０２.txt | D3: E:\spectrum1125\トマト０３.txt | E3: E:\spectrum1125\トマト０４.txt | F3: E:\spectrum1125\トマト０５.txt | G3: E:\spectrum1125\トマト０６.txt | H3: E:\spectrum1125\トマト０７.txt | I3: E:\spectrum1125\トマト０８.txt
A4: 300 | B4: =元トマト!B4-B$2 -> -1.084 | C4: =元トマト!C4-C$2 -> -0.702 | D4: =元トマト!D4-D$2 -> -0.49 | E4: =元トマト!E4-E$2 -> -0.586 | F4: =元トマト!F4-F$2 -> -0.403 | G4: =元トマト!G4-G$2 -> 0.051 | H4: =元トマト!H4-H$2 -> -0.005 | I4: =元トマト!I4-I$2 -> 0.07
A5: 301 | B5: =元トマト!B5-B$2 -> -1.144 | C5: =元トマト!C5-C$2 -> -0.777 | D5: =元トマト!D5-D$2 -> -0.557 | E5: =元トマト!E5-E$2 -> -0.652 | F5: =元トマト!F5-F$2 -> -0.465 | G5: =元トマト!G5-G$2 -> 0.063 | H5: =元トマト!H5-H$2 -> 0.003 | I5: =元トマト!I5-I$2 -> 0.084
A6: 302 | B6: =元トマト!B6-B$2 -> -1.199 | C6: =元トマト!C6-C$2 -> -0.848 | D6: =元トマト!D6-D$2 -> -0.631 | E6: =元トマト!E6-E$2 -> -0.719 | F6: =元トマト!F6-F$2 -> -0.534 | G6: =元トマト!G6-G$2 -> 0.063 | H6: =元トマト!H6-H$2 -> 0.005 | I6: =元トマト!I6-I$2 -> 0.09
A7: 303 | B7: =元トマト!B7-B$2 -> -1.252 | C7: =元トマト!C7-C$2 -> -0.926 | D7: =元トマト!D7-D$2 -> -0.711 | E7: =元トマト!E7-E$2 -> -0.792 | F7: =元トマト!F7-F$2 -> -0.607 | G7: =元トマト!G7-G$2 -> 0.079 | H7: =元トマト!H7-H$2 -> 0.006 | I7: =元トマト!I7-I$2 -> 0.105
A8: 304 | B8: =元トマト!B8-B$2 -> -1.301 | C8: =元トマト!C8-C$2 -> -0.996 | D8: =元トマト!D8-D$2 -> -0.786 | E8: =元トマト!E8-E$2 -> -0.862 | F8: =元トマト!F8-F$2 -> -0.677 | G8: =元トマト!G8-G$2 -> 0.117 | H8: =元トマト!H8-H$2 -> 0.026 | I8: =元トマト!I8-I$2 -> 0.131
A9: 305 | B9: =元トマト!B9-B$2 -> -1.319 | C9: =元トマト!C9-C$2 -> -1.035 | D9: =元トマト!D9-D$2 -> -0.834 | E9: =元トマト!E9-E$2 -> -0.904 | F9: =元トマト!F9-F$2 -> -0.725 | G9: =元トマト!G9-G$2 -> 0.145 | H9: =元トマト!H9-H$2 -> 0.043 | I9: =元トマト!I9-I$2 -> 0.171
A10: 306 | B10: =元トマト!B10-B$2 -> -1.325 | C10: =元トマト!C10-C$2 -> -1.062 | D10: =元トマト!D10-D$2 -> -0.876 | E10: =元トマト!E10-E$2 -> -0.937 | F10: =元トマト!F10-F$2 -> -0.769 | G10: =元トマト!G10-G$2 -> 0.167 | H10: =元トマト!H10-H$2 -> 0.043 | I10: =元トマト!I10-I$2 -> 0.216
A11: 307 | B11: =元トマト!B11-B$2 -> -1.307 | C11: =元トマト!C11-C$2 -> -1.065 | D11: =元トマト!D11-D$2 -> -0.892 | E11: =元トマト!E11-E$2 -> -0.948 | F11: =元トマト!F11-F$2 -> -0.791 | G11: =元トマト!G11-G$2 -> 0.234 | H11: =元トマト!H11-H$2 -> 0.055 | I11: =元トマト!I11-I$2 -> 0.296
A12: 308 | B12: =元トマト!B12-B$2 -> -1.284 | C12: =元トマト!C12-C$2 -> -1.059 | D12: =元トマト!D12-D$2 -> -0.898 | E12: =元トマト!E12-E$2 -> -0.951 | F12: =元トマト!F12-F$2 -> -0.802 | G12: =元トマト!G12-G$2 -> 0.319 | H12: =元トマト!H12-H$2 -> 0.064 | I12: =元トマト!I12-I$2 -> 0.387
A13: 309 | B13: =元トマト!B13-B$2 -> -1.241 | C13: =元トマト!C13-C$2 -> -1.032 | D13: =元トマト!D13-D$2 -> -0.882 | E13: =元トマト!E13-E$2 -> -0.933 | F13: =元トマト!F13-F$2 -> -0.793 | G13: =元トマト!G13-G$2 -> 0.403 | H13: =元トマト!H13-H$2 -> 0.071 | I13: =元トマト!I13-I$2 -> 0.477
A14: 310 | B14: =元トマト!B14-B$2 -> -1.171 | C14: =元トマト!C14-C$2 -> -0.977 | D14: =元トマト!D14-D$2 -> -0.843 | E14: =元トマト!E14-E$2 -> -0.89 | F14: =元トマト!F14-F$2 -> -0.76 | G14: =元トマト!G14-G$2 -> 0.489 | H14: =元トマト!H14-H$2 -> 0.079 | I14: =元トマト!I14-I$2 -> 0.579
A15: 311 | B15: =元トマト!B15-B$2 -> -1.098 | C15: =元トマト!C15-C$2 -> -0.916 | D15: =元トマト!D15-D$2 -> -0.796 | E15: =元トマト!E15-E$2 -> -0.84 | F15: =元トマト!F15-F$2 -> -0.72 | G15: =元トマト!G15-G$2 -> 0.573 | H15: =元トマト!H15-H$2 -> 0.078 | I15: =元トマト!I15-I$2 -> 0.688
A16: 312 | B16: =元トマト!B16-B$2 -> -1.019 | C16: =元トマト!C16-C$2 -> -0.851 | D16: =元トマト!D16-D$2 -> -0.744 | E16: =元トマト!E16-E$2 -> -0.783 | F16: =元トマト!F16-F$2 -> -0.673 | G16: =元トマト!G16-G$2 -> 0.651 | H16: =元トマト!H16-H$2 -> 0.074 | I16: =元トマト!I16-I$2 -> 0.803
A17: 313 | B17: =元トマト!B17-B$2 -> -0.925 | C17: =元トマト!C17-C$2 -> -0.772 | D17: =元トマト!D17-D$2 -> -0.678 | E17: =元トマト!E17-E$2 -> -0.715 | F17: =元トマト!F17-F$2 -> -0.615 | G17: =元トマト!G17-G$2 -> 0.696 | H17: =元トマト!H17-H$2 -> 0.067 | I17: =元トマト!I17-I$2 -> 0.923
A18: 314 | B18: =元トマト!B18-B$2 -> -0.838 | C18: =元トマト!C18-C$2 -> -0.695 | D18: =元トマト!D18-D$2 -> -0.614 | E18: =元トマト!E18-E$2 -> -0.649 | F18: =元トマト!F18-F$2 -> -0.558 | G18: =元トマト!G18-G$2 -> 0.708 | H18: =元トマト!H18-H$2 -> 0.059 | I18: =元トマト!I18-I$2 -> 1.014
A19: 315 | B19: =元トマト!B19-B$2 -> -0.748 | C19: =元トマト!C19-C$2 -> -0.617 | D19: =元トマト!D19-D$2 -> -0.547 | E19: =元トマト!E19-E$2 -> -0.58 | F19: =元トマト!F19-F$2 -> -0.498 | G19: =元トマト!G19-G$2 -> 0.694 | H19: =元トマト!H19-H$2 -> 0.054 | I19: =元トマト!I19-I$2 -> 1.126
A20: 316 | B20: =元トマト!B20-B$2 -> -0.65 | C20: =元トマト!C20-C$2 -> -0.532 | D20: =元トマト!D20-D$2 -> -0.474 | E20: =元トマト!E20-E$2 -> -0.506 | F20: =元トマト!F20-F$2 -> -0.434 | G20: =元トマト!G20-G$2 -> 0.656 | H20: =元トマト!H20-H$2 -> 0.046 | I20: =元トマト!I20-I$2 -> 1.258
A21: 317 | B21: =元トマト!B21-B$2 -> -0.56 | C21: =元トマト!C21-C$2 -> -0.454 | D21: =元トマト!D21-D$2 -> -0.408 | E21: =元トマト!E21-E$2 -> -0.437 | F21: =元トマト!F21-F$2 -> -0.373 | G21: =元トマト!G21-G$2 -> 0.592 | H21: =元トマト!H21-H$2 -> 0.037 | I21: =元トマト!I21-I$2 -> 1.366
A22: 318 | B22: =元トマト!B22-B$2 -> -0.484 | C22: =元トマト!C22-C$2 -> -0.387 | D22: =元トマト!D22-D$2 -> -0.352 | E22: =元トマト!E22-E$2 -> -0.379 | F22: =元トマト!F22-F$2 -> -0.323 | G22: =元トマト!G22-G$2 -> 0.526 | H22: =元トマト!H22-H$2 -> 0.031 | I22: =元トマト!I22-I$2 -> 1.423
A23: 319 | B23: =元トマト!B23-B$2 -> -0.414 | C23: =元トマト!C23-C$2 -> -0.322 | D23: =元トマト!D23-D$2 -> -0.299 | E23: =元トマト!E23-E$2 -> -0.324 | F23: =元トマト!F23-F$2 -> -0.275 | G23: =元トマト!G23-G$2 -> 0.459 | H23: =元トマト!H23-H$2 -> 0.024 | I23: =元トマト!I23-I$2 -> 1.425
A24: 320 | B24: =元トマト!B24-B$2 -> -0.342 | C24: =元トマト!C24-C$2 -> -0.259 | D24: =元トマト!D24-D$2 -> -0.246 | E24: =元トマト!E24-E$2 -> -0.27 | F24: =元トマト!F24-F$2 -> -0.228 | G24: =元トマト!G24-G$2 -> 0.389 | H24: =元トマト!H24-H$2 -> 0.017 | I24: =元トマト!I24-I$2 -> 1.356
A25: 321 | B25: =元トマト!B25-B$2 -> -0.279 | C25: =元トマト!C25-C$2 -> -0.204 | D25: =元トマト!D25-D$2 -> -0.198 | E25: =元トマト!E25-E$2 -> -0.221 | F25: =元トマト!F25-F$2 -> -0.186 | G25: =元トマト!G25-G$2 -> 0.325 | H25: =元トマト!H25-H$2 -> 0.011 | I25: =元トマト!I25-I$2 -> 1.23
A26: 322 | B26: =元トマト!B26-B$2 -> -0.227 | C26: =元トマト!C26-C$2 -> -0.158 | D26: =元トマト!D26-D$2 -> -0.158 | E26: =元トマト!E26-E$2 -> -0.181 | F26: =元トマト!F26-F$2 -> -0.151 | G26: =元トマト!G26-G$2 -> 0.273 | H26: =元トマト!H26-H$2 -> 0.008 | I26: =元トマト!I26-I$2 -> 1.078
A27: 323 | B27: =元トマト!B27-B$2 -> -0.182 | C27: =元トマト!C27-C$2 -> -0.115 | D27: =元トマト!D27-D$2 -> -0.124 | E27: =元トマト!E27-E$2 -> -0.146 | F27: =元トマト!F27-F$2 -> -0.12 | G27: =元トマト!G27-G$2 -> 0.229 | H27: =元トマト!H27-H$2 -> 0.006 | I27: =元トマト!I27-I$2 -> 0.913
A28: 324 | B28: =元トマト!B28-B$2 -> -0.139 | C28: =元トマト!C28-C$2 -> -0.075 | D28: =元トマト!D28-D$2 -> -0.092 | E28: =元トマト!E28-E$2 -> -0.115 | F28: =元トマト!F28-F$2 -> -0.091 | G28: =元トマト!G28-G$2 -> 0.186 | H28: =元トマト!H28-H$2 -> 0.002 | I28: =元トマト!I28-I$2 -> 0.742
A29: 325 | B29: =元トマト!B29-B$2 -> -0.105 | C29: =元トマト!C29-C$2 -> -0.043 | D29: =元トマト!D29-D$2 -> -0.067 | E29: =元トマト!E29-E$2 -> -0.09 | F29: =元トマト!F29-F$2 -> -0.069 | G29: =元トマト!G29-G$2 -> 0.152 | H29: =元トマト!H29-H$2 -> -0.001 | I29: =元トマト!I29-I$2 -> 0.605
A30: 326 | B30: =元トマト!B30-B$2 -> -0.076 | C30: =元トマト!C30-C$2 -> -0.017 | D30: =元トマト!D30-D$2 -> -0.045 | E30: =元トマト!E30-E$2 -> -0.068 | F30: =元トマト!F30-F$2 -> -0.051 | G30: =元トマト!G30-G$2 -> 0.124 | H30: =元トマト!H30-H$2 -> -0.003 | I30: =元トマト!I30-I$2 -> 0.49
A31: 327 | B31: =元トマト!B31-B$2 -> -0.051 | C31: =元トマト!C31-C$2 -> 0.007 | D31: =元トマト!D31-D$2 -> -0.026 | E31: =元トマト!E31-E$2 -> -0.05 | F31: =元トマト!F31-F$2 -> -0.035 | G31: =元トマト!G31-G$2 -> 0.099 | H31: =元トマト!H31-H$2 -> -0.005 | I31: =元トマト!I31-I$2 -> 0.387
A32: 328 | B32: =元トマト!B32-B$2 -> -0.031 | C32: =元トマト!C32-C$2 -> 0.026 | D32: =元トマト!D32-D$2 -> -0.011 | E32: =元トマト!E32-E$2 -> -0.035 | F32: =元トマト!F32-F$2 -> -0.023 | G32: =元トマト!G32-G$2 -> 0.08 | H32: =元トマト!H32-H$2 -> -0.006 | I32: =元トマト!I32-I$2 -> 0.305
A33: 329 | B33: =元トマト!B33-B$2 -> -0.016 | C33: =元トマト!C33-C$2 -> 0.041 | D33: =元トマト!D33-D$2 -> 0.001 | E33: =元トマト!E33-E$2 -> -0.024 | F33: =元トマト!F33-F$2 -> -0.013 | G33: =元トマト!G33-G$2 -> 0.067 | H33: =元トマト!H33-H$2 -> -0.006 | I33: =元トマト!I33-I$2 -> 0.246
A34: 330 | B34: =元トマト!B34-B$2 -> -0.005 | C34: =元トマト!C34-C$2 -> 0.052 | D34: =元トマト!D34-D$2 -> 0.009 | E34: =元トマト!E34-E$2 -> -0.016 | F34: =元トマト!F34-F$2 -> -0.005 | G34: =元トマト!G34-G$2 -> 0.057 | H34: =元トマト!H34-H$2 -> -0.008 | I34: =元トマト!I34-I$2 -> 0.2
A35: 331 | B35: =元トマト!B35-B$2 -> 0.003 | C35: =元トマト!C35-C$2 -> 0.061 | D35: =元トマト!D35-D$2 -> 0.017 | E35: =元トマト!E35-E$2 -> -0.009 | F35: =元トマト!F35-F$2 -> 0 | G35: =元トマト!G35-G$2 -> 0.047 | H35: =元トマト!H35-H$2 -> -0.009 | I35: =元トマト!I35-I$2 -> 0.158
A36: 332 | B36: =元トマト!B36-B$2 -> 0.01 | C36: =元トマト!C36-C$2 -> 0.069 | D36: =元トマト!D36-D$2 -> 0.023 | E36: =元トマト!E36-E$2 -> -0.004 | F36: =元トマト!F36-F$2 -> 0.004 | G36: =元トマト!G36-G$2 -> 0.039 | H36: =元トマト!H36-H$2 -> -0.01 | I36: =元トマト!I36-I$2 -> 0.126
A37: 333 | B37: =元トマト!B37-B$2 -> 0.016 | C37: =元トマト!C37-C$2 -> 0.075 | D37: =元トマト!D37-D$2 -> 0.029 | E37: =元トマト!E37-E$2 -> 0.001 | F37: =元トマト!F37-F$2 -> 0.008 | G37: =元トマト!G37-G$2 -> 0.035 | H37: =元トマト!H37-H$2 -> -0.01 | I37: =元トマト!I37-I$2 -> 0.103
A38: 334 | B38: =元トマト!B38-B$2 -> 0.019 | C38: =元トマト!C38-C$2 -> 0.081 | D38: =元トマト!D38-D$2 -> 0.033 | E38: =元トマト!E38-E$2 -> 0.004 | F38: =元トマト!F38-F$2 -> 0.011 | G38: =元トマト!G38-G$2 -> 0.03 | H38: =元トマト!H38-H$2 -> -0.01 | I38: =元トマト!I38-I$2 -> 0.084
A39: 335 | B39: =元トマト!B39-B$2 -> 0.022 | C39: =元トマト!C39-C$2 -> 0.087 | D39: =元トマト!D39-D$2 -> 0.037 | E39: =元トマト!E39-E$2 -> 0.007 | F39: =元トマト!F39-F$2 -> 0.013 | G39: =元トマト!G39-G$2 -> 0.027 | H39: =元トマト!H39-H$2 -> -0.01 | I39: =元トマト!I39-I$2 -> 0.068
A40: 336 | B40: =元トマト!B40-B$2 -> 0.024 | C40: =元トマト!C40-C$2 -> 0.092 | D40: =元トマト!D40-D$2 -> 0.04 | E40: =元トマト!E40-E$2 -> 0.01 | F40: =元トマト!F40-F$2 -> 0.015 | G40: =元トマト!G40-G$2 -> 0.024 | H40: =元トマト!H40-H$2 -> -0.01 | I40: =元トマト!I40-I$2 -> 0.056
A41: 337 | B41: =元トマト!B41-B$2 -> 0.027 | C41: =元トマト!C41-C$2 -> 0.097 | D41: =元トマト!D41-D$2 -> 0.044 | E41: =元トマト!E41-E$2 -> 0.011 | F41: =元トマト!F41-F$2 -> 0.016 | G41: =元トマト!G41-G$2 -> 0.022 | H41: =元トマト!H41-H$2 -> -0.01 | I41: =元トマト!I41-I$2 -> 0.047
A42: 338 | B42: =元トマト!B42-B$2 -> 0.029 | C42: =元トマト!C42-C$2 -> 0.103 | D42: =元トマト!D42-D$2 -> 0.048 | E42: =元トマト!E42-E$2 -> 0.013 | F42: =元トマト!F42-F$2 -> 0.017 | G42: =元トマト!G42-G$2 -> 0.02 | H42: =元トマト!H42-H$2 -> -0.01 | I42: =元トマト!I42-I$2 -> 0.039
A43: 339 | B43: =元トマト!B43-B$2 -> 0.032 | C43: =元トマト!C43-C$2 -> 0.109 | D43: =元トマト!D43-D$2 -> 0.052 | E43: =元トマト!E43-E$2 -> 0.013 | F43: =元トマト!F43-F$2 -> 0.018 | G43: =元トマト!G43-G$2 -> 0.018 | H43: =元トマト!H43-H$2 -> -0.011 | I43: =元トマト!I43-I$2 -> 0.032
A44: 340 | B44: =元トマト!B44-B$2 -> 0.034 | C44: =元トマト!C44-C$2 -> 0.115 | D44: =元トマト!D44-D$2 -> 0.055 | E44: =元トマト!E44-E$2 -> 0.014 | F44: =元トマト!F44-F$2 -> 0.019 | G44: =元トマト!G44-G$2 -> 0.017 | H44: =元トマト!H44-H$2 -> -0.01 | I44: =元トマト!I44-I$2 -> 0.028
A45: 341 | B45: =元トマト!B45-B$2 -> 0.038 | C45: =元トマト!C45-C$2 -> 0.121 | D45: =元トマト!D45-D$2 -> 0.058 | E45: =元トマト!E45-E$2 -> 0.015 | F45: =元トマト!F45-F$2 -> 0.02 | G45: =元トマト!G45-G$2 -> 0.016 | H45: =元トマト!H45-H$2 -> -0.01 | I45: =元トマト!I45-I$2 -> 0.025
A46: 342 | B46: =元トマト!B46-B$2 -> 0.042 | C46: =元トマト!C46-C$2 -> 0.127 | D46: =元トマト!D46-D$2 -> 0.06 | E46: =元トマト!E46-E$2 -> 0.016 | F46: =元トマト!F46-F$2 -> 0.021 | G46: =元トマト!G46-G$2 -> 0.016 | H46: =元トマト!H46-H$2 -> -0.009 | I46: =元トマト!I46-I$2 -> 0.022
A47: 343 | B47: =元トマト!B47-B$2 -> 0.045 | C47: =元トマト!C47-C$2 -> 0.132 | D47: =元トマト!D47-D$2 -> 0.062 | E47: =元トマト!E47-E$2 -> 0.017 | F47: =元トマト!F47-F$2 -> 0.022 | G47: =元トマト!G47-G$2 -> 0.016 | H47: =元トマト!H47-H$2 -> -0.009 | I47: =元トマト!I47-I$2 -> 0.02
A48: 344 | B48: =元トマト!B48-B$2 -> 0.047 | C48: =元トマト!C48-C$2 -> 0.135 | D48: =元トマト!D48-D$2 -> 0.064 | E48: =元トマト!E48-E$2 -> 0.017 | F48: =元トマト!F48-F$2 -> 0.022 | G48: =元トマト!G48-G$2 -> 0.015 | H48: =元トマト!H48-H$2 -> -0.009 | I48: =元トマト!I48-I$2 -> 0.018
A49: 345 | B49: =元トマト!B49-B$2 -> 0.048 | C49: =元トマト!C49-C$2 -> 0.137 | D49: =元トマト!D49-D$2 -> 0.065 | E49: =元トマト!E49-E$2 -> 0.018 | F49: =元トマト!F49-F$2 -> 0.022 | G49: =元トマト!G49-G$2 -> 0.015 | H49: =元トマト!H49-H$2 -> -0.009 | I49: =元トマト!I49-I$2 -> 0.017
A50: 346 | B50: =元トマト!B50-B$2 -> 0.05 | C50: =元トマト!C50-C$2 -> 0.139 | D50: =元トマト!D50-D$2 -> 0.065 | E50: =元トマト!E50-E$2 -> 0.018 | F50: =元トマト!F50-F$2 -> 0.023 | G50: =元トマト!G50-G$2 -> 0.015 | H50: =元トマト!H50-H$2 -> -0.009 | I50: =元トマト!I50-I$2 -> 0.016
A51: 347 | B51: =元トマト!B51-B$2 -> 0.05 | C51: =元トマト!C51-C$2 -> 0.139 | D51: =元トマト!D51-D$2 -> 0.065 | E51: =元トマト!E51-E$2 -> 0.019 | F51: =元トマト!F51-F$2 -> 0.023 | G51: =元トマト!G51-G$2 -> 0.015 | H51: =元トマト!H51-H$2 -> -0.009 | I51: =元トマト!I51-I$2 -> 0.016
A52: 348 | B52: =元トマト!B52-B$2 -> 0.049 | C52: =元トマト!C52-C$2 -> 0.138 | D52: =元トマト!D52-D$2 -> 0.065 | E52: =元トマト!E52-E$2 -> 0.019 | F52: =元トマト!F52-F$2 -> 0.023 | G52: =元トマト!G52-G$2 -> 0.015 | H52: =元トマト!H52-H$2 -> -0.009 | I52: =元トマト!I52-I$2 -> 0.015
A53: 349 | B53: =元トマト!B53-B$2 -> 0.048 | C53: =元トマト!C53-C$2 -> 0.137 | D53: =元トマト!D53-D$2 -> 0.065 | E53: =元トマト!E53-E$2 -> 0.019 | F53: =元トマト!F53-F$2 -> 0.022 | G53: =元トマト!G53-G$2 -> 0.015 | H53: =元トマト!H53-H$2 -> -0.009 | I53: =元トマト!I53-I$2 -> 0.015
A54: 350 | B54: =元トマト!B54-B$2 -> 0.047 | C54: =元トマト!C54-C$2 -> 0.136 | D54: =元トマト!D54-D$2 -> 0.065 | E54: =元トマト!E54-E$2 -> 0.019 | F54: =元トマト!F54-F$2 -> 0.022 | G54: =元トマト!G54-G$2 -> 0.015 | H54: =元トマト!H54-H$2 -> -0.009 | I54: =元トマト!I54-I$2 -> 0.014
A55: 351 | B55: =元トマト!B55-B$2 -> 0.044 | C55: =元トマト!C55-C$2 -> 0.136 | D55: =元トマト!D55-D$2 -> 0.065 | E55: =元トマト!E55-E$2 -> 0.019 | F55: =元トマト!F55-F$2 -> 0.022 | G55: =元トマト!G55-G$2 -> 0.016 | H55: =元トマト!H55-H$2 -> -0.009 | I55: =元トマト!I55-I$2 -> 0.014
A56: 352 | B56: =元トマト!B56-B$2 -> 0.042 | C56: =元トマト!C56-C$2 -> 0.136 | D56: =元トマト!D56-D$2 -> 0.066 | E56: =元トマト!E56-E$2 -> 0.019 | F56: =元トマト!F56-F$2 -> 0.022 | G56: =元トマト!G56-G$2 -> 0.015 | H56: =元トマト!H56-H$2 -> -0.008 | I56: =元トマト!I56-I$2 -> 0.014
A57: 353 | B57: =元トマト!B57-B$2 -> 0.041 | C57: =元トマト!C57-C$2 -> 0.137 | D57: =元トマト!D57-D$2 -> 0.068 | E57: =元トマト!E57-E$2 -> 0.019 | F57: =元トマト!F57-F$2 -> 0.021 | G57: =元トマト!G57-G$2 -> 0.015 | H57: =元トマト!H57-H$2 -> -0.009 | I57: =元トマト!I57-I$2 -> 0.014
A58: 354 | B58: =元トマト!B58-B$2 -> 0.039 | C58: =元トマト!C58-C$2 -> 0.14 | D58: =元トマト!D58-D$2 -> 0.071 | E58: =元トマト!E58-E$2 -> 0.019 | F58: =元トマト!F58-F$2 -> 0.021 | G58: =元トマト!G58-G$2 -> 0.015 | H58: =元トマト!H58-H$2 -> -0.009 | I58: =元トマト!I58-I$2 -> 0.014
A59: 355 | B59: =元トマト!B59-B$2 -> 0.038 | C59: =元トマト!C59-C$2 -> 0.145 | D59: =元トマト!D59-D$2 -> 0.073 | E59: =元トマト!E59-E$2 -> 0.02 | F59: =元トマト!F59-F$2 -> 0.021 | G59: =元トマト!G59-G$2 -> 0.015 | H59: =元トマト!H59-H$2 -> -0.009 | I59: =元トマト!I59-I$2 -> 0.014
A60: 356 | B60: =元トマト!B60-B$2 -> 0.038 | C60: =元トマト!C60-C$2 -> 0.151 | D60: =元トマト!D60-D$2 -> 0.077 | E60: =元トマト!E60-E$2 -> 0.02 | F60: =元トマト!F60-F$2 -> 0.021 | G60: =元トマト!G60-G$2 -> 0.016 | H60: =元トマト!H60-H$2 -> -0.009 | I60: =元トマト!I60-I$2 -> 0.014
A61: 357 | B61: =元トマト!B61-B$2 -> 0.038 | C61: =元トマト!C61-C$2 -> 0.157 | D61: =元トマト!D61-D$2 -> 0.081 | E61: =元トマト!E61-E$2 -> 0.02 | F61: =元トマト!F61-F$2 -> 0.02 | G61: =元トマト!G61-G$2 -> 0.016 | H61: =元トマト!H61-H$2 -> -0.009 | I61: =元トマト!I61-I$2 -> 0.014
A62: 358 | B62: =元トマト!B62-B$2 -> 0.039 | C62: =元トマト!C62-C$2 -> 0.162 | D62: =元トマト!D62-D$2 -> 0.084 | E62: =元トマト!E62-E$2 -> 0.02 | F62: =元トマト!F62-F$2 -> 0.02 | G62: =元トマト!G62-G$2 -> 0.015 | H62: =元トマト!H62-H$2 -> -0.009 | I62: =元トマト!I62-I$2 -> 0.014
A63: 359 | B63: =元トマト!B63-B$2 -> 0.041 | C63: =元トマト!C63-C$2 -> 0.167 | D63: =元トマト!D63-D$2 -> 0.086 | E63: =元トマト!E63-E$2 -> 0.021 | F63: =元トマト!F63-F$2 -> 0.021 | G63: =元トマト!G63-G$2 -> 0.016 | H63: =元トマト!H63-H$2 -> -0.008 | I63: =元トマト!I63-I$2 -> 0.014
A64: 360 | B64: =元トマト!B64-B$2 -> 0.043 | C64: =元トマト!C64-C$2 -> 0.17 | D64: =元トマト!D64-D$2 -> 0.087 | E64: =元トマト!E64-E$2 -> 0.021 | F64: =元トマト!F64-F$2 -> 0.021 | G64: =元トマト!G64-G$2 -> 0.016 | H64: =元トマト!H64-H$2 -> -0.008 | I64: =元トマト!I64-I$2 -> 0.014
A65: 361 | B65: =元トマト!B65-B$2 -> 0.046 | C65: =元トマト!C65-C$2 -> 0.17 | D65: =元トマト!D65-D$2 -> 0.087 | E65: =元トマト!E65-E$2 -> 0.021 | F65: =元トマト!F65-F$2 -> 0.022 | G65: =元トマト!G65-G$2 -> 0.016 | H65: =元トマト!H65-H$2 -> -0.007 | I65: =元トマト!I65-I$2 -> 0.014
A66: 362 | B66: =元トマト!B66-B$2 -> 0.048 | C66: =元トマト!C66-C$2 -> 0.169 | D66: =元トマト!D66-D$2 -> 0.085 | E66: =元トマト!E66-E$2 -> 0.021 | F66: =元トマト!F66-F$2 -> 0.022 | G66: =元トマト!G66-G$2 -> 0.016 | H66: =元トマト!H66-H$2 -> -0.008 | I66: =元トマト!I66-I$2 -> 0.014
A67: 363 | B67: =元トマト!B67-B$2 -> 0.05 | C67: =元トマト!C67-C$2 -> 0.166 | D67: =元トマト!D67-D$2 -> 0.082 | E67: =元トマト!E67-E$2 -> 0.021 | F67: =元トマト!F67-F$2 -> 0.023 | G67: =元トマト!G67-G$2 -> 0.016 | H67: =元トマト!H67-H$2 -> -0.008 | I67: =元トマト!I67-I$2 -> 0.014
A68: 364 | B68: =元トマト!B68-B$2 -> 0.051 | C68: =元トマト!C68-C$2 -> 0.161 | D68: =元トマト!D68-D$2 -> 0.078 | E68: =元トマト!E68-E$2 -> 0.021 | F68: =元トマト!F68-F$2 -> 0.023 | G68: =元トマト!G68-G$2 -> 0.016 | H68: =元トマト!H68-H$2 -> -0.008 | I68: =元トマト!I68-I$2 -> 0.014
A69: 365 | B69: =元トマト!B69-B$2 -> 0.052 | C69: =元トマト!C69-C$2 -> 0.156 | D69: =元トマト!D69-D$2 -> 0.075 | E69: =元トマト!E69-E$2 -> 0.021 | F69: =元トマト!F69-F$2 -> 0.023 | G69: =元トマト!G69-G$2 -> 0.016 | H69: =元トマト!H69-H$2 -> -0.008 | I69: =元トマト!I69-I$2 -> 0.015
A70: 366 | B70: =元トマト!B70-B$2 -> 0.052 | C70: =元トマト!C70-C$2 -> 0.15 | D70: =元トマト!D70-D$2 -> 0.071 | E70: =元トマト!E70-E$2 -> 0.021 | F70: =元トマト!F70-F$2 -> 0.023 | G70: =元トマト!G70-G$2 -> 0.016 | H70: =元トマト!H70-H$2 -> -0.007 | I70: =元トマト!I70-I$2 -> 0.015
A71: 367 | B71: =元トマト!B71-B$2 -> 0.052 | C71: =元トマト!C71-C$2 -> 0.144 | D71: =元トマト!D71-D$2 -> 0.067 | E71: =元トマト!E71-E$2 -> 0.021 | F71: =元トマト!F71-F$2 -> 0.023 | G71: =元トマト!G71-G$2 -> 0.017 | H71: =元トマト!H71-H$2 -> -0.007 | I71: =元トマト!I71-I$2 -> 0.015
A72: 368 | B72: =元トマト!B72-B$2 -> 0.05 | C72: =元トマト!C72-C$2 -> 0.137 | D72: =元トマト!D72-D$2 -> 0.064 | E72: =元トマト!E72-E$2 -> 0.021 | F72: =元トマト!F72-F$2 -> 0.023 | G72: =元トマト!G72-G$2 -> 0.018 | H72: =元トマト!H72-H$2 -> -0.007 | I72: =元トマト!I72-I$2 -> 0.016
A73: 369 | B73: =元トマト!B73-B$2 -> 0.048 | C73: =元トマト!C73-C$2 -> 0.132 | D73: =元トマト!D73-D$2 -> 0.061 | E73: =元トマト!E73-E$2 -> 0.02 | F73: =元トマト!F73-F$2 -> 0.022 | G73: =元トマト!G73-G$2 -> 0.017 | H73: =元トマト!H73-H$2 -> -0.007 | I73: =元トマト!I73-I$2 -> 0.016
A74: 370 | B74: =元トマト!B74-B$2 -> 0.046 | C74: =元トマト!C74-C$2 -> 0.128 | D74: =元トマト!D74-D$2 -> 0.059 | E74: =元トマト!E74-E$2 -> 0.02 | F74: =元トマト!F74-F$2 -> 0.021 | G74: =元トマト!G74-G$2 -> 0.018 | H74: =元トマト!H74-H$2 -> -0.007 | I74: =元トマト!I74-I$2 -> 0.016
A75: 371 | B75: =元トマト!B75-B$2 -> 0.043 | C75: =元トマト!C75-C$2 -> 0.123 | D75: =元トマト!D75-D$2 -> 0.057 | E75: =元トマト!E75-E$2 -> 0.019 | F75: =元トマト!F75-F$2 -> 0.021 | G75: =元トマト!G75-G$2 -> 0.018 | H75: =元トマト!H75-H$2 -> -0.008 | I75: =元トマト!I75-I$2 -> 0.016
A76: 372 | B76: =元トマト!B76-B$2 -> 0.04 | C76: =元トマト!C76-C$2 -> 0.12 | D76: =元トマト!D76-D$2 -> 0.055 | E76: =元トマト!E76-E$2 -> 0.019 | F76: =元トマト!F76-F$2 -> 0.021 | G76: =元トマト!G76-G$2 -> 0.018 | H76: =元トマト!H76-H$2 -> -0.008 | I76: =元トマト!I76-I$2 -> 0.016
A77: 373 | B77: =元トマト!B77-B$2 -> 0.039 | C77: =元トマト!C77-C$2 -> 0.118 | D77: =元トマト!D77-D$2 -> 0.054 | E77: =元トマト!E77-E$2 -> 0.018 | F77: =元トマト!F77-F$2 -> 0.02 | G77: =元トマト!G77-G$2 -> 0.018 | H77: =元トマト!H77-H$2 -> -0.008 | I77: =元トマト!I77-I$2 -> 0.016
A78: 374 | B78: =元トマト!B78-B$2 -> 0.037 | C78: =元トマト!C78-C$2 -> 0.117 | D78: =元トマト!D78-D$2 -> 0.054 | E78: =元トマト!E78-E$2 -> 0.018 | F78: =元トマト!F78-F$2 -> 0.02 | G78: =元トマト!G78-G$2 -> 0.018 | H78: =元トマト!H78-H$2 -> -0.008 | I78: =元トマト!I78-I$2 -> 0.016
A79: 375 | B79: =元トマト!B79-B$2 -> 0.036 | C79: =元トマト!C79-C$2 -> 0.117 | D79: =元トマト!D79-D$2 -> 0.054 | E79: =元トマト!E79-E$2 -> 0.018 | F79: =元トマト!F79-F$2 -> 0.019 | G79: =元トマト!G79-G$2 -> 0.019 | H79: =元トマト!H79-H$2 -> -0.007 | I79: =元トマト!I79-I$2 -> 0.016
A80: 376 | B80: =元トマト!B80-B$2 -> 0.036 | C80: =元トマト!C80-C$2 -> 0.118 | D80: =元トマト!D80-D$2 -> 0.055 | E80: =元トマト!E80-E$2 -> 0.018 | F80: =元トマト!F80-F$2 -> 0.019 | G80: =元トマト!G80-G$2 -> 0.019 | H80: =元トマト!H80-H$2 -> -0.007 | I80: =元トマト!I80-I$2 -> 0.017
A81: 377 | B81: =元トマト!B81-B$2 -> 0.036 | C81: =元トマト!C81-C$2 -> 0.12 | D81: =元トマト!D81-D$2 -> 0.056 | E81: =元トマト!E81-E$2 -> 0.019 | F81: =元トマト!F81-F$2 -> 0.019 | G81: =元トマト!G81-G$2 -> 0.019 | H81: =元トマト!H81-H$2 -> -0.007 | I81: =元トマト!I81-I$2 -> 0.017
A82: 378 | B82: =元トマト!B82-B$2 -> 0.036 | C82: =元トマト!C82-C$2 -> 0.122 | D82: =元トマト!D82-D$2 -> 0.057 | E82: =元トマト!E82-E$2 -> 0.019 | F82: =元トマト!F82-F$2 -> 0.019 | G82: =元トマト!G82-G$2 -> 0.019 | H82: =元トマト!H82-H$2 -> -0.007 | I82: =元トマト!I82-I$2 -> 0.017
A83: 379 | B83: =元トマト!B83-B$2 -> 0.035 | C83: =元トマト!C83-C$2 -> 0.124 | D83: =元トマト!D83-D$2 -> 0.058 | E83: =元トマト!E83-E$2 -> 0.019 | F83: =元トマト!F83-F$2 -> 0.019 | G83: =元トマト!G83-G$2 -> 0.019 | H83: =元トマト!H83-H$2 -> -0.007 | I83: =元トマト!I83-I$2 -> 0.017
A84: 380 | B84: =元トマト!B84-B$2 -> 0.035 | C84: =元トマト!C84-C$2 -> 0.126 | D84: =元トマト!D84-D$2 -> 0.059 | E84: =元トマト!E84-E$2 -> 0.019 | F84: =元トマト!F84-F$2 -> 0.019 | G84: =元トマト!G84-G$2 -> 0.019 | H84: =元トマト!H84-H$2 -> -0.007 | I84: =元トマト!I84-I$2 -> 0.017
A85: 381 | B85: =元トマト!B85-B$2 -> 0.035 | C85: =元トマト!C85-C$2 -> 0.13 | D85: =元トマト!D85-D$2 -> 0.061 | E85: =元トマト!E85-E$2 -> 0.019 | F85: =元トマト!F85-F$2 -> 0.019 | G85: =元トマト!G85-G$2 -> 0.019 | H85: =元トマト!H85-H$2 -> -0.007 | I85: =元トマト!I85-I$2 -> 0.017
A86: 382 | B86: =元トマト!B86-B$2 -> 0.037 | C86: =元トマト!C86-C$2 -> 0.134 | D86: =元トマト!D86-D$2 -> 0.063 | E86: =元トマト!E86-E$2 -> 0.02 | F86: =元トマト!F86-F$2 -> 0.019 | G86: =元トマト!G86-G$2 -> 0.019 | H86: =元トマト!H86-H$2 -> -0.006 | I86: =元トマト!I86-I$2 -> 0.017
A87: 383 | B87: =元トマト!B87-B$2 -> 0.038 | C87: =元トマト!C87-C$2 -> 0.139 | D87: =元トマト!D87-D$2 -> 0.066 | E87: =元トマト!E87-E$2 -> 0.02 | F87: =元トマト!F87-F$2 -> 0.018 | G87: =元トマト!G87-G$2 -> 0.02 | H87: =元トマト!H87-H$2 -> -0.006 | I87: =元トマト!I87-I$2 -> 0.018
A88: 384 | B88: =元トマト!B88-B$2 -> 0.039 | C88: =元トマト!C88-C$2 -> 0.144 | D88: =元トマト!D88-D$2 -> 0.068 | E88: =元トマト!E88-E$2 -> 0.021 | F88: =元トマト!F88-F$2 -> 0.018 | G88: =元トマト!G88-G$2 -> 0.02 | H88: =元トマト!H88-H$2 -> -0.006 | I88: =元トマト!I88-I$2 -> 0.018
A89: 385 | B89: =元トマト!B89-B$2 -> 0.04 | C89: =元トマト!C89-C$2 -> 0.149 | D89: =元トマト!D89-D$2 -> 0.071 | E89: =元トマト!E89-E$2 -> 0.021 | F89: =元トマト!F89-F$2 -> 0.018 | G89: =元トマト!G89-G$2 -> 0.019 | H89: =元トマト!H89-H$2 -> -0.006 | I89: =元トマト!I89-I$2 -> 0.017
A90: 386 | B90: =元トマト!B90-B$2 -> 0.042 | C90: =元トマト!C90-C$2 -> 0.155 | D90: =元トマト!D90-D$2 -> 0.075 | E90: =元トマト!E90-E$2 -> 0.021 | F90: =元トマト!F90-F$2 -> 0.019 | G90: =元トマト!G90-G$2 -> 0.02 | H90: =元トマト!H90-H$2 -> -0.006 | I90: =元トマト!I90-I$2 -> 0.018
A91: 387 | B91: =元トマト!B91-B$2 -> 0.044 | C91: =元トマト!C91-C$2 -> 0.162 | D91: =元トマト!D91-D$2 -> 0.078 | E91: =元トマト!E91-E$2 -> 0.022 | F91: =元トマト!F91-F$2 -> 0.019 | G91: =元トマト!G91-G$2 -> 0.021 | H91: =元トマト!H91-H$2 -> -0.005 | I91: =元トマト!I91-I$2 -> 0.019
A92: 388 | B92: =元トマト!B92-B$2 -> 0.046 | C92: =元トマト!C92-C$2 -> 0.169 | D92: =元トマト!D92-D$2 -> 0.082 | E92: =元トマト!E92-E$2 -> 0.022 | F92: =元トマト!F92-F$2 -> 0.019 | G92: =元トマト!G92-G$2 -> 0.021 | H92: =元トマト!H92-H$2 -> -0.005 | I92: =元トマト!I92-I$2 -> 0.019
A93: 389 | B93: =元トマト!B93-B$2 -> 0.047 | C93: =元トマト!C93-C$2 -> 0.174 | D93: =元トマト!D93-D$2 -> 0.084 | E93: =元トマト!E93-E$2 -> 0.022 | F93: =元トマト!F93-F$2 -> 0.019 | G93: =元トマト!G93-G$2 -> 0.022 | H93: =元トマト!H93-H$2 -> -0.005 | I93: =元トマト!I93-I$2 -> 0.019
A94: 390 | B94: =元トマト!B94-B$2 -> 0.049 | C94: =元トマト!C94-C$2 -> 0.181 | D94: =元トマト!D94-D$2 -> 0.086 | E94: =元トマト!E94-E$2 -> 0.023 | F94: =元トマト!F94-F$2 -> 0.019 | G94: =元トマト!G94-G$2 -> 0.022 | H94: =元トマト!H94-H$2 -> -0.005 | I94: =元トマト!I94-I$2 -> 0.019
A95: 391 | B95: =元トマト!B95-B$2 -> 0.051 | C95: =元トマト!C95-C$2 -> 0.188 | D95: =元トマト!D95-D$2 -> 0.09 | E95: =元トマト!E95-E$2 -> 0.023 | F95: =元トマト!F95-F$2 -> 0.02 | G95: =元トマト!G95-G$2 -> 0.022 | H95: =元トマト!H95-H$2 -> -0.005 | I95: =元トマト!I95-I$2 -> 0.02
A96: 392 | B96: =元トマト!B96-B$2 -> 0.053 | C96: =元トマト!C96-C$2 -> 0.194 | D96: =元トマト!D96-D$2 -> 0.093 | E96: =元トマト!E96-E$2 -> 0.024 | F96: =元トマト!F96-F$2 -> 0.02 | G96: =元トマト!G96-G$2 -> 0.023 | H96: =元トマト!H96-H$2 -> -0.004 | I96: =元トマト!I96-I$2 -> 0.021
A97: 393 | B97: =元トマト!B97-B$2 -> 0.056 | C97: =元トマト!C97-C$2 -> 0.201 | D97: =元トマト!D97-D$2 -> 0.096 | E97: =元トマト!E97-E$2 -> 0.024 | F97: =元トマト!F97-F$2 -> 0.019 | G97: =元トマト!G97-G$2 -> 0.023 | H97: =元トマト!H97-H$2 -> -0.004 | I97: =元トマト!I97-I$2 -> 0.021
A98: 394 | B98: =元トマト!B98-B$2 -> 0.058 | C98: =元トマト!C98-C$2 -> 0.207 | D98: =元トマト!D98-D$2 -> 0.099 | E98: =元トマト!E98-E$2 -> 0.024 | F98: =元トマト!F98-F$2 -> 0.019 | G98: =元トマト!G98-G$2 -> 0.023 | H98: =元トマト!H98-H$2 -> -0.004 | I98: =元トマト!I98-I$2 -> 0.022
A99: 395 | B99: =元トマト!B99-B$2 -> 0.06 | C99: =元トマト!C99-C$2 -> 0.214 | D99: =元トマト!D99-D$2 -> 0.102 | E99: =元トマト!E99-E$2 -> 0.025 | F99: =元トマト!F99-F$2 -> 0.02 | G99: =元トマト!G99-G$2 -> 0.024 | H99: =元トマト!H99-H$2 -> -0.004 | I99: =元トマト!I99-I$2 -> 0.022
A100: 396 | B100: =元トマト!B100-B$2 -> 0.062 | C100: =元トマト!C100-C$2 -> 0.22 | D100: =元トマト!D100-D$2 -> 0.104 | E100: =元トマト!E100-E$2 -> 0.025 | F100: =元トマト!F100-F$2 -> 0.02 | G100: =元トマト!G100-G$2 -> 0.024 | H100: =元トマト!H100-H$2 -> -0.004 | I100: =元トマト!I100-I$2 -> 0.022
A101: 397 | B101: =元トマト!B101-B$2 -> 0.063 | C101: =元トマト!C101-C$2 -> 0.226 | D101: =元トマト!D101-D$2 -> 0.106 | E101: =元トマト!E101-E$2 -> 0.025 | F101: =元トマト!F101-F$2 -> 0.02 | G101: =元トマト!G101-G$2 -> 0.024 | H101: =元トマト!H101-H$2 -> -0.004 | I101: =元トマト!I101-I$2 -> 0.023
A102: 398 | B102: =元トマト!B102-B$2 -> 0.065 | C102: =元トマト!C102-C$2 -> 0.231 | D102: =元トマト!D102-D$2 -> 0.109 | E102: =元トマト!E102-E$2 -> 0.025 | F102: =元トマト!F102-F$2 -> 0.02 | G102: =元トマト!G102-G$2 -> 0.025 | H102: =元トマト!H102-H$2 -> -0.003 | I102: =元トマト!I102-I$2 -> 0.023
A103: 399 | B103: =元トマト!B103-B$2 -> 0.067 | C103: =元トマト!C103-C$2 -> 0.237 | D103: =元トマト!D103-D$2 -> 0.112 | E103: =元トマト!E103-E$2 -> 0.026 | F103: =元トマト!F103-F$2 -> 0.02 | G103: =元トマト!G103-G$2 -> 0.025 | H103: =元トマト!H103-H$2 -> -0.003 | I103: =元トマト!I103-I$2 -> 0.023
A104: 400 | B104: =元トマト!B104-B$2 -> 0.068 | C104: =元トマト!C104-C$2 -> 0.244 | D104: =元トマト!D104-D$2 -> 0.116 | E104: =元トマト!E104-E$2 -> 0.026 | F104: =元トマト!F104-F$2 -> 0.02 | G104: =元トマト!G104-G$2 -> 0.026 | H104: =元トマト!H104-H$2 -> -0.003 | I104: =元トマト!I104-I$2 -> 0.024
A105: 401 | B105: =元トマト!B105-B$2 -> 0.069 | C105: =元トマト!C105-C$2 -> 0.251 | D105: =元トマト!D105-D$2 -> 0.119 | E105: =元トマト!E105-E$2 -> 0.027 | F105: =元トマト!F105-F$2 -> 0.021 | G105: =元トマト!G105-G$2 -> 0.026 | H105: =元トマト!H105-H$2 -> -0.002 | I105: =元トマト!I105-I$2 -> 0.024
A106: 402 | B106: =元トマト!B106-B$2 -> 0.071 | C106: =元トマト!C106-C$2 -> 0.259 | D106: =元トマト!D106-D$2 -> 0.124 | E106: =元トマト!E106-E$2 -> 0.027 | F106: =元トマト!F106-F$2 -> 0.02 | G106: =元トマト!G106-G$2 -> 0.026 | H106: =元トマト!H106-H$2 -> -0.002 | I106: =元トマト!I106-I$2 -> 0.023
A107: 403 | B107: =元トマト!B107-B$2 -> 0.072 | C107: =元トマト!C107-C$2 -> 0.269 | D107: =元トマト!D107-D$2 -> 0.129 | E107: =元トマト!E107-E$2 -> 0.027 | F107: =元トマト!F107-F$2 -> 0.02 | G107: =元トマト!G107-G$2 -> 0.026 | H107: =元トマト!H107-H$2 -> -0.002 | I107: =元トマト!I107-I$2 -> 0.023
A108: 404 | B108: =元トマト!B108-B$2 -> 0.074 | C108: =元トマト!C108-C$2 -> 0.279 | D108: =元トマト!D108-D$2 -> 0.135 | E108: =元トマト!E108-E$2 -> 0.028 | F108: =元トマト!F108-F$2 -> 0.02 | G108: =元トマト!G108-G$2 -> 0.027 | H108: =元トマト!H108-H$2 -> -0.002 | I108: =元トマト!I108-I$2 -> 0.024
A109: 405 | B109: =元トマト!B109-B$2 -> 0.076 | C109: =元トマト!C109-C$2 -> 0.289 | D109: =元トマト!D109-D$2 -> 0.141 | E109: =元トマト!E109-E$2 -> 0.029 | F109: =元トマト!F109-F$2 -> 0.02 | G109: =元トマト!G109-G$2 -> 0.027 | H109: =元トマト!H109-H$2 -> -0.002 | I109: =元トマト!I109-I$2 -> 0.024
A110: 406 | B110: =元トマト!B110-B$2 -> 0.078 | C110: =元トマト!C110-C$2 -> 0.299 | D110: =元トマト!D110-D$2 -> 0.148 | E110: =元トマト!E110-E$2 -> 0.03 | F110: =元トマト!F110-F$2 -> 0.02 | G110: =元トマト!G110-G$2 -> 0.027 | H110: =元トマト!H110-H$2 -> -0.001 | I110: =元トマト!I110-I$2 -> 0.025
A111: 407 | B111: =元トマト!B111-B$2 -> 0.08 | C111: =元トマト!C111-C$2 -> 0.311 | D111: =元トマト!D111-D$2 -> 0.154 | E111: =元トマト!E111-E$2 -> 0.031 | F111: =元トマト!F111-F$2 -> 0.021 | G111: =元トマト!G111-G$2 -> 0.028 | H111: =元トマト!H111-H$2 -> 0 | I111: =元トマト!I111-I$2 -> 0.025
A112: 408 | B112: =元トマト!B112-B$2 -> 0.081 | C112: =元トマト!C112-C$2 -> 0.323 | D112: =元トマト!D112-D$2 -> 0.16 | E112: =元トマト!E112-E$2 -> 0.031 | F112: =元トマト!F112-F$2 -> 0.021 | G112: =元トマト!G112-G$2 -> 0.027 | H112: =元トマト!H112-H$2 -> 0 | I112: =元トマト!I112-I$2 -> 0.025
A113: 409 | B113: =元トマト!B113-B$2 -> 0.085 | C113: =元トマト!C113-C$2 -> 0.336 | D113: =元トマト!D113-D$2 -> 0.167 | E113: =元トマト!E113-E$2 -> 0.032 | F113: =元トマト!F113-F$2 -> 0.02 | G113: =元トマト!G113-G$2 -> 0.027 | H113: =元トマト!H113-H$2 -> 0 | I113: =元トマト!I113-I$2 -> 0.025
A114: 410 | B114: =元トマト!B114-B$2 -> 0.088 | C114: =元トマト!C114-C$2 -> 0.35 | D114: =元トマト!D114-D$2 -> 0.175 | E114: =元トマト!E114-E$2 -> 0.033 | F114: =元トマト!F114-F$2 -> 0.02 | G114: =元トマト!G114-G$2 -> 0.028 | H114: =元トマト!H114-H$2 -> 0 | I114: =元トマト!I114-I$2 -> 0.026
A115: 411 | B115: =元トマト!B115-B$2 -> 0.091 | C115: =元トマト!C115-C$2 -> 0.364 | D115: =元トマト!D115-D$2 -> 0.182 | E115: =元トマト!E115-E$2 -> 0.034 | F115: =元トマト!F115-F$2 -> 0.021 | G115: =元トマト!G115-G$2 -> 0.028 | H115: =元トマト!H115-H$2 -> 0.001 | I115: =元トマト!I115-I$2 -> 0.026
A116: 412 | B116: =元トマト!B116-B$2 -> 0.093 | C116: =元トマト!C116-C$2 -> 0.375 | D116: =元トマト!D116-D$2 -> 0.188 | E116: =元トマト!E116-E$2 -> 0.035 | F116: =元トマト!F116-F$2 -> 0.021 | G116: =元トマト!G116-G$2 -> 0.028 | H116: =元トマト!H116-H$2 -> 0.001 | I116: =元トマト!I116-I$2 -> 0.026
A117: 413 | B117: =元トマト!B117-B$2 -> 0.096 | C117: =元トマト!C117-C$2 -> 0.387 | D117: =元トマト!D117-D$2 -> 0.194 | E117: =元トマト!E117-E$2 -> 0.036 | F117: =元トマト!F117-F$2 -> 0.021 | G117: =元トマト!G117-G$2 -> 0.029 | H117: =元トマト!H117-H$2 -> 0.001 | I117: =元トマト!I117-I$2 -> 0.027
A118: 414 | B118: =元トマト!B118-B$2 -> 0.1 | C118: =元トマト!C118-C$2 -> 0.398 | D118: =元トマト!D118-D$2 -> 0.2 | E118: =元トマト!E118-E$2 -> 0.036 | F118: =元トマト!F118-F$2 -> 0.021 | G118: =元トマト!G118-G$2 -> 0.029 | H118: =元トマト!H118-H$2 -> 0.002 | I118: =元トマト!I118-I$2 -> 0.027
A119: 415 | B119: =元トマト!B119-B$2 -> 0.102 | C119: =元トマト!C119-C$2 -> 0.408 | D119: =元トマト!D119-D$2 -> 0.204 | E119: =元トマト!E119-E$2 -> 0.035 | F119: =元トマト!F119-F$2 -> 0.021 | G119: =元トマト!G119-G$2 -> 0.028 | H119: =元トマト!H119-H$2 -> 0.002 | I119: =元トマト!I119-I$2 -> 0.027
A120: 416 | B120: =元トマト!B120-B$2 -> 0.106 | C120: =元トマト!C120-C$2 -> 0.417 | D120: =元トマト!D120-D$2 -> 0.209 | E120: =元トマト!E120-E$2 -> 0.036 | F120: =元トマト!F120-F$2 -> 0.022 | G120: =元トマト!G120-G$2 -> 0.029 | H120: =元トマト!H120-H$2 -> 0.003 | I120: =元トマト!I120-I$2 -> 0.028
A121: 417 | B121: =元トマト!B121-B$2 -> 0.11 | C121: =元トマト!C121-C$2 -> 0.425 | D121: =元トマト!D121-D$2 -> 0.213 | E121: =元トマト!E121-E$2 -> 0.036 | F121: =元トマト!F121-F$2 -> 0.022 | G121: =元トマト!G121-G$2 -> 0.03 | H121: =元トマト!H121-H$2 -> 0.003 | I121: =元トマト!I121-I$2 -> 0.029
A122: 418 | B122: =元トマト!B122-B$2 -> 0.112 | C122: =元トマト!C122-C$2 -> 0.433 | D122: =元トマト!D122-D$2 -> 0.215 | E122: =元トマト!E122-E$2 -> 0.037 | F122: =元トマト!F122-F$2 -> 0.022 | G122: =元トマト!G122-G$2 -> 0.03 | H122: =元トマト!H122-H$2 -> 0.003 | I122: =元トマト!I122-I$2 -> 0.029
A123: 419 | B123: =元トマト!B123-B$2 -> 0.114 | C123: =元トマト!C123-C$2 -> 0.438 | D123: =元トマト!D123-D$2 -> 0.217 | E123: =元トマト!E123-E$2 -> 0.038 | F123: =元トマト!F123-F$2 -> 0.022 | G123: =元トマト!G123-G$2 -> 0.03 | H123: =元トマト!H123-H$2 -> 0.003 | I123: =元トマト!I123-I$2 -> 0.029
A124: 420 | B124: =元トマト!B124-B$2 -> 0.117 | C124: =元トマト!C124-C$2 -> 0.444 | D124: =元トマト!D124-D$2 -> 0.219 | E124: =元トマト!E124-E$2 -> 0.038 | F124: =元トマト!F124-F$2 -> 0.022 | G124: =元トマト!G124-G$2 -> 0.03 | H124: =元トマト!H124-H$2 -> 0.003 | I124: =元トマト!I124-I$2 -> 0.029
A125: 421 | B125: =元トマト!B125-B$2 -> 0.12 | C125: =元トマト!C125-C$2 -> 0.451 | D125: =元トマト!D125-D$2 -> 0.223 | E125: =元トマト!E125-E$2 -> 0.039 | F125: =元トマト!F125-F$2 -> 0.022 | G125: =元トマト!G125-G$2 -> 0.031 | H125: =元トマト!H125-H$2 -> 0.004 | I125: =元トマト!I125-I$2 -> 0.03
A126: 422 | B126: =元トマト!B126-B$2 -> 0.121 | C126: =元トマト!C126-C$2 -> 0.457 | D126: =元トマト!D126-D$2 -> 0.226 | E126: =元トマト!E126-E$2 -> 0.039 | F126: =元トマト!F126-F$2 -> 0.022 | G126: =元トマト!G126-G$2 -> 0.031 | H126: =元トマト!H126-H$2 -> 0.003 | I126: =元トマト!I126-I$2 -> 0.029
A127: 423 | B127: =元トマト!B127-B$2 -> 0.123 | C127: =元トマト!C127-C$2 -> 0.464 | D127: =元トマト!D127-D$2 -> 0.228 | E127: =元トマト!E127-E$2 -> 0.039 | F127: =元トマト!F127-F$2 -> 0.022 | G127: =元トマト!G127-G$2 -> 0.031 | H127: =元トマト!H127-H$2 -> 0.004 | I127: =元トマト!I127-I$2 -> 0.029
A128: 424 | B128: =元トマト!B128-B$2 -> 0.124 | C128: =元トマト!C128-C$2 -> 0.472 | D128: =元トマト!D128-D$2 -> 0.233 | E128: =元トマト!E128-E$2 -> 0.04 | F128: =元トマト!F128-F$2 -> 0.023 | G128: =元トマト!G128-G$2 -> 0.031 | H128: =元トマト!H128-H$2 -> 0.004 | I128: =元トマト!I128-I$2 -> 0.029
A129: 425 | B129: =元トマト!B129-B$2 -> 0.125 | C129: =元トマト!C129-C$2 -> 0.479 | D129: =元トマト!D129-D$2 -> 0.237 | E129: =元トマト!E129-E$2 -> 0.04 | F129: =元トマト!F129-F$2 -> 0.022 | G129: =元トマト!G129-G$2 -> 0.03 | H129: =元トマト!H129-H$2 -> 0.004 | I129: =元トマト!I129-I$2 -> 0.029
A130: 426 | B130: =元トマト!B130-B$2 -> 0.126 | C130: =元トマト!C130-C$2 -> 0.488 | D130: =元トマト!D130-D$2 -> 0.242 | E130: =元トマト!E130-E$2 -> 0.04 | F130: =元トマト!F130-F$2 -> 0.022 | G130: =元トマト!G130-G$2 -> 0.03 | H130: =元トマト!H130-H$2 -> 0.004 | I130: =元トマト!I130-I$2 -> 0.029
A131: 427 | B131: =元トマト!B131-B$2 -> 0.127 | C131: =元トマト!C131-C$2 -> 0.499 | D131: =元トマト!D131-D$2 -> 0.25 | E131: =元トマト!E131-E$2 -> 0.041 | F131: =元トマト!F131-F$2 -> 0.022 | G131: =元トマト!G131-G$2 -> 0.029 | H131: =元トマト!H131-H$2 -> 0.004 | I131: =元トマト!I131-I$2 -> 0.029
A132: 428 | B132: =元トマト!B132-B$2 -> 0.129 | C132: =元トマト!C132-C$2 -> 0.514 | D132: =元トマト!D132-D$2 -> 0.258 | E132: =元トマト!E132-E$2 -> 0.042 | F132: =元トマト!F132-F$2 -> 0.023 | G132: =元トマト!G132-G$2 -> 0.03 | H132: =元トマト!H132-H$2 -> 0.005 | I132: =元トマト!I132-I$2 -> 0.029
A133: 429 | B133: =元トマト!B133-B$2 -> 0.131 | C133: =元トマト!C133-C$2 -> 0.531 | D133: =元トマト!D133-D$2 -> 0.268 | E133: =元トマト!E133-E$2 -> 0.043 | F133: =元トマト!F133-F$2 -> 0.023 | G133: =元トマト!G133-G$2 -> 0.03 | H133: =元トマト!H133-H$2 -> 0.005 | I133: =元トマト!I133-I$2 -> 0.03
A134: 430 | B134: =元トマト!B134-B$2 -> 0.133 | C134: =元トマト!C134-C$2 -> 0.55 | D134: =元トマト!D134-D$2 -> 0.279 | E134: =元トマト!E134-E$2 -> 0.045 | F134: =元トマト!F134-F$2 -> 0.023 | G134: =元トマト!G134-G$2 -> 0.031 | H134: =元トマト!H134-H$2 -> 0.005 | I134: =元トマト!I134-I$2 -> 0.03
A135: 431 | B135: =元トマト!B135-B$2 -> 0.134 | C135: =元トマト!C135-C$2 -> 0.568 | D135: =元トマト!D135-D$2 -> 0.29 | E135: =元トマト!E135-E$2 -> 0.045 | F135: =元トマト!F135-F$2 -> 0.022 | G135: =元トマト!G135-G$2 -> 0.03 | H135: =元トマト!H135-H$2 -> 0.005 | I135: =元トマト!I135-I$2 -> 0.029
A136: 432 | B136: =元トマト!B136-B$2 -> 0.137 | C136: =元トマト!C136-C$2 -> 0.586 | D136: =元トマト!D136-D$2 -> 0.302 | E136: =元トマト!E136-E$2 -> 0.046 | F136: =元トマト!F136-F$2 -> 0.022 | G136: =元トマト!G136-G$2 -> 0.03 | H136: =元トマト!H136-H$2 -> 0.005 | I136: =元トマト!I136-I$2 -> 0.028
A137: 433 | B137: =元トマト!B137-B$2 -> 0.139 | C137: =元トマト!C137-C$2 -> 0.605 | D137: =元トマト!D137-D$2 -> 0.314 | E137: =元トマト!E137-E$2 -> 0.048 | F137: =元トマト!F137-F$2 -> 0.021 | G137: =元トマト!G137-G$2 -> 0.03 | H137: =元トマト!H137-H$2 -> 0.006 | I137: =元トマト!I137-I$2 -> 0.028
A138: 434 | B138: =元トマト!B138-B$2 -> 0.142 | C138: =元トマト!C138-C$2 -> 0.629 | D138: =元トマト!D138-D$2 -> 0.329 | E138: =元トマト!E138-E$2 -> 0.05 | F138: =元トマト!F138-F$2 -> 0.022 | G138: =元トマト!G138-G$2 -> 0.03 | H138: =元トマト!H138-H$2 -> 0.006 | I138: =元トマト!I138-I$2 -> 0.028
A139: 435 | B139: =元トマト!B139-B$2 -> 0.145 | C139: =元トマト!C139-C$2 -> 0.651 | D139: =元トマト!D139-D$2 -> 0.341 | E139: =元トマト!E139-E$2 -> 0.052 | F139: =元トマト!F139-F$2 -> 0.022 | G139: =元トマト!G139-G$2 -> 0.03 | H139: =元トマト!H139-H$2 -> 0.007 | I139: =元トマト!I139-I$2 -> 0.029
A140: 436 | B140: =元トマト!B140-B$2 -> 0.149 | C140: =元トマト!C140-C$2 -> 0.671 | D140: =元トマト!D140-D$2 -> 0.353 | E140: =元トマト!E140-E$2 -> 0.053 | F140: =元トマト!F140-F$2 -> 0.023 | G140: =元トマト!G140-G$2 -> 0.031 | H140: =元トマト!H140-H$2 -> 0.008 | I140: =元トマト!I140-I$2 -> 0.03
A141: 437 | B141: =元トマト!B141-B$2 -> 0.152 | C141: =元トマト!C141-C$2 -> 0.69 | D141: =元トマト!D141-D$2 -> 0.364 | E141: =元トマト!E141-E$2 -> 0.054 | F141: =元トマト!F141-F$2 -> 0.024 | G141: =元トマト!G141-G$2 -> 0.031 | H141: =元トマト!H141-H$2 -> 0.009 | I141: =元トマト!I141-I$2 -> 0.03
A142: 438 | B142: =元トマト!B142-B$2 -> 0.155 | C142: =元トマト!C142-C$2 -> 0.705 | D142: =元トマト!D142-D$2 -> 0.372 | E142: =元トマト!E142-E$2 -> 0.054 | F142: =元トマト!F142-F$2 -> 0.023 | G142: =元トマト!G142-G$2 -> 0.03 | H142: =元トマト!H142-H$2 -> 0.009 | I142: =元トマト!I142-I$2 -> 0.029
A143: 439 | B143: =元トマト!B143-B$2 -> 0.158 | C143: =元トマト!C143-C$2 -> 0.716 | D143: =元トマト!D143-D$2 -> 0.379 | E143: =元トマト!E143-E$2 -> 0.054 | F143: =元トマト!F143-F$2 -> 0.022 | G143: =元トマト!G143-G$2 -> 0.029 | H143: =元トマト!H143-H$2 -> 0.009 | I143: =元トマト!I143-I$2 -> 0.028
A144: 440 | B144: =元トマト!B144-B$2 -> 0.161 | C144: =元トマト!C144-C$2 -> 0.725 | D144: =元トマト!D144-D$2 -> 0.383 | E144: =元トマト!E144-E$2 -> 0.055 | F144: =元トマト!F144-F$2 -> 0.022 | G144: =元トマト!G144-G$2 -> 0.03 | H144: =元トマト!H144-H$2 -> 0.009 | I144: =元トマト!I144-I$2 -> 0.029
A145: 441 | B145: =元トマト!B145-B$2 -> 0.163 | C145: =元トマト!C145-C$2 -> 0.734 | D145: =元トマト!D145-D$2 -> 0.387 | E145: =元トマト!E145-E$2 -> 0.057 | F145: =元トマト!F145-F$2 -> 0.023 | G145: =元トマト!G145-G$2 -> 0.031 | H145: =元トマト!H145-H$2 -> 0.01 | I145: =元トマト!I145-I$2 -> 0.029
A146: 442 | B146: =元トマト!B146-B$2 -> 0.165 | C146: =元トマト!C146-C$2 -> 0.738 | D146: =元トマト!D146-D$2 -> 0.389 | E146: =元トマト!E146-E$2 -> 0.057 | F146: =元トマト!F146-F$2 -> 0.023 | G146: =元トマト!G146-G$2 -> 0.031 | H146: =元トマト!H146-H$2 -> 0.01 | I146: =元トマト!I146-I$2 -> 0.029
A147: 443 | B147: =元トマト!B147-B$2 -> 0.167 | C147: =元トマト!C147-C$2 -> 0.738 | D147: =元トマト!D147-D$2 -> 0.389 | E147: =元トマト!E147-E$2 -> 0.056 | F147: =元トマト!F147-F$2 -> 0.022 | G147: =元トマト!G147-G$2 -> 0.031 | H147: =元トマト!H147-H$2 -> 0.01 | I147: =元トマト!I147-I$2 -> 0.03
A148: 444 | B148: =元トマト!B148-B$2 -> 0.169 | C148: =元トマト!C148-C$2 -> 0.737 | D148: =元トマト!D148-D$2 -> 0.387 | E148: =元トマト!E148-E$2 -> 0.056 | F148: =元トマト!F148-F$2 -> 0.023 | G148: =元トマト!G148-G$2 -> 0.03 | H148: =元トマト!H148-H$2 -> 0.01 | I148: =元トマト!I148-I$2 -> 0.029
A149: 445 | B149: =元トマト!B149-B$2 -> 0.169 | C149: =元トマト!C149-C$2 -> 0.735 | D149: =元トマト!D149-D$2 -> 0.384 | E149: =元トマト!E149-E$2 -> 0.056 | F149: =元トマト!F149-F$2 -> 0.023 | G149: =元トマト!G149-G$2 -> 0.031 | H149: =元トマト!H149-H$2 -> 0.01 | I149: =元トマト!I149-I$2 -> 0.03
A150: 446 | B150: =元トマト!B150-B$2 -> 0.17 | C150: =元トマト!C150-C$2 -> 0.73 | D150: =元トマト!D150-D$2 -> 0.38 | E150: =元トマト!E150-E$2 -> 0.055 | F150: =元トマト!F150-F$2 -> 0.023 | G150: =元トマト!G150-G$2 -> 0.031 | H150: =元トマト!H150-H$2 -> 0.01 | I150: =元トマト!I150-I$2 -> 0.03
A151: 447 | B151: =元トマト!B151-B$2 -> 0.171 | C151: =元トマト!C151-C$2 -> 0.722 | D151: =元トマト!D151-D$2 -> 0.375 | E151: =元トマト!E151-E$2 -> 0.055 | F151: =元トマト!F151-F$2 -> 0.023 | G151: =元トマト!G151-G$2 -> 0.031 | H151: =元トマト!H151-H$2 -> 0.011 | I151: =元トマト!I151-I$2 -> 0.031
A152: 448 | B152: =元トマト!B152-B$2 -> 0.17 | C152: =元トマト!C152-C$2 -> 0.716 | D152: =元トマト!D152-D$2 -> 0.372 | E152: =元トマト!E152-E$2 -> 0.055 | F152: =元トマト!F152-F$2 -> 0.023 | G152: =元トマト!G152-G$2 -> 0.031 | H152: =元トマト!H152-H$2 -> 0.01 | I152: =元トマト!I152-I$2 -> 0.03
A153: 449 | B153: =元トマト!B153-B$2 -> 0.169 | C153: =元トマト!C153-C$2 -> 0.711 | D153: =元トマト!D153-D$2 -> 0.368 | E153: =元トマト!E153-E$2 -> 0.053 | F153: =元トマト!F153-F$2 -> 0.022 | G153: =元トマト!G153-G$2 -> 0.03 | H153: =元トマト!H153-H$2 -> 0.009 | I153: =元トマト!I153-I$2 -> 0.029
A154: 450 | B154: =元トマト!B154-B$2 -> 0.168 | C154: =元トマト!C154-C$2 -> 0.706 | D154: =元トマト!D154-D$2 -> 0.364 | E154: =元トマト!E154-E$2 -> 0.053 | F154: =元トマト!F154-F$2 -> 0.022 | G154: =元トマト!G154-G$2 -> 0.03 | H154: =元トマト!H154-H$2 -> 0.009 | I154: =元トマト!I154-I$2 -> 0.028
A155: 451 | B155: =元トマト!B155-B$2 -> 0.168 | C155: =元トマト!C155-C$2 -> 0.702 | D155: =元トマト!D155-D$2 -> 0.361 | E155: =元トマト!E155-E$2 -> 0.053 | F155: =元トマト!F155-F$2 -> 0.022 | G155: =元トマト!G155-G$2 -> 0.03 | H155: =元トマト!H155-H$2 -> 0.009 | I155: =元トマト!I155-I$2 -> 0.028
A156: 452 | B156: =元トマト!B156-B$2 -> 0.167 | C156: =元トマト!C156-C$2 -> 0.7 | D156: =元トマト!D156-D$2 -> 0.359 | E156: =元トマト!E156-E$2 -> 0.052 | F156: =元トマト!F156-F$2 -> 0.021 | G156: =元トマト!G156-G$2 -> 0.028 | H156: =元トマト!H156-H$2 -> 0.009 | I156: =元トマト!I156-I$2 -> 0.028
A157: 453 | B157: =元トマト!B157-B$2 -> 0.167 | C157: =元トマト!C157-C$2 -> 0.701 | D157: =元トマト!D157-D$2 -> 0.362 | E157: =元トマト!E157-E$2 -> 0.053 | F157: =元トマト!F157-F$2 -> 0.022 | G157: =元トマト!G157-G$2 -> 0.028 | H157: =元トマト!H157-H$2 -> 0.01 | I157: =元トマト!I157-I$2 -> 0.027
A158: 454 | B158: =元トマト!B158-B$2 -> 0.166 | C158: =元トマト!C158-C$2 -> 0.706 | D158: =元トマト!D158-D$2 -> 0.367 | E158: =元トマト!E158-E$2 -> 0.053 | F158: =元トマト!F158-F$2 -> 0.022 | G158: =元トマト!G158-G$2 -> 0.028 | H158: =元トマト!H158-H$2 -> 0.009 | I158: =元トマト!I158-I$2 -> 0.027
A159: 455 | B159: =元トマト!B159-B$2 -> 0.165 | C159: =元トマト!C159-C$2 -> 0.718 | D159: =元トマト!D159-D$2 -> 0.374 | E159: =元トマト!E159-E$2 -> 0.054 | F159: =元トマト!F159-F$2 -> 0.022 | G159: =元トマト!G159-G$2 -> 0.028 | H159: =元トマト!H159-H$2 -> 0.009 | I159: =元トマト!I159-I$2 -> 0.026
A160: 456 | B160: =元トマト!B160-B$2 -> 0.166 | C160: =元トマト!C160-C$2 -> 0.734 | D160: =元トマト!D160-D$2 -> 0.384 | E160: =元トマト!E160-E$2 -> 0.055 | F160: =元トマト!F160-F$2 -> 0.021 | G160: =元トマト!G160-G$2 -> 0.027 | H160: =元トマト!H160-H$2 -> 0.01 | I160: =元トマト!I160-I$2 -> 0.026
A161: 457 | B161: =元トマト!B161-B$2 -> 0.166 | C161: =元トマト!C161-C$2 -> 0.752 | D161: =元トマト!D161-D$2 -> 0.396 | E161: =元トマト!E161-E$2 -> 0.056 | F161: =元トマト!F161-F$2 -> 0.022 | G161: =元トマト!G161-G$2 -> 0.027 | H161: =元トマト!H161-H$2 -> 0.009 | I161: =元トマト!I161-I$2 -> 0.026
A162: 458 | B162: =元トマト!B162-B$2 -> 0.166 | C162: =元トマト!C162-C$2 -> 0.771 | D162: =元トマト!D162-D$2 -> 0.409 | E162: =元トマト!E162-E$2 -> 0.058 | F162: =元トマト!F162-F$2 -> 0.021 | G162: =元トマト!G162-G$2 -> 0.027 | H162: =元トマト!H162-H$2 -> 0.01 | I162: =元トマト!I162-I$2 -> 0.025
A163: 459 | B163: =元トマト!B163-B$2 -> 0.167 | C163: =元トマト!C163-C$2 -> 0.796 | D163: =元トマト!D163-D$2 -> 0.424 | E163: =元トマト!E163-E$2 -> 0.059 | F163: =元トマト!F163-F$2 -> 0.021 | G163: =元トマト!G163-G$2 -> 0.027 | H163: =元トマト!H163-H$2 -> 0.011 | I163: =元トマト!I163-I$2 -> 0.025
A164: 460 | B164: =元トマト!B164-B$2 -> 0.168 | C164: =元トマト!C164-C$2 -> 0.821 | D164: =元トマト!D164-D$2 -> 0.442 | E164: =元トマト!E164-E$2 -> 0.061 | F164: =元トマト!F164-F$2 -> 0.022 | G164: =元トマト!G164-G$2 -> 0.027 | H164: =元トマト!H164-H$2 -> 0.012 | I164: =元トマト!I164-I$2 -> 0.025
A165: 461 | B165: =元トマト!B165-B$2 -> 0.168 | C165: =元トマト!C165-C$2 -> 0.85 | D165: =元トマト!D165-D$2 -> 0.461 | E165: =元トマト!E165-E$2 -> 0.063 | F165: =元トマト!F165-F$2 -> 0.021 | G165: =元トマト!G165-G$2 -> 0.026 | H165: =元トマト!H165-H$2 -> 0.013 | I165: =元トマト!I165-I$2 -> 0.025
A166: 462 | B166: =元トマト!B166-B$2 -> 0.171 | C166: =元トマト!C166-C$2 -> 0.882 | D166: =元トマト!D166-D$2 -> 0.482 | E166: =元トマト!E166-E$2 -> 0.066 | F166: =元トマト!F166-F$2 -> 0.022 | G166: =元トマト!G166-G$2 -> 0.027 | H166: =元トマト!H166-H$2 -> 0.014 | I166: =元トマト!I166-I$2 -> 0.025
A167: 463 | B167: =元トマト!B167-B$2 -> 0.173 | C167: =元トマト!C167-C$2 -> 0.911 | D167: =元トマト!D167-D$2 -> 0.502 | E167: =元トマト!E167-E$2 -> 0.068 | F167: =元トマト!F167-F$2 -> 0.022 | G167: =元トマト!G167-G$2 -> 0.027 | H167: =元トマト!H167-H$2 -> 0.014 | I167: =元トマト!I167-I$2 -> 0.024
A168: 464 | B168: =元トマト!B168-B$2 -> 0.175 | C168: =元トマト!C168-C$2 -> 0.935 | D168: =元トマト!D168-D$2 -> 0.519 | E168: =元トマト!E168-E$2 -> 0.069 | F168: =元トマト!F168-F$2 -> 0.021 | G168: =元トマト!G168-G$2 -> 0.027 | H168: =元トマト!H168-H$2 -> 0.014 | I168: =元トマト!I168-I$2 -> 0.024
A169: 465 | B169: =元トマト!B169-B$2 -> 0.176 | C169: =元トマト!C169-C$2 -> 0.956 | D169: =元トマト!D169-D$2 -> 0.532 | E169: =元トマト!E169-E$2 -> 0.071 | F169: =元トマト!F169-F$2 -> 0.021 | G169: =元トマト!G169-G$2 -> 0.026 | H169: =元トマト!H169-H$2 -> 0.015 | I169: =元トマト!I169-I$2 -> 0.024
A170: 466 | B170: =元トマト!B170-B$2 -> 0.178 | C170: =元トマト!C170-C$2 -> 0.975 | D170: =元トマト!D170-D$2 -> 0.545 | E170: =元トマト!E170-E$2 -> 0.073 | F170: =元トマト!F170-F$2 -> 0.021 | G170: =元トマト!G170-G$2 -> 0.027 | H170: =元トマト!H170-H$2 -> 0.016 | I170: =元トマト!I170-I$2 -> 0.025
A171: 467 | B171: =元トマト!B171-B$2 -> 0.18 | C171: =元トマト!C171-C$2 -> 0.988 | D171: =元トマト!D171-D$2 -> 0.554 | E171: =元トマト!E171-E$2 -> 0.074 | F171: =元トマト!F171-F$2 -> 0.022 | G171: =元トマト!G171-G$2 -> 0.027 | H171: =元トマト!H171-H$2 -> 0.017 | I171: =元トマト!I171-I$2 -> 0.025
A172: 468 | B172: =元トマト!B172-B$2 -> 0.181 | C172: =元トマト!C172-C$2 -> 0.993 | D172: =元トマト!D172-D$2 -> 0.559 | E172: =元トマト!E172-E$2 -> 0.075 | F172: =元トマト!F172-F$2 -> 0.022 | G172: =元トマト!G172-G$2 -> 0.028 | H172: =元トマト!H172-H$2 -> 0.018 | I172: =元トマト!I172-I$2 -> 0.024
A173: 469 | B173: =元トマト!B173-B$2 -> 0.182 | C173: =元トマト!C173-C$2 -> 0.993 | D173: =元トマト!D173-D$2 -> 0.56 | E173: =元トマト!E173-E$2 -> 0.075 | F173: =元トマト!F173-F$2 -> 0.022 | G173: =元トマト!G173-G$2 -> 0.027 | H173: =元トマト!H173-H$2 -> 0.018 | I173: =元トマト!I173-I$2 -> 0.024
A174: 470 | B174: =元トマト!B174-B$2 -> 0.182 | C174: =元トマト!C174-C$2 -> 0.988 | D174: =元トマト!D174-D$2 -> 0.557 | E174: =元トマト!E174-E$2 -> 0.075 | F174: =元トマト!F174-F$2 -> 0.022 | G174: =元トマト!G174-G$2 -> 0.026 | H174: =元トマト!H174-H$2 -> 0.017 | I174: =元トマト!I174-I$2 -> 0.024
A175: 471 | B175: =元トマト!B175-B$2 -> 0.181 | C175: =元トマト!C175-C$2 -> 0.977 | D175: =元トマト!D175-D$2 -> 0.55 | E175: =元トマト!E175-E$2 -> 0.073 | F175: =元トマト!F175-F$2 -> 0.021 | G175: =元トマト!G175-G$2 -> 0.025 | H175: =元トマト!H175-H$2 -> 0.017 | I175: =元トマト!I175-I$2 -> 0.023
A176: 472 | B176: =元トマト!B176-B$2 -> 0.18 | C176: =元トマト!C176-C$2 -> 0.961 | D176: =元トマト!D176-D$2 -> 0.54 | E176: =元トマト!E176-E$2 -> 0.072 | F176: =元トマト!F176-F$2 -> 0.021 | G176: =元トマト!G176-G$2 -> 0.025 | H176: =元トマト!H176-H$2 -> 0.017 | I176: =元トマト!I176-I$2 -> 0.023
A177: 473 | B177: =元トマト!B177-B$2 -> 0.179 | C177: =元トマト!C177-C$2 -> 0.941 | D177: =元トマト!D177-D$2 -> 0.525 | E177: =元トマト!E177-E$2 -> 0.07 | F177: =元トマト!F177-F$2 -> 0.021 | G177: =元トマト!G177-G$2 -> 0.024 | H177: =元トマト!H177-H$2 -> 0.016 | I177: =元トマト!I177-I$2 -> 0.023
A178: 474 | B178: =元トマト!B178-B$2 -> 0.176 | C178: =元トマト!C178-C$2 -> 0.916 | D178: =元トマト!D178-D$2 -> 0.507 | E178: =元トマト!E178-E$2 -> 0.069 | F178: =元トマト!F178-F$2 -> 0.021 | G178: =元トマト!G178-G$2 -> 0.024 | H178: =元トマト!H178-H$2 -> 0.015 | I178: =元トマト!I178-I$2 -> 0.022
A179: 475 | B179: =元トマト!B179-B$2 -> 0.173 | C179: =元トマト!C179-C$2 -> 0.885 | D179: =元トマト!D179-D$2 -> 0.488 | E179: =元トマト!E179-E$2 -> 0.066 | F179: =元トマト!F179-F$2 -> 0.02 | G179: =元トマト!G179-G$2 -> 0.024 | H179: =元トマト!H179-H$2 -> 0.014 | I179: =元トマト!I179-I$2 -> 0.021
A180: 476 | B180: =元トマト!B180-B$2 -> 0.171 | C180: =元トマト!C180-C$2 -> 0.853 | D180: =元トマト!D180-D$2 -> 0.466 | E180: =元トマト!E180-E$2 -> 0.063 | F180: =元トマト!F180-F$2 -> 0.02 | G180: =元トマト!G180-G$2 -> 0.023 | H180: =元トマト!H180-H$2 -> 0.013 | I180: =元トマト!I180-I$2 -> 0.02
A181: 477 | B181: =元トマト!B181-B$2 -> 0.167 | C181: =元トマト!C181-C$2 -> 0.82 | D181: =元トマト!D181-D$2 -> 0.445 | E181: =元トマト!E181-E$2 -> 0.06 | F181: =元トマト!F181-F$2 -> 0.02 | G181: =元トマト!G181-G$2 -> 0.022 | H181: =元トマト!H181-H$2 -> 0.012 | I181: =元トマト!I181-I$2 -> 0.02
A182: 478 | B182: =元トマト!B182-B$2 -> 0.163 | C182: =元トマト!C182-C$2 -> 0.785 | D182: =元トマト!D182-D$2 -> 0.424 | E182: =元トマト!E182-E$2 -> 0.058 | F182: =元トマト!F182-F$2 -> 0.02 | G182: =元トマト!G182-G$2 -> 0.022 | H182: =元トマト!H182-H$2 -> 0.012 | I182: =元トマト!I182-I$2 -> 0.019
A183: 479 | B183: =元トマト!B183-B$2 -> 0.159 | C183: =元トマト!C183-C$2 -> 0.751 | D183: =元トマト!D183-D$2 -> 0.404 | E183: =元トマト!E183-E$2 -> 0.056 | F183: =元トマト!F183-F$2 -> 0.02 | G183: =元トマト!G183-G$2 -> 0.021 | H183: =元トマト!H183-H$2 -> 0.011 | I183: =元トマト!I183-I$2 -> 0.019
A184: 480 | B184: =元トマト!B184-B$2 -> 0.154 | C184: =元トマト!C184-C$2 -> 0.72 | D184: =元トマト!D184-D$2 -> 0.386 | E184: =元トマト!E184-E$2 -> 0.054 | F184: =元トマト!F184-F$2 -> 0.019 | G184: =元トマト!G184-G$2 -> 0.021 | H184: =元トマト!H184-H$2 -> 0.01 | I184: =元トマト!I184-I$2 -> 0.018
A185: 481 | B185: =元トマト!B185-B$2 -> 0.149 | C185: =元トマト!C185-C$2 -> 0.693 | D185: =元トマト!D185-D$2 -> 0.37 | E185: =元トマト!E185-E$2 -> 0.052 | F185: =元トマト!F185-F$2 -> 0.018 | G185: =元トマト!G185-G$2 -> 0.02 | H185: =元トマト!H185-H$2 -> 0.009 | I185: =元トマト!I185-I$2 -> 0.018
A186: 482 | B186: =元トマト!B186-B$2 -> 0.145 | C186: =元トマト!C186-C$2 -> 0.671 | D186: =元トマト!D186-D$2 -> 0.357 | E186: =元トマト!E186-E$2 -> 0.05 | F186: =元トマト!F186-F$2 -> 0.018 | G186: =元トマト!G186-G$2 -> 0.02 | H186: =元トマト!H186-H$2 -> 0.008 | I186: =元トマト!I186-I$2 -> 0.016
A187: 483 | B187: =元トマト!B187-B$2 -> 0.141 | C187: =元トマト!C187-C$2 -> 0.654 | D187: =元トマト!D187-D$2 -> 0.345 | E187: =元トマト!E187-E$2 -> 0.049 | F187: =元トマト!F187-F$2 -> 0.018 | G187: =元トマト!G187-G$2 -> 0.019 | H187: =元トマト!H187-H$2 -> 0.007 | I187: =元トマト!I187-I$2 -> 0.016
A188: 484 | B188: =元トマト!B188-B$2 -> 0.137 | C188: =元トマト!C188-C$2 -> 0.639 | D188: =元トマト!D188-D$2 -> 0.336 | E188: =元トマト!E188-E$2 -> 0.048 | F188: =元トマト!F188-F$2 -> 0.018 | G188: =元トマト!G188-G$2 -> 0.019 | H188: =元トマト!H188-H$2 -> 0.007 | I188: =元トマト!I188-I$2 -> 0.015
A189: 485 | B189: =元トマト!B189-B$2 -> 0.133 | C189: =元トマト!C189-C$2 -> 0.629 | D189: =元トマト!D189-D$2 -> 0.331 | E189: =元トマト!E189-E$2 -> 0.046 | F189: =元トマト!F189-F$2 -> 0.018 | G189: =元トマト!G189-G$2 -> 0.018 | H189: =元トマト!H189-H$2 -> 0.006 | I189: =元トマト!I189-I$2 -> 0.015
A190: 486 | B190: =元トマト!B190-B$2 -> 0.129 | C190: =元トマト!C190-C$2 -> 0.624 | D190: =元トマト!D190-D$2 -> 0.329 | E190: =元トマト!E190-E$2 -> 0.046 | F190: =元トマト!F190-F$2 -> 0.017 | G190: =元トマト!G190-G$2 -> 0.017 | H190: =元トマト!H190-H$2 -> 0.006 | I190: =元トマト!I190-I$2 -> 0.014
A191: 487 | B191: =元トマト!B191-B$2 -> 0.126 | C191: =元トマト!C191-C$2 -> 0.625 | D191: =元トマト!D191-D$2 -> 0.332 | E191: =元トマト!E191-E$2 -> 0.046 | F191: =元トマト!F191-F$2 -> 0.017 | G191: =元トマト!G191-G$2 -> 0.017 | H191: =元トマト!H191-H$2 -> 0.006 | I191: =元トマト!I191-I$2 -> 0.014
A192: 488 | B192: =元トマト!B192-B$2 -> 0.123 | C192: =元トマト!C192-C$2 -> 0.631 | D192: =元トマト!D192-D$2 -> 0.338 | E192: =元トマト!E192-E$2 -> 0.046 | F192: =元トマト!F192-F$2 -> 0.016 | G192: =元トマト!G192-G$2 -> 0.017 | H192: =元トマト!H192-H$2 -> 0.006 | I192: =元トマト!I192-I$2 -> 0.013
A193: 489 | B193: =元トマト!B193-B$2 -> 0.12 | C193: =元トマト!C193-C$2 -> 0.641 | D193: =元トマト!D193-D$2 -> 0.347 | E193: =元トマト!E193-E$2 -> 0.047 | F193: =元トマト!F193-F$2 -> 0.017 | G193: =元トマト!G193-G$2 -> 0.017 | H193: =元トマト!H193-H$2 -> 0.007 | I193: =元トマト!I193-I$2 -> 0.013
A194: 490 | B194: =元トマト!B194-B$2 -> 0.118 | C194: =元トマト!C194-C$2 -> 0.657 | D194: =元トマト!D194-D$2 -> 0.359 | E194: =元トマト!E194-E$2 -> 0.049 | F194: =元トマト!F194-F$2 -> 0.017 | G194: =元トマト!G194-G$2 -> 0.017 | H194: =元トマト!H194-H$2 -> 0.008 | I194: =元トマト!I194-I$2 -> 0.013
A195: 491 | B195: =元トマト!B195-B$2 -> 0.117 | C195: =元トマト!C195-C$2 -> 0.676 | D195: =元トマト!D195-D$2 -> 0.374 | E195: =元トマト!E195-E$2 -> 0.051 | F195: =元トマト!F195-F$2 -> 0.017 | G195: =元トマト!G195-G$2 -> 0.017 | H195: =元トマト!H195-H$2 -> 0.009 | I195: =元トマト!I195-I$2 -> 0.013
A196: 492 | B196: =元トマト!B196-B$2 -> 0.114 | C196: =元トマト!C196-C$2 -> 0.697 | D196: =元トマト!D196-D$2 -> 0.39 | E196: =元トマト!E196-E$2 -> 0.052 | F196: =元トマト!F196-F$2 -> 0.017 | G196: =元トマト!G196-G$2 -> 0.017 | H196: =元トマト!H196-H$2 -> 0.009 | I196: =元トマト!I196-I$2 -> 0.012
A197: 493 | B197: =元トマト!B197-B$2 -> 0.113 | C197: =元トマト!C197-C$2 -> 0.72 | D197: =元トマト!D197-D$2 -> 0.408 | E197: =元トマト!E197-E$2 -> 0.055 | F197: =元トマト!F197-F$2 -> 0.017 | G197: =元トマト!G197-G$2 -> 0.016 | H197: =元トマト!H197-H$2 -> 0.009 | I197: =元トマト!I197-I$2 -> 0.011
A198: 494 | B198: =元トマト!B198-B$2 -> 0.111 | C198: =元トマト!C198-C$2 -> 0.745 | D198: =元トマト!D198-D$2 -> 0.425 | E198: =元トマト!E198-E$2 -> 0.057 | F198: =元トマト!F198-F$2 -> 0.016 | G198: =元トマト!G198-G$2 -> 0.015 | H198: =元トマト!H198-H$2 -> 0.01 | I198: =元トマト!I198-I$2 -> 0.011
A199: 495 | B199: =元トマト!B199-B$2 -> 0.11 | C199: =元トマト!C199-C$2 -> 0.767 | D199: =元トマト!D199-D$2 -> 0.442 | E199: =元トマト!E199-E$2 -> 0.058 | F199: =元トマト!F199-F$2 -> 0.017 | G199: =元トマト!G199-G$2 -> 0.015 | H199: =元トマト!H199-H$2 -> 0.011 | I199: =元トマト!I199-I$2 -> 0.011
A200: 496 | B200: =元トマト!B200-B$2 -> 0.109 | C200: =元トマト!C200-C$2 -> 0.787 | D200: =元トマト!D200-D$2 -> 0.457 | E200: =元トマト!E200-E$2 -> 0.06 | F200: =元トマト!F200-F$2 -> 0.017 | G200: =元トマト!G200-G$2 -> 0.015 | H200: =元トマト!H200-H$2 -> 0.012 | I200: =元トマト!I200-I$2 -> 0.011
A201: 497 | B201: =元トマト!B201-B$2 -> 0.108 | C201: =元トマト!C201-C$2 -> 0.804 | D201: =元トマト!D201-D$2 -> 0.471 | E201: =元トマト!E201-E$2 -> 0.062 | F201: =元トマト!F201-F$2 -> 0.017 | G201: =元トマト!G201-G$2 -> 0.015 | H201: =元トマト!H201-H$2 -> 0.012 | I201: =元トマト!I201-I$2 -> 0.01
... 303 more rows

Sheet 元トマト
A3: 波長/nm | B3: E:\spectrum1125\トマト０１.txt | C3: E:\spectrum1125\トマト０２.txt | D3: E:\spectrum1125\トマト０３.txt | E3: E:\spectrum1125\トマト０４.txt | F3: E:\spectrum1125\トマト０５.txt | G3: E:\spectrum1125\トマト０６.txt | H3: E:\spectrum1125\トマト０７.txt | I3: E:\spectrum1125\トマト０８.txt
A4: 300 | B4: -1.081 | C4: -0.694 | D4: -0.499 | E4: -0.593 | F4: -0.405 | G4: 0.057 | H4: 0.005 | I4: 0.068
A5: 301 | B5: -1.141 | C5: -0.769 | D5: -0.566 | E5: -0.659 | F5: -0.467 | G5: 0.069 | H5: 0.013 | I5: 0.082
A6: 302 | B6: -1.196 | C6: -0.84 | D6: -0.64 | E6: -0.726 | F6: -0.536 | G6: 0.069 | H6: 0.015 | I6: 0.088
A7: 303 | B7: -1.249 | C7: -0.918 | D7: -0.72 | E7: -0.799 | F7: -0.609 | G7: 0.085 | H7: 0.016 | I7: 0.103
A8: 304 | B8: -1.298 | C8: -0.988 | D8: -0.795 | E8: -0.869 | F8: -0.679 | G8: 0.123 | H8: 0.036 | I8: 0.129
A9: 305 | B9: -1.316 | C9: -1.027 | D9: -0.843 | E9: -0.911 | F9: -0.727 | G9: 0.151 | H9: 0.053 | I9: 0.169
A10: 306 | B10: -1.322 | C10: -1.054 | D10: -0.885 | E10: -0.944 | F10: -0.771 | G10: 0.173 | H10: 0.053 | I10: 0.214
A11: 307 | B11: -1.304 | C11: -1.057 | D11: -0.901 | E11: -0.955 | F11: -0.793 | G11: 0.24 | H11: 0.065 | I11: 0.294
A12: 308 | B12: -1.281 | C12: -1.051 | D12: -0.907 | E12: -0.958 | F12: -0.804 | G12: 0.325 | H12: 0.074 | I12: 0.385
A13: 309 | B13: -1.238 | C13: -1.024 | D13: -0.891 | E13: -0.94 | F13: -0.795 | G13: 0.409 | H13: 0.081 | I13: 0.475
A14: 310 | B14: -1.168 | C14: -0.969 | D14: -0.852 | E14: -0.897 | F14: -0.762 | G14: 0.495 | H14: 0.089 | I14: 0.577
A15: 311 | B15: -1.095 | C15: -0.908 | D15: -0.805 | E15: -0.847 | F15: -0.722 | G15: 0.579 | H15: 0.088 | I15: 0.686
A16: 312 | B16: -1.016 | C16: -0.843 | D16: -0.753 | E16: -0.79 | F16: -0.675 | G16: 0.657 | H16: 0.084 | I16: 0.801
A17: 313 | B17: -0.922 | C17: -0.764 | D17: -0.687 | E17: -0.722 | F17: -0.617 | G17: 0.702 | H17: 0.077 | I17: 0.921
A18: 314 | B18: -0.835 | C18: -0.687 | D18: -0.623 | E18: -0.656 | F18: -0.56 | G18: 0.714 | H18: 0.069 | I18: 1.012
A19: 315 | B19: -0.745 | C19: -0.609 | D19: -0.556 | E19: -0.587 | F19: -0.5 | G19: 0.7 | H19: 0.064 | I19: 1.124
A20: 316 | B20: -0.647 | C20: -0.524 | D20: -0.483 | E20: -0.513 | F20: -0.436 | G20: 0.662 | H20: 0.056 | I20: 1.256
A21: 317 | B21: -0.557 | C21: -0.446 | D21: -0.417 | E21: -0.444 | F21: -0.375 | G21: 0.598 | H21: 0.047 | I21: 1.364
A22: 318 | B22: -0.481 | C22: -0.379 | D22: -0.361 | E22: -0.386 | F22: -0.325 | G22: 0.532 | H22: 0.041 | I22: 1.421
A23: 319 | B23: -0.411 | C23: -0.314 | D23: -0.308 | E23: -0.331 | F23: -0.277 | G23: 0.465 | H23: 0.034 | I23: 1.423
A24: 320 | B24: -0.339 | C24: -0.251 | D24: -0.255 | E24: -0.277 | F24: -0.23 | G24: 0.395 | H24: 0.027 | I24: 1.354
A25: 321 | B25: -0.276 | C25: -0.196 | D25: -0.207 | E25: -0.228 | F25: -0.188 | G25: 0.331 | H25: 0.021 | I25: 1.228
A26: 322 | B26: -0.224 | C26: -0.15 | D26: -0.167 | E26: -0.188 | F26: -0.153 | G26: 0.279 | H26: 0.018 | I26: 1.076
A27: 323 | B27: -0.179 | C27: -0.107 | D27: -0.133 | E27: -0.153 | F27: -0.122 | G27: 0.235 | H27: 0.016 | I27: 0.911
A28: 324 | B28: -0.136 | C28: -0.067 | D28: -0.101 | E28: -0.122 | F28: -0.093 | G28: 0.192 | H28: 0.012 | I28: 0.74
A29: 325 | B29: -0.102 | C29: -0.035 | D29: -0.076 | E29: -0.097 | F29: -0.071 | G29: 0.158 | H29: 0.009 | I29: 0.603
A30: 326 | B30: -0.073 | C30: -0.009 | D30: -0.054 | E30: -0.075 | F30: -0.053 | G30: 0.13 | H30: 0.007 | I30: 0.488
A31: 327 | B31: -0.048 | C31: 0.015 | D31: -0.035 | E31: -0.057 | F31: -0.037 | G31: 0.105 | H31: 0.005 | I31: 0.385
A32: 328 | B32: -0.028 | C32: 0.034 | D32: -0.02 | E32: -0.042 | F32: -0.025 | G32: 0.086 | H32: 0.004 | I32: 0.303
A33: 329 | B33: -0.013 | C33: 0.049 | D33: -0.008 | E33: -0.031 | F33: -0.015 | G33: 0.073 | H33: 0.004 | I33: 0.244
A34: 330 | B34: -0.002 | C34: 0.06 | D34: 0 | E34: -0.023 | F34: -0.007 | G34: 0.063 | H34: 0.002 | I34: 0.198
A35: 331 | B35: 0.006 | C35: 0.069 | D35: 0.008 | E35: -0.016 | F35: -0.002 | G35: 0.053 | H35: 0.001 | I35: 0.156
A36: 332 | B36: 0.013 | C36: 0.077 | D36: 0.014 | E36: -0.011 | F36: 0.002 | G36: 0.045 | H36: 0 | I36: 0.124
A37: 333 | B37: 0.019 | C37: 0.083 | D37: 0.02 | E37: -0.006 | F37: 0.006 | G37: 0.041 | H37: 0 | I37: 0.101
A38: 334 | B38: 0.022 | C38: 0.089 | D38: 0.024 | E38: -0.003 | F38: 0.009 | G38: 0.036 | H38: 0 | I38: 0.082
A39: 335 | B39: 0.025 | C39: 0.095 | D39: 0.028 | E39: 0 | F39: 0.011 | G39: 0.033 | H39: 0 | I39: 0.066
A40: 336 | B40: 0.027 | C40: 0.1 | D40: 0.031 | E40: 0.003 | F40: 0.013 | G40: 0.03 | H40: 0 | I40: 0.054
A41: 337 | B41: 0.03 | C41: 0.105 | D41: 0.035 | E41: 0.004 | F41: 0.014 | G41: 0.028 | H41: 0 | I41: 0.045
A42: 338 | B42: 0.032 | C42: 0.111 | D42: 0.039 | E42: 0.006 | F42: 0.015 | G42: 0.026 | H42: 0 | I42: 0.037
A43: 339 | B43: 0.035 | C43: 0.117 | D43: 0.043 | E43: 0.006 | F43: 0.016 | G43: 0.024 | H43: -0.001 | I43: 0.03
A44: 340 | B44: 0.037 | C44: 0.123 | D44: 0.046 | E44: 0.007 | F44: 0.017 | G44: 0.023 | H44: 0 | I44: 0.026
A45: 341 | B45: 0.041 | C45: 0.129 | D45: 0.049 | E45: 0.008 | F45: 0.018 | G45: 0.022 | H45: 0 | I45: 0.023
A46: 342 | B46: 0.045 | C46: 0.135 | D46: 0.051 | E46: 0.009 | F46: 0.019 | G46: 0.022 | H46: 0.001 | I46: 0.02
A47: 343 | B47: 0.048 | C47: 0.14 | D47: 0.053 | E47: 0.01 | F47: 0.02 | G47: 0.022 | H47: 0.001 | I47: 0.018
A48: 344 | B48: 0.05 | C48: 0.143 | D48: 0.055 | E48: 0.01 | F48: 0.02 | G48: 0.021 | H48: 0.001 | I48: 0.016
A49: 345 | B49: 0.051 | C49: 0.145 | D49: 0.056 | E49: 0.011 | F49: 0.02 | G49: 0.021 | H49: 0.001 | I49: 0.015
A50: 346 | B50: 0.053 | C50: 0.147 | D50: 0.056 | E50: 0.011 | F50: 0.021 | G50: 0.021 | H50: 0.001 | I50: 0.014
A51: 347 | B51: 0.053 | C51: 0.147 | D51: 0.056 | E51: 0.012 | F51: 0.021 | G51: 0.021 | H51: 0.001 | I51: 0.014
A52: 348 | B52: 0.052 | C52: 0.146 | D52: 0.056 | E52: 0.012 | F52: 0.021 | G52: 0.021 | H52: 0.001 | I52: 0.013
A53: 349 | B53: 0.051 | C53: 0.145 | D53: 0.056 | E53: 0.012 | F53: 0.02 | G53: 0.021 | H53: 0.001 | I53: 0.013
A54: 350 | B54: 0.05 | C54: 0.144 | D54: 0.056 | E54: 0.012 | F54: 0.02 | G54: 0.021 | H54: 0.001 | I54: 0.012
A55: 351 | B55: 0.047 | C55: 0.144 | D55: 0.056 | E55: 0.012 | F55: 0.02 | G55: 0.022 | H55: 0.001 | I55: 0.012
A56: 352 | B56: 0.045 | C56: 0.144 | D56: 0.057 | E56: 0.012 | F56: 0.02 | G56: 0.021 | H56: 0.002 | I56: 0.012
A57: 353 | B57: 0.044 | C57: 0.145 | D57: 0.059 | E57: 0.012 | F57: 0.019 | G57: 0.021 | H57: 0.001 | I57: 0.012
A58: 354 | B58: 0.042 | C58: 0.148 | D58: 0.062 | E58: 0.012 | F58: 0.019 | G58: 0.021 | H58: 0.001 | I58: 0.012
A59: 355 | B59: 0.041 | C59: 0.153 | D59: 0.064 | E59: 0.013 | F59: 0.019 | G59: 0.021 | H59: 0.001 | I59: 0.012
A60: 356 | B60: 0.041 | C60: 0.159 | D60: 0.068 | E60: 0.013 | F60: 0.019 | G60: 0.022 | H60: 0.001 | I60: 0.012
A61: 357 | B61: 0.041 | C61: 0.165 | D61: 0.072 | E61: 0.013 | F61: 0.018 | G61: 0.022 | H61: 0.001 | I61: 0.012
A62: 358 | B62: 0.042 | C62: 0.17 | D62: 0.075 | E62: 0.013 | F62: 0.018 | G62: 0.021 | H62: 0.001 | I62: 0.012
A63: 359 | B63: 0.044 | C63: 0.175 | D63: 0.077 | E63: 0.014 | F63: 0.019 | G63: 0.022 | H63: 0.002 | I63: 0.012
A64: 360 | B64: 0.046 | C64: 0.178 | D64: 0.078 | E64: 0.014 | F64: 0.019 | G64: 0.022 | H64: 0.002 | I64: 0.012
A65: 361 | B65: 0.049 | C65: 0.178 | D65: 0.078 | E65: 0.014 | F65: 0.02 | G65: 0.022 | H65: 0.003 | I65: 0.012
A66: 362 | B66: 0.051 | C66: 0.177 | D66: 0.076 | E66: 0.014 | F66: 0.02 | G66: 0.022 | H66: 0.002 | I66: 0.012
A67: 363 | B67: 0.053 | C67: 0.174 | D67: 0.073 | E67: 0.014 | F67: 0.021 | G67: 0.022 | H67: 0.002 | I67: 0.012
A68: 364 | B68: 0.054 | C68: 0.169 | D68: 0.069 | E68: 0.014 | F68: 0.021 | G68: 0.022 | H68: 0.002 | I68: 0.012
A69: 365 | B69: 0.055 | C69: 0.164 | D69: 0.066 | E69: 0.014 | F69: 0.021 | G69: 0.022 | H69: 0.002 | I69: 0.013
A70: 366 | B70: 0.055 | C70: 0.158 | D70: 0.062 | E70: 0.014 | F70: 0.021 | G70: 0.022 | H70: 0.003 | I70: 0.013
A71: 367 | B71: 0.055 | C71: 0.152 | D71: 0.058 | E71: 0.014 | F71: 0.021 | G71: 0.023 | H71: 0.003 | I71: 0.013
A72: 368 | B72: 0.053 | C72: 0.145 | D72: 0.055 | E72: 0.014 | F72: 0.021 | G72: 0.024 | H72: 0.003 | I72: 0.014
A73: 369 | B73: 0.051 | C73: 0.14 | D73: 0.052 | E73: 0.013 | F73: 0.02 | G73: 0.023 | H73: 0.003 | I73: 0.014
A74: 370 | B74: 0.049 | C74: 0.136 | D74: 0.05 | E74: 0.013 | F74: 0.019 | G74: 0.024 | H74: 0.003 | I74: 0.014
A75: 371 | B75: 0.046 | C75: 0.131 | D75: 0.048 | E75: 0.012 | F75: 0.019 | G75: 0.024 | H75: 0.002 | I75: 0.014
A76: 372 | B76: 0.043 | C76: 0.128 | D76: 0.046 | E76: 0.012 | F76: 0.019 | G76: 0.024 | H76: 0.002 | I76: 0.014
A77: 373 | B77: 0.042 | C77: 0.126 | D77: 0.045 | E77: 0.011 | F77: 0.018 | G77: 0.024 | H77: 0.002 | I77: 0.014
A78: 374 | B78: 0.04 | C78: 0.125 | D78: 0.045 | E78: 0.011 | F78: 0.018 | G78: 0.024 | H78: 0.002 | I78: 0.014
A79: 375 | B79: 0.039 | C79: 0.125 | D79: 0.045 | E79: 0.011 | F79: 0.017 | G79: 0.025 | H79: 0.003 | I79: 0.014
A80: 376 | B80: 0.039 | C80: 0.126 | D80: 0.046 | E80: 0.011 | F80: 0.017 | G80: 0.025 | H80: 0.003 | I80: 0.015
A81: 377 | B81: 0.039 | C81: 0.128 | D81: 0.047 | E81: 0.012 | F81: 0.017 | G81: 0.025 | H81: 0.003 | I81: 0.015
A82: 378 | B82: 0.039 | C82: 0.13 | D82: 0.048 | E82: 0.012 | F82: 0.017 | G82: 0.025 | H82: 0.003 | I82: 0.015
A83: 379 | B83: 0.038 | C83: 0.132 | D83: 0.049 | E83: 0.012 | F83: 0.017 | G83: 0.025 | H83: 0.003 | I83: 0.015
A84: 380 | B84: 0.038 | C84: 0.134 | D84: 0.05 | E84: 0.012 | F84: 0.017 | G84: 0.025 | H84: 0.003 | I84: 0.015
A85: 381 | B85: 0.038 | C85: 0.138 | D85: 0.052 | E85: 0.012 | F85: 0.017 | G85: 0.025 | H85: 0.003 | I85: 0.015
A86: 382 | B86: 0.04 | C86: 0.142 | D86: 0.054 | E86: 0.013 | F86: 0.017 | G86: 0.025 | H86: 0.004 | I86: 0.015
A87: 383 | B87: 0.041 | C87: 0.147 | D87: 0.057 | E87: 0.013 | F87: 0.016 | G87: 0.026 | H87: 0.004 | I87: 0.016
A88: 384 | B88: 0.042 | C88: 0.152 | D88: 0.059 | E88: 0.014 | F88: 0.016 | G88: 0.026 | H88: 0.004 | I88: 0.016
A89: 385 | B89: 0.043 | C89: 0.157 | D89: 0.062 | E89: 0.014 | F89: 0.016 | G89: 0.025 | H89: 0.004 | I89: 0.015
A90: 386 | B90: 0.045 | C90: 0.163 | D90: 0.066 | E90: 0.014 | F90: 0.017 | G90: 0.026 | H90: 0.004 | I90: 0.016
A91: 387 | B91: 0.047 | C91: 0.17 | D91: 0.069 | E91: 0.015 | F91: 0.017 | G91: 0.027 | H91: 0.005 | I91: 0.017
A92: 388 | B92: 0.049 | C92: 0.177 | D92: 0.073 | E92: 0.015 | F92: 0.017 | G92: 0.027 | H92: 0.005 | I92: 0.017
A93: 389 | B93: 0.05 | C93: 0.182 | D93: 0.075 | E93: 0.015 | F93: 0.017 | G93: 0.028 | H93: 0.005 | I93: 0.017
A94: 390 | B94: 0.052 | C94: 0.189 | D94: 0.077 | E94: 0.016 | F94: 0.017 | G94: 0.028 | H94: 0.005 | I94: 0.017
A95: 391 | B95: 0.054 | C95: 0.196 | D95: 0.081 | E95: 0.016 | F95: 0.018 | G95: 0.028 | H95: 0.005 | I95: 0.018
A96: 392 | B96: 0.056 | C96: 0.202 | D96: 0.084 | E96: 0.017 | F96: 0.018 | G96: 0.029 | H96: 0.006 | I96: 0.019
A97: 393 | B97: 0.059 | C97: 0.209 | D97: 0.087 | E97: 0.017 | F97: 0.017 | G97: 0.029 | H97: 0.006 | I97: 0.019
A98: 394 | B98: 0.061 | C98: 0.215 | D98: 0.09 | E98: 0.017 | F98: 0.017 | G98: 0.029 | H98: 0.006 | I98: 0.02
A99: 395 | B99: 0.063 | C99: 0.222 | D99: 0.093 | E99: 0.018 | F99: 0.018 | G99: 0.03 | H99: 0.006 | I99: 0.02
A100: 396 | B100: 0.065 | C100: 0.228 | D100: 0.095 | E100: 0.018 | F100: 0.018 | G100: 0.03 | H100: 0.006 | I100: 0.02
A101: 397 | B101: 0.066 | C101: 0.234 | D101: 0.097 | E101: 0.018 | F101: 0.018 | G101: 0.03 | H101: 0.006 | I101: 0.021
A102: 398 | B102: 0.068 | C102: 0.239 | D102: 0.1 | E102: 0.018 | F102: 0.018 | G102: 0.031 | H102: 0.007 | I102: 0.021
A103: 399 | B103: 0.07 | C103: 0.245 | D103: 0.103 | E103: 0.019 | F103: 0.018 | G103: 0.031 | H103: 0.007 | I103: 0.021
A104: 400 | B104: 0.071 | C104: 0.252 | D104: 0.107 | E104: 0.019 | F104: 0.018 | G104: 0.032 | H104: 0.007 | I104: 0.022
A105: 401 | B105: 0.072 | C105: 0.259 | D105: 0.11 | E105: 0.02 | F105: 0.019 | G105: 0.032 | H105: 0.008 | I105: 0.022
A106: 402 | B106: 0.074 | C106: 0.267 | D106: 0.115 | E106: 0.02 | F106: 0.018 | G106: 0.032 | H106: 0.008 | I106: 0.021
A107: 403 | B107: 0.075 | C107: 0.277 | D107: 0.12 | E107: 0.02 | F107: 0.018 | G107: 0.032 | H107: 0.008 | I107: 0.021
A108: 404 | B108: 0.077 | C108: 0.287 | D108: 0.126 | E108: 0.021 | F108: 0.018 | G108: 0.033 | H108: 0.008 | I108: 0.022
A109: 405 | B109: 0.079 | C109: 0.297 | D109: 0.132 | E109: 0.022 | F109: 0.018 | G109: 0.033 | H109: 0.008 | I109: 0.022
A110: 406 | B110: 0.081 | C110: 0.307 | D110: 0.139 | E110: 0.023 | F110: 0.018 | G110: 0.033 | H110: 0.009 | I110: 0.023
A111: 407 | B111: 0.083 | C111: 0.319 | D111: 0.145 | E111: 0.024 | F111: 0.019 | G111: 0.034 | H111: 0.01 | I111: 0.023
A112: 408 | B112: 0.084 | C112: 0.331 | D112: 0.151 | E112: 0.024 | F112: 0.019 | G112: 0.033 | H112: 0.01 | I112: 0.023
A113: 409 | B113: 0.088 | C113: 0.344 | D113: 0.158 | E113: 0.025 | F113: 0.018 | G113: 0.033 | H113: 0.01 | I113: 0.023
A114: 410 | B114: 0.091 | C114: 0.358 | D114: 0.166 | E114: 0.026 | F114: 0.018 | G114: 0.034 | H114: 0.01 | I114: 0.024
A115: 411 | B115: 0.094 | C115: 0.372 | D115: 0.173 | E115: 0.027 | F115: 0.019 | G115: 0.034 | H115: 0.011 | I115: 0.024
A116: 412 | B116: 0.096 | C116: 0.383 | D116: 0.179 | E116: 0.028 | F116: 0.019 | G116: 0.034 | H116: 0.011 | I116: 0.024
A117: 413 | B117: 0.099 | C117: 0.395 | D117: 0.185 | E117: 0.029 | F117: 0.019 | G117: 0.035 | H117: 0.011 | I117: 0.025
A118: 414 | B118: 0.103 | C118: 0.406 | D118: 0.191 | E118: 0.029 | F118: 0.019 | G118: 0.035 | H118: 0.012 | I118: 0.025
A119: 415 | B119: 0.105 | C119: 0.416 | D119: 0.195 | E119: 0.028 | F119: 0.019 | G119: 0.034 | H119: 0.012 | I119: 0.025
A120: 416 | B120: 0.109 | C120: 0.425 | D120: 0.2 | E120: 0.029 | F120: 0.02 | G120: 0.035 | H120: 0.013 | I120: 0.026
A121: 417 | B121: 0.113 | C121: 0.433 | D121: 0.204 | E121: 0.029 | F121: 0.02 | G121: 0.036 | H121: 0.013 | I121: 0.027
A122: 418 | B122: 0.115 | C122: 0.441 | D122: 0.206 | E122: 0.03 | F122: 0.02 | G122: 0.036 | H122: 0.013 | I122: 0.027
A123: 419 | B123: 0.117 | C123: 0.446 | D123: 0.208 | E123: 0.031 | F123: 0.02 | G123: 0.036 | H123: 0.013 | I123: 0.027
A124: 420 | B124: 0.12 | C124: 0.452 | D124: 0.21 | E124: 0.031 | F124: 0.02 | G124: 0.036 | H124: 0.013 | I124: 0.027
A125: 421 | B125: 0.123 | C125: 0.459 | D125: 0.214 | E125: 0.032 | F125: 0.02 | G125: 0.037 | H125: 0.014 | I125: 0.028
A126: 422 | B126: 0.124 | C126: 0.465 | D126: 0.217 | E126: 0.032 | F126: 0.02 | G126: 0.037 | H126: 0.013 | I126: 0.027
A127: 423 | B127: 0.126 | C127: 0.472 | D127: 0.219 | E127: 0.032 | F127: 0.02 | G127: 0.037 | H127: 0.014 | I127: 0.027
A128: 424 | B128: 0.127 | C128: 0.48 | D128: 0.224 | E128: 0.033 | F128: 0.021 | G128: 0.037 | H128: 0.014 | I128: 0.027
A129: 425 | B129: 0.128 | C129: 0.487 | D129: 0.228 | E129: 0.033 | F129: 0.02 | G129: 0.036 | H129: 0.014 | I129: 0.027
A130: 426 | B130: 0.129 | C130: 0.496 | D130: 0.233 | E130: 0.033 | F130: 0.02 | G130: 0.036 | H130: 0.014 | I130: 0.027
A131: 427 | B131: 0.13 | C131: 0.507 | D131: 0.241 | E131: 0.034 | F131: 0.02 | G131: 0.035 | H131: 0.014 | I131: 0.027
A132: 428 | B132: 0.132 | C132: 0.522 | D132: 0.249 | E132: 0.035 | F132: 0.021 | G132: 0.036 | H132: 0.015 | I132: 0.027
A133: 429 | B133: 0.134 | C133: 0.539 | D133: 0.259 | E133: 0.036 | F133: 0.021 | G133: 0.036 | H133: 0.015 | I133: 0.028
A134: 430 | B134: 0.136 | C134: 0.558 | D134: 0.27 | E134: 0.038 | F134: 0.021 | G134: 0.037 | H134: 0.015 | I134: 0.028
A135: 431 | B135: 0.137 | C135: 0.576 | D135: 0.281 | E135: 0.038 | F135: 0.02 | G135: 0.036 | H135: 0.015 | I135: 0.027
A136: 432 | B136: 0.14 | C136: 0.594 | D136: 0.293 | E136: 0.039 | F136: 0.02 | G136: 0.036 | H136: 0.015 | I136: 0.026
A137: 433 | B137: 0.142 | C137: 0.613 | D137: 0.305 | E137: 0.041 | F137: 0.019 | G137: 0.036 | H137: 0.016 | I137: 0.026
A138: 434 | B138: 0.145 | C138: 0.637 | D138: 0.32 | E138: 0.043 | F138: 0.02 | G138: 0.036 | H138: 0.016 | I138: 0.026
A139: 435 | B139: 0.148 | C139: 0.659 | D139: 0.332 | E139: 0.045 | F139: 0.02 | G139: 0.036 | H139: 0.017 | I139: 0.027
A140: 436 | B140: 0.152 | C140: 0.679 | D140: 0.344 | E140: 0.046 | F140: 0.021 | G140: 0.037 | H140: 0.018 | I140: 0.028
A141: 437 | B141: 0.155 | C141: 0.698 | D141: 0.355 | E141: 0.047 | F141: 0.022 | G141: 0.037 | H141: 0.019 | I141: 0.028
A142: 438 | B142: 0.158 | C142: 0.713 | D142: 0.363 | E142: 0.047 | F142: 0.021 | G142: 0.036 | H142: 0.019 | I142: 0.027
A143: 439 | B143: 0.161 | C143: 0.724 | D143: 0.37 | E143: 0.047 | F143: 0.02 | G143: 0.035 | H143: 0.019 | I143: 0.026
A144: 440 | B144: 0.164 | C144: 0.733 | D144: 0.374 | E144: 0.048 | F144: 0.02 | G144: 0.036 | H144: 0.019 | I144: 0.027
A145: 441 | B145: 0.166 | C145: 0.742 | D145: 0.378 | E145: 0.05 | F145: 0.021 | G145: 0.037 | H145: 0.02 | I145: 0.027
A146: 442 | B146: 0.168 | C146: 0.746 | D146: 0.38 | E146: 0.05 | F146: 0.021 | G146: 0.037 | H146: 0.02 | I146: 0.027
A147: 443 | B147: 0.17 | C147: 0.746 | D147: 0.38 | E147: 0.049 | F147: 0.02 | G147: 0.037 | H147: 0.02 | I147: 0.028
A148: 444 | B148: 0.172 | C148: 0.745 | D148: 0.378 | E148: 0.049 | F148: 0.021 | G148: 0.036 | H148: 0.02 | I148: 0.027
A149: 445 | B149: 0.172 | C149: 0.743 | D149: 0.375 | E149: 0.049 | F149: 0.021 | G149: 0.037 | H149: 0.02 | I149: 0.028
A150: 446 | B150: 0.173 | C150: 0.738 | D150: 0.371 | E150: 0.048 | F150: 0.021 | G150: 0.037 | H150: 0.02 | I150: 0.028
A151: 447 | B151: 0.174 | C151: 0.73 | D151: 0.366 | E151: 0.048 | F151: 0.021 | G151: 0.037 | H151: 0.021 | I151: 0.029
A152: 448 | B152: 0.173 | C152: 0.724 | D152: 0.363 | E152: 0.048 | F152: 0.021 | G152: 0.037 | H152: 0.02 | I152: 0.028
A153: 449 | B153: 0.172 | C153: 0.719 | D153: 0.359 | E153: 0.046 | F153: 0.02 | G153: 0.036 | H153: 0.019 | I153: 0.027
A154: 450 | B154: 0.171 | C154: 0.714 | D154: 0.355 | E154: 0.046 | F154: 0.02 | G154: 0.036 | H154: 0.019 | I154: 0.026
A155: 451 | B155: 0.171 | C155: 0.71 | D155: 0.352 | E155: 0.046 | F155: 0.02 | G155: 0.036 | H155: 0.019 | I155: 0.026
A156: 452 | B156: 0.17 | C156: 0.708 | D156: 0.35 | E156: 0.045 | F156: 0.019 | G156: 0.034 | H156: 0.019 | I156: 0.026
A157: 453 | B157: 0.17 | C157: 0.709 | D157: 0.353 | E157: 0.046 | F157: 0.02 | G157: 0.034 | H157: 0.02 | I157: 0.025
A158: 454 | B158: 0.169 | C158: 0.714 | D158: 0.358 | E158: 0.046 | F158: 0.02 | G158: 0.034 | H158: 0.019 | I158: 0.025
A159: 455 | B159: 0.168 | C159: 0.726 | D159: 0.365 | E159: 0.047 | F159: 0.02 | G159: 0.034 | H159: 0.019 | I159: 0.024
A160: 456 | B160: 0.169 | C160: 0.742 | D160: 0.375 | E160: 0.048 | F160: 0.019 | G160: 0.033 | H160: 0.02 | I160: 0.024
A161: 457 | B161: 0.169 | C161: 0.76 | D161: 0.387 | E161: 0.049 | F161: 0.02 | G161: 0.033 | H161: 0.019 | I161: 0.024
A162: 458 | B162: 0.169 | C162: 0.779 | D162: 0.4 | E162: 0.051 | F162: 0.019 | G162: 0.033 | H162: 0.02 | I162: 0.023
A163: 459 | B163: 0.17 | C163: 0.804 | D163: 0.415 | E163: 0.052 | F163: 0.019 | G163: 0.033 | H163: 0.021 | I163: 0.023
A164: 460 | B164: 0.171 | C164: 0.829 | D164: 0.433 | E164: 0.054 | F164: 0.02 | G164: 0.033 | H164: 0.022 | I164: 0.023
A165: 461 | B165: 0.171 | C165: 0.858 | D165: 0.452 | E165: 0.056 | F165: 0.019 | G165: 0.032 | H165: 0.023 | I165: 0.023
A166: 462 | B166: 0.174 | C166: 0.89 | D166: 0.473 | E166: 0.059 | F166: 0.02 | G166: 0.033 | H166: 0.024 | I166: 0.023
A167: 463 | B167: 0.176 | C167: 0.919 | D167: 0.493 | E167: 0.061 | F167: 0.02 | G167: 0.033 | H167: 0.024 | I167: 0.022
A168: 464 | B168: 0.178 | C168: 0.943 | D168: 0.51 | E168: 0.062 | F168: 0.019 | G168: 0.033 | H168: 0.024 | I168: 0.022
A169: 465 | B169: 0.179 | C169: 0.964 | D169: 0.523 | E169: 0.064 | F169: 0.019 | G169: 0.032 | H169: 0.025 | I169: 0.022
A170: 466 | B170: 0.181 | C170: 0.983 | D170: 0.536 | E170: 0.066 | F170: 0.019 | G170: 0.033 | H170: 0.026 | I170: 0.023
A171: 467 | B171: 0.183 | C171: 0.996 | D171: 0.545 | E171: 0.067 | F171: 0.02 | G171: 0.033 | H171: 0.027 | I171: 0.023
A172: 468 | B172: 0.184 | C172: 1.001 | D172: 0.55 | E172: 0.068 | F172: 0.02 | G172: 0.034 | H172: 0.028 | I172: 0.022
A173: 469 | B173: 0.185 | C173: 1.001 | D173: 0.551 | E173: 0.068 | F173: 0.02 | G173: 0.033 | H173: 0.028 | I173: 0.022
A174: 470 | B174: 0.185 | C174: 0.996 | D174: 0.548 | E174: 0.068 | F174: 0.02 | G174: 0.032 | H174: 0.027 | I174: 0.022
A175: 471 | B175: 0.184 | C175: 0.985 | D175: 0.541 | E175: 0.066 | F175: 0.019 | G175: 0.031 | H175: 0.027 | I175: 0.021
A176: 472 | B176: 0.183 | C176: 0.969 | D176: 0.531 | E176: 0.065 | F176: 0.019 | G176: 0.031 | H176: 0.027 | I176: 0.021
A177: 473 | B177: 0.182 | C177: 0.949 | D177: 0.516 | E177: 0.063 | F177: 0.019 | G177: 0.03 | H177: 0.026 | I177: 0.021
A178: 474 | B178: 0.179 | C178: 0.924 | D178: 0.498 | E178: 0.062 | F178: 0.019 | G178: 0.03 | H178: 0.025 | I178: 0.02
A179: 475 | B179: 0.176 | C179: 0.893 | D179: 0.479 | E179: 0.059 | F179: 0.018 | G179: 0.03 | H179: 0.024 | I179: 0.019
A180: 476 | B180: 0.174 | C180: 0.861 | D180: 0.457 | E180: 0.056 | F180: 0.018 | G180: 0.029 | H180: 0.023 | I180: 0.018
A181: 477 | B181: 0.17 | C181: 0.828 | D181: 0.436 | E181: 0.053 | F181: 0.018 | G181: 0.028 | H181: 0.022 | I181: 0.018
A182: 478 | B182: 0.166 | C182: 0.793 | D182: 0.415 | E182: 0.051 | F182: 0.018 | G182: 0.028 | H182: 0.022 | I182: 0.017
A183: 479 | B183: 0.162 | C183: 0.759 | D183: 0.395 | E183: 0.049 | F183: 0.018 | G183: 0.027 | H183: 0.021 | I183: 0.017
A184: 480 | B184: 0.157 | C184: 0.728 | D184: 0.377 | E184: 0.047 | F184: 0.017 | G184: 0.027 | H184: 0.02 | I184: 0.016
A185: 481 | B185: 0.152 | C185: 0.701 | D185: 0.361 | E185: 0.045 | F185: 0.016 | G185: 0.026 | H185: 0.019 | I185: 0.016
A186: 482 | B186: 0.148 | C186: 0.679 | D186: 0.348 | E186: 0.043 | F186: 0.016 | G186: 0.026 | H186: 0.018 | I186: 0.014
A187: 483 | B187: 0.144 | C187: 0.662 | D187: 0.336 | E187: 0.042 | F187: 0.016 | G187: 0.025 | H187: 0.017 | I187: 0.014
A188: 484 | B188: 0.14 | C188: 0.647 | D188: 0.327 | E188: 0.041 | F188: 0.016 | G188: 0.025 | H188: 0.017 | I188: 0.013
A189: 485 | B189: 0.136 | C189: 0.637 | D189: 0.322 | E189: 0.039 | F189: 0.016 | G189: 0.024 | H189: 0.016 | I189: 0.013
A190: 486 | B190: 0.132 | C190: 0.632 | D190: 0.32 | E190: 0.039 | F190: 0.015 | G190: 0.023 | H190: 0.016 | I190: 0.012
A191: 487 | B191: 0.129 | C191: 0.633 | D191: 0.323 | E191: 0.039 | F191: 0.015 | G191: 0.023 | H191: 0.016 | I191: 0.012
A192: 488 | B192: 0.126 | C192: 0.639 | D192: 0.329 | E192: 0.039 | F192: 0.014 | G192: 0.023 | H192: 0.016 | I192: 0.011
A193: 489 | B193: 0.123 | C193: 0.649 | D193: 0.338 | E193: 0.04 | F193: 0.015 | G193: 0.023 | H193: 0.017 | I193: 0.011
A194: 490 | B194: 0.121 | C194: 0.665 | D194: 0.35 | E194: 0.042 | F194: 0.015 | G194: 0.023 | H194: 0.018 | I194: 0.011
A195: 491 | B195: 0.12 | C195: 0.684 | D195: 0.365 | E195: 0.044 | F195: 0.015 | G195: 0.023 | H195: 0.019 | I195: 0.011
A196: 492 | B196: 0.117 | C196: 0.705 | D196: 0.381 | E196: 0.045 | F196: 0.015 | G196: 0.023 | H196: 0.019 | I196: 0.01
A197: 493 | B197: 0.116 | C197: 0.728 | D197: 0.399 | E197: 0.048 | F197: 0.015 | G197: 0.022 | H197: 0.019 | I197: 0.009
A198: 494 | B198: 0.114 | C198: 0.753 | D198: 0.416 | E198: 0.05 | F198: 0.014 | G198: 0.021 | H198: 0.02 | I198: 0.009
A199: 495 | B199: 0.113 | C199: 0.775 | D199: 0.433 | E199: 0.051 | F199: 0.015 | G199: 0.021 | H199: 0.021 | I199: 0.009
A200: 496 | B200: 0.112 | C200: 0.795 | D200: 0.448 | E200: 0.053 | F200: 0.015 | G200: 0.021 | H200: 0.022 | I200: 0.009
A201: 497 | B201: 0.111 | C201: 0.812 | D201: 0.462 | E201: 0.055 | F201: 0.015 | G201: 0.021 | H201: 0.022 | I201: 0.008
A202: 498 | B202: 0.109 | C202: 0.824 | D202: 0.472 | E202: 0.056 | F202: 0.015 | G202: 0.021 | H202: 0.023 | I202: 0.008
... 804 more rows
